Workbook

Sheet Main
B10: 2023-06-28
B12: Sheet No. | C12: Template Name | D12: Summary
B13: 1 | C13: Future Intra | D13: For Intraday trading in F&O segment
B14: 2 | C14: Cash Intra | D14: For Intraday trading in cash market segment
B15: 3 | C15: Mid-cap Intra | D15: For Intraday trading in Mid-cap stocks
B16: 4 | C16: Bulk Deals | D16: Reveals Bulk Deals carried on NSE & BSE
B17: 5 | C17: Call Tracker
K27: `

Sheet Future Intra
M5: Back to Main Page
A6: FOR INTRA DAY TRADING | L6: =Main!B10 -> 2023-06-28
A9: Sr.no | B9: Sector | C9: Scrip | D9: Expiry Date | E9: CLOSE RATE | F9: Pivot Point | G9: Supports | J9: Resistances
E10: Point | F10: Point | G10: S1 | H10: S2 | I10: S3 | J10: R1 | K10: R2 | L10: R3 | M10: HIGH | N10: LOW | O10: OI | P10: % Change in OI
A11: 1 | B11: Index | C11: NIFTY | D11: 2023-06-29 | E11: 18811.20 | F11: 18787.87 | G11: 18753.33 | H11: 18695.47 | I11: 18660.93 | J11: 18845.73 | K11: 18880.27 | L11: 18938.13 | M11: 18822.4 | N11: 18730 | O11: 12317250 | P11: 8.97%
A12: 2 | B12: Index | C12: BANKNIFTY | D12: 2023-06-29 | E12: 44089.45 | F12: 43981.82 | G12: 43808.63 | H12: 43527.82 | I12: 43354.63 | J12: 44262.63 | K12: 44435.82 | L12: 44716.63 | M12: 44155 | N12: 43701 | O12: 3136580 | P12: 15.22%
A13: 3 | B13: Index | C13: FINNIFTY | D13: 2023-07-25 | E13: 19753.55 | F13: 19720.13 | G13: 19657.62 | H13: 19561.68 | I13: 19499.17 | J13: 19816.07 | K13: 19878.58 | L13: 19974.52 | M13: 19782.65 | N13: 19624.2 | O13: 122840 | P13: 113.12%
A14: 4 | B14: Index | C14: MIDCPNIFTY | D14: 2023-07-26 | E14: 8132.20 | F14: 8123.40 | G14: 8098.80 | H14: 8065.40 | I14: 8040.80 | J14: 8156.80 | K14: 8181.40 | L14: 8214.80 | M14: 8148 | N14: 8090 | O14: 17475 | P14: 52.29%
A15: 5 | B15: Chemical | C15: AARTIIND | D15: 2023-06-29 | E15: 507.95 | F15: 510.53 | G15: 504.17 | H15: 500.38 | I15: 494.02 | J15: 514.32 | K15: 520.68 | L15: 524.47 | M15: 516.9 | N15: 506.75 | O15: 7313400 | P15: -1.21%
A16: 6 | B16: Capital_Goods | C16: ABB | D16: 2023-06-29 | E16: 4301.55 | F16: 4309.60 | G16: 4272.95 | H16: 4244.35 | I16: 4207.70 | J16: 4338.20 | K16: 4374.85 | L16: 4403.45 | M16: 4346.25 | N16: 4281 | O16: 1403250 | P16: -2.96%
A17: 7 | B17: Pharma | C17: ABBOTINDIA | D17: 2023-06-29 | E17: 22685.30 | F17: 22750.68 | G17: 22534.67 | H17: 22384.03 | I17: 22168.02 | J17: 22901.32 | K17: 23117.33 | L17: 23267.97 | M17: 22966.7 | N17: 22600.05 | O17: 59520 | P17: -6.12%
A18: 8 | B18: Others | C18: ABCAPITAL | D18: 2023-06-29 | E18: 191.90 | F18: 188.25 | G18: 183.75 | H18: 175.60 | I18: 171.10 | J18: 196.40 | K18: 200.90 | L18: 209.05 | M18: 192.75 | N18: 180.1 | O18: 36676800 | P18: -0.67%
A19: 9 | B19: Textile | C19: ABFRL | D19: 2023-06-29 | E19: 210.55 | F19: 210.57 | G19: 207.83 | H19: 205.12 | I19: 202.38 | J19: 213.28 | K19: 216.02 | L19: 218.73 | M19: 213.3 | N19: 207.85 | O19: 29572400 | P19: -5.61%
A20: 10 | B20: Cement | C20: ACC | D20: 2023-06-29 | E20: 1790.45 | F20: 1791.52 | G20: 1775.98 | H20: 1761.52 | I20: 1745.98 | J20: 1805.98 | K20: 1821.52 | L20: 1835.98 | M20: 1807.05 | N20: 1777.05 | O20: 4609200 | P20: -0.36%
A21: 11 | B21: Others | C21: ADANIENT | D21: 2023-06-29 | E21: 2287.15 | F21: 2302.67 | G21: 2259.48 | H21: 2231.82 | I21: 2188.63 | J21: 2330.33 | K21: 2373.52 | L21: 2401.18 | M21: 2345.85 | N21: 2275 | O21: 12122600 | P21: -1.86%
A22: 12 | B22: Others | C22: ADANIPORTS | D22: 2023-06-29 | E22: 719.10 | F22: 721.53 | G22: 713.57 | H22: 708.03 | I22: 700.07 | J22: 727.07 | K22: 735.03 | L22: 740.57 | M22: 729.5 | N22: 716 | O22: 33154175 | P22: -1.23%
A23: 13 | B23: Pharma | C23: ALKEM | D23: 2023-06-29 | E23: 3396.35 | F23: 3401.62 | G23: 3377.73 | H23: 3359.12 | I23: 3335.23 | J23: 3420.23 | K23: 3444.12 | L23: 3462.73 | M23: 3425.5 | N23: 3383 | O23: 752400 | P23: -4.81%
A24: 14 | B24: Cement | C24: AMBUJACEM | D24: 2023-06-29 | E24: 433.20 | F24: 435.28 | G24: 430.37 | H24: 427.53 | I24: 422.62 | J24: 438.12 | K24: 443.03 | L24: 445.87 | M24: 440.2 | N24: 432.45 | O24: 55600200 | P24: -0.38%
A25: 15 | B25: Others | C25: APOLLOHOSP | D25: 2023-06-29 | E25: 5138.50 | F25: 5112.87 | G25: 5075.73 | H25: 5012.97 | I25: 4975.83 | J25: 5175.63 | K25: 5212.77 | L25: 5275.53 | M25: 5150 | N25: 5050.1 | O25: 2028250 | P25: 0.52%
A26: 16 | B26: Automobile | C26: APOLLOTYRE | D26: 2023-06-29 | E26: 400.50 | F26: 402.92 | G26: 396.18 | H26: 391.87 | I26: 385.13 | J26: 407.23 | K26: 413.97 | L26: 418.28 | M26: 409.65 | N26: 398.6 | O26: 12783200 | P26: -0.76%
A27: 17 | B27: Automobile | C27: ASHOKLEY | D27: 2023-06-29 | E27: 163.50 | F27: 164.08 | G27: 162.37 | H27: 161.23 | I27: 159.52 | J27: 165.22 | K27: 166.93 | L27: 168.07 | M27: 165.8 | N27: 162.95 | O27: 74705000 | P27: 8.93%
A28: 18 | B28: FMCG | C28: ASIANPAINT | D28: 2023-06-29 | E28: 3318.50 | F28: 3314.23 | G28: 3294.57 | H28: 3270.63 | I28: 3250.97 | J28: 3338.17 | K28: 3357.83 | L28: 3381.77 | M28: 3333.9 | N28: 3290.3 | O28: 4965200 | P28: -3.96%
A29: 19 | B29: Others | C29: ASTRAL | D29: 2023-06-29 | E29: 1956.55 | F29: 1962.23 | G29: 1942.67 | H29: 1928.78 | I29: 1909.22 | J29: 1976.12 | K29: 1995.68 | L29: 2009.57 | M29: 1981.8 | N29: 1948.35 | O29: 2232828 | P29: -0.36%
A30: 20 | B30: Others | C30: ATUL | D30: 2023-06-29 | E30: 6992.85 | F30: 7013.67 | G30: 6952.08 | H30: 6911.32 | I30: 6849.73 | J30: 7054.43 | K30: 7116.02 | L30: 7156.78 | M30: 7075.25 | N30: 6972.9 | O30: 336225 | P30: 16.38%
A31: 21 | B31: Banking | C31: AUBANK | D31: 2023-06-29 | E31: 747.40 | F31: 747.73 | G31: 742.72 | H31: 738.03 | I31: 733.02 | J31: 752.42 | K31: 757.43 | L31: 762.12 | M31: 752.75 | N31: 743.05 | O31: 11992000 | P31: 3.50%
A32: 22 | B32: Pharma | C32: AUROPHARMA | D32: 2023-06-29 | E32: 717.80 | F32: 719.22 | G32: 713.48 | H32: 709.17 | I32: 703.43 | J32: 723.53 | K32: 729.27 | L32: 733.58 | M32: 724.95 | N32: 714.9 | O32: 11135000 | P32: -9.23%
A33: 23 | B33: Banking | C33: AXISBANK | D33: 2023-06-29 | E33: 972.20 | F33: 968.72 | G33: 964.23 | H33: 956.27 | I33: 951.78 | J33: 976.68 | K33: 981.17 | L33: 989.13 | M33: 973.2 | N33: 960.75 | O33: 53189075 | P33: 2.81%
A34: 24 | B34: Automobile | C34: BAJAJ-AUTO | D34: 2023-06-29 | E34: 4624.60 | F34: 4641.20 | G34: 4602.40 | H34: 4580.20 | I34: 4541.40 | J34: 4663.40 | K34: 4702.20 | L34: 4724.40 | M34: 4680 | N34: 4619 | O34: 2692000 | P34: 2.70%
A35: 25 | B35: Finance | C35: BAJAJFINSV | D35: 2023-06-29 | E35: 1522.95 | F35: 1517.37 | G35: 1508.73 | H35: 1494.52 | I35: 1485.88 | J35: 1531.58 | K35: 1540.22 | L35: 1554.43 | M35: 1526 | N35: 1503.15 | O35: 8667000 | P35: -0.94%
A36: 26 | B36: Finance | C36: BAJFINANCE | D36: 2023-06-29 | E36: 7029.00 | F36: 7009.95 | G36: 6982.20 | H36: 6935.40 | I36: 6907.65 | J36: 7056.75 | K36: 7084.50 | L36: 7131.30 | M36: 7037.7 | N36: 6963.15 | O36: 3907250 | P36: 2.19%
A37: 27 | B37: Automobile | C37: BALKRISIND | D37: 2023-06-29 | E37: 2364.40 | F37: 2379.08 | G37: 2340.32 | H37: 2316.23 | I37: 2277.47 | J37: 2403.17 | K37: 2441.93 | L37: 2466.02 | M37: 2417.85 | N37: 2355 | O37: 1579200 | P37: -3.06%
A38: 28 | B38: Others | C38: BALRAMCHIN | D38: 2023-06-29 | E38: 380.95 | F38: 382.98 | G38: 378.12 | H38: 375.28 | I38: 370.42 | J38: 385.82 | K38: 390.68 | L38: 393.52 | M38: 387.85 | N38: 380.15 | O38: 11270400 | P38: -2.41%
A39: 29 | B39: Banking | C39: BANDHANBNK | D39: 2023-06-29 | E39: 238.10 | F39: 238.47 | G39: 236.03 | H39: 233.97 | I39: 231.53 | J39: 240.53 | K39: 242.97 | L39: 245.03 | M39: 240.9 | N39: 236.4 | O39: 38789600 | P39: 5.31%
A40: 30 | B40: Banking | C40: BANKBARODA | D40: 2023-06-29 | E40: 191.10 | F40: 191.28 | G40: 190.42 | H40: 189.73 | I40: 188.87 | J40: 191.97 | K40: 192.83 | L40: 193.52 | M40: 192.15 | N40: 190.6 | O40: 98180550 | P40: 4.48%
A41: 31 | B41: FMCG | C41: BATAINDIA | D41: 2023-06-29 | E41: 1663.95 | F41: 1658.67 | G41: 1646.38 | H41: 1628.82 | I41: 1616.53 | J41: 1676.23 | K41: 1688.52 | L41: 1706.08 | M41: 1670.95 | N41: 1641.1 | O41: 1551725 | P41: -6.22%
A42: 32 | B42: Capital_Goods | C42: BEL | D42: 2023-06-29 | E42: 118.30 | F42: 119.53 | G42: 116.57 | H42: 114.83 | I42: 111.87 | J42: 121.27 | K42: 124.23 | L42: 125.97 | M42: 122.5 | N42: 117.8 | O42: 80535300 | P42: 3.65%
A43: 33 | B43: FMCG | C43: BERGEPAINT | D43: 2023-06-29 | E43: 678.30 | F43: 678.42 | G43: 673.83 | H43: 669.37 | I43: 664.78 | J43: 682.88 | K43: 687.47 | L43: 691.93 | M43: 683 | N43: 673.95 | O43: 7731900 | P43: -5.28%
A44: 34 | B44: Automobile | C44: BHARATFORG | D44: 2023-06-29 | E44: 818.90 | F44: 817.50 | G44: 812.20 | H44: 805.50 | I44: 800.20 | J44: 824.20 | K44: 829.50 | L44: 836.20 | M44: 822.8 | N44: 810.8 | O44: 8321000 | P44: -3.13%
A45: 35 | B45: Telecom | C45: BHARTIARTL | D45: 2023-06-29 | E45: 864.55 | F45: 863.40 | G45: 855.15 | H45: 845.75 | I45: 837.50 | J45: 872.80 | K45: 881.05 | L45: 890.45 | M45: 871.65 | N45: 854 | O45: 45974300 | P45: 4.23%
A46: 36 | B46: Capital_Goods | C46: BHEL | D46: 2023-06-29 | E46: 84.55 | F46: 84.75 | G46: 84.10 | H46: 83.65 | I46: 83.00 | J46: 85.20 | K46: 85.85 | L46: 86.30 | M46: 85.4 | N46: 84.3 | O46: 100033500 | P46: 0.45%
A47: 37 | B47: Pharma | C47: BIOCON | D47: 2023-06-29 | E47: 243.35 | F47: 243.20 | G47: 240.60 | H47: 237.85 | I47: 235.25 | J47: 245.95 | K47: 248.55 | L47: 251.30 | M47: 245.8 | N47: 240.45 | O47: 29989700 | P47: -3.89%
A48: 38 | B48: Automobile | C48: BOSCHLTD | D48: 2023-06-29 | E48: 18547.05 | F48: 18574.43 | G48: 18428.92 | H48: 18310.78 | I48: 18165.27 | J48: 18692.57 | K48: 18838.08 | L48: 18956.22 | M48: 18719.95 | N48: 18456.3 | O48: 159350 | P48: -11.13%
A49: 39 | B49: Oil_Gas | C49: BPCL | D49: 2023-06-29 | E49: 359.80 | F49: 360.28 | G49: 357.12 | H49: 354.43 | I49: 351.27 | J49: 362.97 | K49: 366.13 | L49: 368.82 | M49: 363.45 | N49: 357.6 | O49: 25639200 | P49: 4.09%
A50: 40 | B50: FMCG | C50: BRITANNIA | D50: 2023-06-29 | E50: 4964.60 | F50: 4986.03 | G50: 4939.72 | H50: 4914.83 | I50: 4868.52 | J50: 5010.92 | K50: 5057.23 | L50: 5082.12 | M50: 5032.35 | N50: 4961.15 | O50: 1656600 | P50: -2.76%
A51: 41 | B51: Technology | C51: BSOFT | D51: 2023-06-29 | E51: 352.20 | F51: 349.75 | G51: 342.90 | H51: 333.60 | I51: 326.75 | J51: 359.05 | K51: 365.90 | L51: 375.20 | M51: 356.6 | N51: 340.45 | O51: 7264000 | P51: -0.55%
A52: 42 | B52: Banking | C52: CANBK | D52: 2023-06-29 | E52: 296.65 | F52: 296.17 | G52: 294.88 | H52: 293.12 | I52: 291.83 | J52: 297.93 | K52: 299.22 | L52: 300.98 | M52: 297.45 | N52: 294.4 | O52: 51794100 | P52: 2.71%
A53: 43 | B53: Finance | C53: CANFINHOME | D53: 2023-06-29 | E53: 778.85 | F53: 769.75 | G53: 755.80 | H53: 732.75 | I53: 718.80 | J53: 792.80 | K53: 806.75 | L53: 829.80 | M53: 783.7 | N53: 746.7 | O53: 3745950 | P53: 16.88%
A54: 44 | B54: Others | C54: CHAMBLFERT | D54: 2023-06-29 | E54: 274.05 | F54: 275.18 | G54: 271.62 | H54: 269.18 | I54: 265.62 | J54: 277.62 | K54: 281.18 | L54: 283.62 | M54: 278.75 | N54: 272.75 | O54: 9197900 | P54: -2.86%
A55: 45 | B55: Finance | C55: CHOLAFIN | D55: 2023-06-29 | E55: 1096.40 | F55: 1089.20 | G55: 1079.10 | H55: 1061.80 | I55: 1051.70 | J55: 1106.50 | K55: 1116.60 | L55: 1133.90 | M55: 1099.3 | N55: 1071.9 | O55: 11053750 | P55: 2.04%
A56: 46 | B56: Pharma | C56: CIPLA | D56: 2023-06-29 | E56: 1010.20 | F56: 1012.80 | G56: 1003.50 | H56: 996.80 | I56: 987.50 | J56: 1019.50 | K56: 1028.80 | L56: 1035.50 | M56: 1022.1 | N56: 1006.1 | O56: 11512150 | P56: -0.17%
A57: 47 | B57: Others | C57: COALINDIA | D57: 2023-06-29 | E57: 225.30 | F57: 225.47 | G57: 223.83 | H57: 222.37 | I57: 220.73 | J57: 226.93 | K57: 228.57 | L57: 230.03 | M57: 227.1 | N57: 224 | O57: 68434800 | P57: -5.05%
A58: 48 | B58: Technology | C58: COFORGE | D58: 2023-06-29 | E58: 4698.20 | F58: 4674.97 | G58: 4630.93 | H58: 4563.67 | I58: 4519.63 | J58: 4742.23 | K58: 4786.27 | L58: 4853.53 | M58: 4719 | N58: 4607.7 | O58: 661800 | P58: 4.97%
A59: 49 | B59: FMCG | C59: COLPAL | D59: 2023-06-29 | E59: 1689.25 | F59: 1683.55 | G59: 1673.60 | H59: 1657.95 | I59: 1648.00 | J59: 1699.20 | K59: 1709.15 | L59: 1724.80 | M59: 1693.5 | N59: 1667.9 | O59: 2952250 | P59: -2.84%
A60: 50 | B60: Others | C60: CONCOR | D60: 2023-06-29 | E60: 648.10 | F60: 647.13 | G60: 641.82 | H60: 635.53 | I60: 630.22 | J60: 653.42 | K60: 658.73 | L60: 665.02 | M60: 652.45 | N60: 640.85 | O60: 5516000 | P60: -1.61%
A61: 51 | B61: Others | C61: COROMANDEL | D61: 2023-06-29 | E61: 939.35 | F61: 941.92 | G61: 931.33 | H61: 923.32 | I61: 912.73 | J61: 949.93 | K61: 960.52 | L61: 968.53 | M61: 952.5 | N61: 933.9 | O61: 1605100 | P61: -8.65%
A62: 52 | B62: Capital_Goods | C62: CROMPTON | D62: 2023-06-29 | E62: 289.45 | F62: 289.08 | G62: 286.77 | H62: 284.08 | I62: 281.77 | J62: 291.77 | K62: 294.08 | L62: 296.77 | M62: 291.4 | N62: 286.4 | O62: 14664600 | P62: 1.14%
A63: 53 | B63: Banking | C63: CUB | D63: 2023-06-29 | E63: 124.80 | F63: 124.07 | G63: 122.93 | H63: 121.07 | I63: 119.93 | J63: 125.93 | K63: 127.07 | L63: 128.93 | M63: 125.2 | N63: 122.2 | O63: 34145000 | P63: -6.26%
A64: 54 | B64: Capital_Goods | C64: CUMMINSIND | D64: 2023-06-29 | E64: 1881.45 | F64: 1877.93 | G64: 1865.87 | H64: 1850.28 | I64: 1838.22 | J64: 1893.52 | K64: 1905.58 | L64: 1921.17 | M64: 1890 | N64: 1862.35 | O64: 3256800 | P64: -5.96%
A65: 55 | B65: FMCG | C65: DABUR | D65: 2023-06-29 | E65: 570.50 | F65: 569.07 | G65: 566.23 | H65: 561.97 | I65: 559.13 | J65: 573.33 | K65: 576.17 | L65: 580.43 | M65: 571.9 | N65: 564.8 | O65: 12547500 | P65: 3.71%
A66: 56 | B66: Cement | C66: DALBHARAT | D66: 2023-06-29 | E66: 2165.55 | F66: 2184.12 | G66: 2144.43 | H66: 2123.32 | I66: 2083.63 | J66: 2205.23 | K66: 2244.92 | L66: 2266.03 | M66: 2223.8 | N66: 2163 | O66: 2038000 | P66: 1.24%
A67: 57 | B67: Chemical | C67: DEEPAKNTR | D67: 2023-06-29 | E67: 2202.45 | F67: 2213.40 | G67: 2179.55 | H67: 2156.65 | I67: 2122.80 | J67: 2236.30 | K67: 2270.15 | L67: 2293.05 | M67: 2247.25 | N67: 2190.5 | O67: 2283700 | P67: 7.08%
A68: 58 | B68: Others | C68: DELTACORP | D68: 2023-06-29 | E68: 250.40 | F68: 248.45 | G68: 244.40 | H68: 238.40 | I68: 234.35 | J68: 254.45 | K68: 258.50 | L68: 264.50 | M68: 252.5 | N68: 242.45 | O68: 17645600 | P68: 1.01%
A69: 59 | B69: Pharma | C69: DIVISLAB | D69: 2023-06-29 | E69: 3584.75 | F69: 3571.23 | G69: 3550.62 | H69: 3516.48 | I69: 3495.87 | J69: 3605.37 | K69: 3625.98 | L69: 3660.12 | M69: 3591.85 | N69: 3537.1 | O69: 3031550 | P69: -2.83%
A70: 60 | B70: Others | C70: DIXON | D70: 2023-06-29 | E70: 4392.80 | F70: 4421.55 | G70: 4333.25 | H70: 4273.70 | I70: 4185.40 | J70: 4481.10 | K70: 4569.40 | L70: 4628.95 | M70: 4509.85 | N70: 4362 | O70: 1038700 | P70: -2.97%
A71: 61 | B71: Realty | C71: DLF | D71: 2023-06-29 | E71: 483.10 | F71: 483.05 | G71: 478.70 | H71: 474.30 | I71: 469.95 | J71: 487.45 | K71: 491.80 | L71: 496.20 | M71: 487.4 | N71: 478.65 | O71: 28076400 | P71: -1.14%
A72: 62 | B72: Pharma | C72: DRREDDY | D72: 2023-06-29 | E72: 5020.35 | F72: 5018.42 | G72: 4956.93 | H72: 4893.52 | I72: 4832.03 | J72: 5081.83 | K72: 5143.32 | L72: 5206.73 | M72: 5079.9 | N72: 4955 | O72: 3326625 | P72: -9.38%
A73: 63 | B73: Automobile | C73: EICHERMOT | D73: 2023-06-29 | E73: 3531.35 | F73: 3541.93 | G73: 3505.97 | H73: 3480.58 | I73: 3444.62 | J73: 3567.32 | K73: 3603.28 | L73: 3628.67 | M73: 3577.9 | N73: 3516.55 | O73: 3540775 | P73: 0.99%
A74: 64 | B74: Automobile | C74: ESCORTS | D74: 2023-06-29 | E74: 2202.65 | F74: 2214.07 | G74: 2186.63 | H74: 2170.62 | I74: 2143.18 | J74: 2230.08 | K74: 2257.52 | L74: 2273.53 | M74: 2241.5 | N74: 2198.05 | O74: 1263625 | P74: 5.54%
A75: 65 | B75: Automobile | C75: EXIDEIND | D75: 2023-06-29 | E75: 232.80 | F75: 232.63 | G75: 230.12 | H75: 227.43 | I75: 224.92 | J75: 235.32 | K75: 237.83 | L75: 240.52 | M75: 235.15 | N75: 229.95 | O75: 21852000 | P75: -1.35%
A76: 66 | B76: Banking | C76: FEDERALBNK | D76: 2023-06-29 | E76: 123.35 | F76: 122.97 | G76: 122.03 | H76: 120.72 | I76: 119.78 | J76: 124.28 | K76: 125.22 | L76: 126.53 | M76: 123.9 | N76: 121.65 | O76: 108245000 | P76: -5.47%
A77: 67 | B77: Oil_Gas | C77: GAIL | D77: 2023-06-29 | E77: 104.40 | F77: 104.57 | G77: 103.93 | H77: 103.47 | I77: 102.83 | J77: 105.03 | K77: 105.67 | L77: 106.13 | M77: 105.2 | N77: 104.1 | O77: 83091150 | P77: -1.05%
A78: 68 | B78: Pharma | C78: GLENMARK | D78: 2023-06-29 | E78: 656.40 | F78: 657.58 | G78: 643.57 | H78: 630.73 | I78: 616.72 | J78: 670.42 | K78: 684.43 | L78: 697.27 | M78: 671.6 | N78: 644.75 | O78: 7937300 | P78: 2.39%
A79: 69 | B79: Infrastructure | C79: GMRINFRA | D79: 2023-06-29 | E79: 42.90 | F79: 42.80 | G79: 42.50 | H79: 42.10 | I79: 41.80 | J79: 43.20 | K79: 43.50 | L79: 43.90 | M79: 43.1 | N79: 42.4 | O79: 142222500 | P79: -9.45%
A80: 70 | B80: Others | C80: GNFC | D80: 2023-06-29 | E80: 584.95 | F80: 587.33 | G80: 579.37 | H80: 573.78 | I80: 565.82 | J80: 592.92 | K80: 600.88 | L80: 606.47 | M80: 595.3 | N80: 581.75 | O80: 7606300 | P80: -2.86%
A81: 71 | B81: FMCG | C81: GODREJCP | D81: 2023-06-29 | E81: 1038.35 | F81: 1040.20 | G81: 1031.45 | H81: 1024.55 | I81: 1015.80 | J81: 1047.10 | K81: 1055.85 | L81: 1062.75 | M81: 1048.95 | N81: 1033.3 | O81: 5395000 | P81: -2.90%
A82: 72 | B82: Realty | C82: GODREJPROP | D82: 2023-06-29 | E82: 1560.35 | F82: 1550.93 | G82: 1537.37 | H82: 1514.38 | I82: 1500.82 | J82: 1573.92 | K82: 1587.48 | L82: 1610.47 | M82: 1564.5 | N82: 1527.95 | O82: 3412950 | P82: -4.74%
A83: 73 | B83: Pharma | C83: GRANULES | D83: 2023-06-29 | E83: 297.30 | F83: 296.87 | G83: 292.43 | H83: 287.57 | I83: 283.13 | J83: 301.73 | K83: 306.17 | L83: 311.03 | M83: 301.3 | N83: 292 | O83: 9616000 | P83: 3.71%
A84: 74 | B84: Cement | C84: GRASIM | D84: 2023-06-29 | E84: 1731.20 | F84: 1725.85 | G84: 1718.95 | H84: 1706.70 | I84: 1699.80 | J84: 1738.10 | K84: 1745.00 | L84: 1757.25 | M84: 1732.75 | N84: 1713.6 | O84: 12235050 | P84: 0.55%
A85: 75 | B85: Oil_Gas | C85: GUJGASLTD | D85: 2023-06-29 | E85: 467.45 | F85: 467.97 | G85: 465.78 | H85: 464.12 | I85: 461.93 | J85: 469.63 | K85: 471.82 | L85: 473.48 | M85: 470.15 | N85: 466.3 | O85: 7102500 | P85: 2.03%
A86: 76 | B86: Others | C86: HAL | D86: 2023-06-29 | E86: 3670.15 | F86: 3702.03 | G86: 3632.07 | H86: 3593.98 | I86: 3524.02 | J86: 3740.12 | K86: 3810.08 | L86: 3848.17 | M86: 3772 | N86: 3663.95 | O86: 4106100 | P86: -2.90%
A87: 77 | B87: Capital_Goods | C87: HAVELLS | D87: 2023-06-29 | E87: 1288.55 | F87: 1292.63 | G87: 1281.92 | H87: 1275.28 | I87: 1264.57 | J87: 1299.27 | K87: 1309.98 | L87: 1316.62 | M87: 1303.35 | N87: 1286 | O87: 5929500 | P87: -3.64%
A88: 78 | B88: Technology | C88: HCLTECH | D88: 2023-06-29 | E88: 1166.95 | F88: 1165.93 | G88: 1160.97 | H88: 1154.98 | I88: 1150.02 | J88: 1171.92 | K88: 1176.88 | L88: 1182.87 | M88: 1170.9 | N88: 1159.95 | O88: 12926900 | P88: -1.65%
A89: 79 | B89: Finance | C89: HDFC | D89: 2023-06-29 | E89: 2762.30 | F89: 2753.93 | G89: 2727.92 | H89: 2693.53 | I89: 2667.52 | J89: 2788.32 | K89: 2814.33 | L89: 2848.72 | M89: 2779.95 | N89: 2719.55 | O89: 23421900 | P89: -8.90%
A90: 80 | B90: Finance | C90: HDFCAMC | D90: 2023-06-29 | E90: 2052.35 | F90: 2036.55 | G90: 2015.15 | H90: 1977.95 | I90: 1956.55 | J90: 2073.75 | K90: 2095.15 | L90: 2132.35 | M90: 2057.95 | N90: 1999.35 | O90: 3757500 | P90: -11.61%
A91: 81 | B91: Banking | C91: HDFCBANK | D91: 2023-06-29 | E91: 1658.10 | F91: 1656.18 | G91: 1640.47 | H91: 1622.83 | I91: 1607.12 | J91: 1673.82 | K91: 1689.53 | L91: 1707.17 | M91: 1671.9 | N91: 1638.55 | O91: 96787350 | P91: 4.47%
A92: 82 | B92: Finance | C92: HDFCLIFE | D92: 2023-06-29 | E92: 659.65 | F92: 653.90 | G92: 642.35 | H92: 625.05 | I92: 613.50 | J92: 671.20 | K92: 682.75 | L92: 700.05 | M92: 665.45 | N92: 636.6 | O92: 22434500 | P92: 15.81%
A93: 83 | B93: Automobile | C93: HEROMOTOCO | D93: 2023-06-29 | E93: 2832.75 | F93: 2836.97 | G93: 2815.53 | H93: 2798.32 | I93: 2776.88 | J93: 2854.18 | K93: 2875.62 | L93: 2892.83 | M93: 2858.4 | N93: 2819.75 | O93: 3974100 | P93: 5.03%
A94: 84 | B94: Metals | C94: HINDALCO | D94: 2023-06-29 | E94: 417.20 | F94: 416.85 | G94: 414.65 | H94: 412.10 | I94: 409.90 | J94: 419.40 | K94: 421.60 | L94: 424.15 | M94: 419.05 | N94: 414.3 | O94: 34755000 | P94: -1.39%
A95: 85 | B95: Metals | C95: HINDCOPPER | D95: 2023-06-29 | E95: 115.65 | F95: 115.93 | G95: 114.32 | H95: 112.98 | I95: 111.37 | J95: 117.27 | K95: 118.88 | L95: 120.22 | M95: 117.55 | N95: 114.6 | O95: 24461000 | P95: -6.25%
A96: 86 | B96: Oil_Gas | C96: HINDPETRO | D96: 2023-06-29 | E96: 267.35 | F96: 269.55 | G96: 264.10 | H96: 260.85 | I96: 255.40 | J96: 272.80 | K96: 278.25 | L96: 281.50 | M96: 275 | N96: 266.3 | O96: 21451500 | P96: 2.73%
A97: 87 | B97: FMCG | C97: HINDUNILVR | D97: 2023-06-29 | E97: 2646.65 | F97: 2648.78 | G97: 2632.42 | H97: 2618.18 | I97: 2601.82 | J97: 2663.02 | K97: 2679.38 | L97: 2693.62 | M97: 2665.15 | N97: 2634.55 | O97: 9257700 | P97: -2.10%
A98: 88 | B98: Finance | C98: IBULHSGFIN | D98: 2023-06-29 | E98: 116.55 | F98: 117.02 | G98: 114.73 | H98: 112.92 | I98: 110.63 | J98: 118.83 | K98: 121.12 | L98: 122.93 | M98: 119.3 | N98: 115.2 | O98: 56418300 | P98: -3.62%
A99: 89 | B99: Banking | C99: ICICIBANK | D99: 2023-06-29 | E99: 935.05 | F99: 931.58 | G99: 924.87 | H99: 914.68 | I99: 907.97 | J99: 941.77 | K99: 948.48 | L99: 958.67 | M99: 938.3 | N99: 921.4 | O99: 83317500 | P99: -3.33%
A100: 90 | B100: Finance | C100: ICICIGI | D100: 2023-06-29 | E100: 1326.20 | F100: 1312.68 | G100: 1296.37 | H100: 1266.53 | I100: 1250.22 | J100: 1342.52 | K100: 1358.83 | L100: 1388.67 | M100: 1329 | N100: 1282.85 | O100: 4796625 | P100: -3.13%
A101: 91 | B101: Finance | C101: ICICIPRULI | D101: 2023-06-29 | E101: 577.20 | F101: 571.93 | G101: 565.47 | H101: 553.73 | I101: 547.27 | J101: 583.67 | K101: 590.13 | L101: 601.87 | M101: 578.4 | N101: 560.2 | O101: 13987500 | P101: 5.24%
A102: 92 | B102: Telecom | C102: IDEA | D102: 2023-06-29 | E102: 7.50 | F102: 7.57 | G102: 7.33 | H102: 7.17 | I102: 6.93 | J102: 7.73 | K102: 7.97 | L102: 8.13 | M102: 7.8 | N102: 7.4 | O102: 714050000 | P102: 0.13%
A103: 93 | B103: Finance | C103: IDFC | D103: 2023-06-29 | E103: 102.25 | F103: 101.98 | G103: 100.77 | H103: 99.28 | I103: 98.07 | J103: 103.47 | K103: 104.68 | L103: 106.17 | M103: 103.2 | N103: 100.5 | O103: 182100000 | P103: -3.42%
A104: 94 | B104: Banking | C104: IDFCFIRSTB | D104: 2023-06-29 | E104: 78.30 | F104: 78.52 | G104: 77.48 | H104: 76.67 | I104: 75.63 | J104: 79.33 | K104: 80.37 | L104: 81.18 | M104: 79.55 | N104: 77.7 | O104: 262020000 | P104: 2.16%
A105: 95 | B105: Others | C105: IEX | D105: 2023-06-29 | E105: 127.95 | F105: 128.65 | G105: 126.80 | H105: 125.65 | I105: 123.80 | J105: 129.80 | K105: 131.65 | L105: 132.80 | M105: 130.5 | N105: 127.5 | O105: 50047500 | P105: 0.02%
A106: 96 | B106: Oil_Gas | C106: IGL | D106: 2023-06-29 | E106: 475.75 | F106: 479.53 | G106: 471.27 | H106: 466.78 | I106: 458.52 | J106: 484.02 | K106: 492.28 | L106: 496.77 | M106: 487.8 | N106: 475.05 | O106: 7887000 | P106: -8.63%
A107: 97 | B107: Infrastructure | C107: INDHOTEL | D107: 2023-06-29 | E107: 383.25 | F107: 382.92 | G107: 379.83 | H107: 376.42 | I107: 373.33 | J107: 386.33 | K107: 389.42 | L107: 392.83 | M107: 386 | N107: 379.5 | O107: 18248000 | P107: -2.66%
A108: 98 | B108: Cement | C108: INDIACEM | D108: 2023-06-29 | E108: 214.00 | F108: 215.57 | G108: 211.38 | H108: 208.77 | I108: 204.58 | J108: 218.18 | K108: 222.37 | L108: 224.98 | M108: 219.75 | N108: 212.95 | O108: 17307200 | P108: -3.45%
A109: 99 | B109: Others | C109: INDIAMART | D109: 2023-06-29 | E109: 2846.55 | F109: 2858.98 | G109: 2826.97 | H109: 2807.38 | I109: 2775.37 | J109: 2878.57 | K109: 2910.58 | L109: 2930.17 | M109: 2891 | N109: 2839.4 | O109: 569700 | P109: -5.90%
A110: 100 | B110: Others | C110: INDIGO | D110: 2023-06-29 | E110: 2519.85 | F110: 2511.83 | G110: 2477.97 | H110: 2436.08 | I110: 2402.22 | J110: 2553.72 | K110: 2587.58 | L110: 2629.47 | M110: 2545.7 | N110: 2469.95 | O110: 3757500 | P110: 3.71%
A111: 101 | B111: Banking | C111: INDUSINDBK | D111: 2023-06-29 | E111: 1314.60 | F111: 1310.23 | G111: 1300.87 | H111: 1287.13 | I111: 1277.77 | J111: 1323.97 | K111: 1333.33 | L111: 1347.07 | M111: 1319.6 | N111: 1296.5 | O111: 20881750 | P111: -1.76%
A112: 102 | B112: Telecom | C112: INDUSTOWER | D112: 2023-06-29 | E112: 162.80 | F112: 164.07 | G112: 160.38 | H112: 157.97 | I112: 154.28 | J112: 166.48 | K112: 170.17 | L112: 172.58 | M112: 167.75 | N112: 161.65 | O112: 81813800 | P112: -0.07%
A113: 103 | B113: Technology | C113: INFY | D113: 2023-06-29 | E113: 1281.45 | F113: 1279.58 | G113: 1275.87 | H113: 1270.28 | I113: 1266.57 | J113: 1285.17 | K113: 1288.88 | L113: 1294.47 | M113: 1283.3 | N113: 1274 | O113: 45167600 | P113: -2.36%
A114: 104 | B114: Technology | C114: INTELLECT | D114: 2023-06-29 | E114: 611.30 | F114: 612.05 | G114: 606.00 | H114: 600.70 | I114: 594.65 | J114: 617.35 | K114: 623.40 | L114: 628.70 | M114: 618.1 | N114: 606.75 | O114: 3177000 | P114: 0.99%
A115: 105 | B115: Oil_Gas | C115: IOC | D115: 2023-06-29 | E115: 89.25 | F115: 89.60 | G115: 88.70 | H115: 88.15 | I115: 87.25 | J115: 90.15 | K115: 91.05 | L115: 91.60 | M115: 90.5 | N115: 89.05 | O115: 75884250 | P115: 1.45%
A116: 106 | B116: Pharma | C116: IPCALAB | D116: 2023-06-29 | E116: 735.05 | F116: 735.13 | G116: 728.87 | H116: 722.68 | I116: 716.42 | J116: 741.32 | K116: 747.58 | L116: 753.77 | M116: 741.4 | N116: 728.95 | O116: 3767400 | P116: -4.02%
A117: 107 | B117: Others | C117: IRCTC | D117: 2023-06-29 | E117: 631.45 | F117: 630.22 | G117: 624.93 | H117: 618.42 | I117: 613.13 | J117: 636.73 | K117: 642.02 | L117: 648.53 | M117: 635.5 | N117: 623.7 | O117: 14394625 | P117: 2.09%
A118: 108 | B118: FMCG | C118: ITC | D118: 2023-06-29 | E118: 444.90 | F118: 444.98 | G118: 443.12 | H118: 441.33 | I118: 439.47 | J118: 446.77 | K118: 448.63 | L118: 450.42 | M118: 446.85 | N118: 443.2 | O118: 65876800 | P118: 0.40%
A119: 109 | B119: Metals | C119: JINDALSTEL | D119: 2023-06-29 | E119: 581.15 | F119: 578.58 | G119: 574.72 | H119: 568.28 | I119: 564.42 | J119: 585.02 | K119: 588.88 | L119: 595.32 | M119: 582.45 | N119: 572.15 | O119: 28206250 | P119: 0.29%
A120: 110 | B120: Cement | C120: JKCEMENT | D120: 2023-06-29 | E120: 3413.90 | F120: 3408.72 | G120: 3382.43 | H120: 3350.97 | I120: 3324.68 | J120: 3440.18 | K120: 3466.47 | L120: 3497.93 | M120: 3435 | N120: 3377.25 | O120: 327750 | P120: -18.27%
A121: 111 | B121: Metals | C121: JSWSTEEL | D121: 2023-06-29 | E121: 761.90 | F121: 758.32 | G121: 752.28 | H121: 742.67 | I121: 736.63 | J121: 767.93 | K121: 773.97 | L121: 783.58 | M121: 764.35 | N121: 748.7 | O121: 31687200 | P121: -1.64%
A122: 112 | B122: Others | C122: JUBLFOOD | D122: 2023-06-29 | E122: 493.80 | F122: 490.13 | G122: 483.12 | H122: 472.43 | I122: 465.42 | J122: 500.82 | K122: 507.83 | L122: 518.52 | M122: 497.15 | N122: 479.45 | O122: 16920000 | P122: -1.81%
A123: 113 | B123: Banking | C123: KOTAKBANK | D123: 2023-06-29 | E123: 1844.25 | F123: 1838.05 | G123: 1829.80 | H123: 1815.35 | I123: 1807.10 | J123: 1852.50 | K123: 1860.75 | L123: 1875.20 | M123: 1846.3 | N123: 1823.6 | O123: 27409600 | P123: -2.34%
A124: 114 | B124: Finance | C124: L&TFH | D124: 2023-06-29 | E124: 123.65 | F124: 121.38 | G124: 118.27 | H124: 112.88 | I124: 109.77 | J124: 126.77 | K124: 129.88 | L124: 135.27 | M124: 124.5 | N124: 116 | O124: 124355940 | P124: 62.62%
A125: 115 | B125: Others | C125: LALPATHLAB | D125: 2023-06-29 | E125: 2219.80 | F125: 2204.93 | G125: 2179.87 | H125: 2139.93 | I125: 2114.87 | J125: 2244.87 | K125: 2269.93 | L125: 2309.87 | M125: 2230 | N125: 2165 | O125: 971300 | P125: -4.98%
A126: 116 | B126: Pharma | C126: LAURUSLABS | D126: 2023-06-29 | E126: 366.35 | F126: 366.32 | G126: 361.83 | H126: 357.32 | I126: 352.83 | J126: 370.83 | K126: 375.32 | L126: 379.83 | M126: 370.8 | N126: 361.8 | O126: 12933400 | P126: -6.75%
A127: 117 | B127: Finance | C127: LICHSGFIN | D127: 2023-06-29 | E127: 394.35 | F127: 393.00 | G127: 390.60 | H127: 386.85 | I127: 384.45 | J127: 396.75 | K127: 399.15 | L127: 402.90 | M127: 395.4 | N127: 389.25 | O127: 15756000 | P127: -3.87%
A128: 118 | B128: Capital_Goods | C128: LT | D128: 2023-06-29 | E128: 2391.80 | F128: 2387.12 | G128: 2375.23 | H128: 2358.67 | I128: 2346.78 | J128: 2403.68 | K128: 2415.57 | L128: 2432.13 | M128: 2399 | N128: 2370.55 | O128: 10814100 | P128: 0.95%
A129: 119 | B129: Technology | C129: LTIM | D129: 2023-06-29 | E129: 5159.20 | F129: 5110.33 | G129: 5032.87 | H129: 4906.53 | I129: 4829.07 | J129: 5236.67 | K129: 5314.13 | L129: 5440.47 | M129: 5187.8 | N129: 4984 | O129: 2163600 | P129: 12.68%
A130: 120 | B130: Technology | C130: LTTS | D130: 2023-06-29 | E130: 3842.40 | F130: 3839.97 | G130: 3813.03 | H130: 3783.67 | I130: 3756.73 | J130: 3869.33 | K130: 3896.27 | L130: 3925.63 | M130: 3866.9 | N130: 3810.6 | O130: 1300000 | P130: -2.09%
A131: 121 | B131: Pharma | C131: LUPIN | D131: 2023-06-29 | E131: 879.75 | F131: 881.53 | G131: 873.22 | H131: 866.68 | I131: 858.37 | J131: 888.07 | K131: 896.38 | L131: 902.92 | M131: 889.85 | N131: 875 | O131: 6434500 | P131: -8.74%
A132: 122 | B132: Automobile | C132: M&M | D132: 2023-06-29 | E132: 1397.15 | F132: 1399.93 | G132: 1387.27 | H132: 1377.38 | I132: 1364.72 | J132: 1409.82 | K132: 1422.48 | L132: 1432.37 | M132: 1412.6 | N132: 1390.05 | O132: 15099000 | P132: 1.58%
A133: 123 | B133: Finance | C133: M&MFIN | D133: 2023-06-29 | E133: 317.40 | F133: 314.77 | G133: 311.68 | H133: 305.97 | I133: 302.88 | J133: 320.48 | K133: 323.57 | L133: 329.28 | M133: 317.85 | N133: 309.05 | O133: 27144000 | P133: -10.68%
A134: 124 | B134: Finance | C134: MANAPPURAM | D134: 2023-06-29 | E134: 126.55 | F134: 126.85 | G134: 125.70 | H134: 124.85 | I134: 123.70 | J134: 127.70 | K134: 128.85 | L134: 129.70 | M134: 128 | N134: 126 | O134: 70974000 | P134: 6.92%
A135: 125 | B135: FMCG | C135: MARICO | D135: 2023-06-29 | E135: 527.85 | F135: 528.32 | G135: 525.78 | H135: 523.72 | I135: 521.18 | J135: 530.38 | K135: 532.92 | L135: 534.98 | M135: 530.85 | N135: 526.25 | O135: 9565200 | P135: -3.56%
A136: 126 | B136: Automobile | C136: MARUTI | D136: 2023-06-29 | E136: 9444.95 | F136: 9440.48 | G136: 9396.97 | H136: 9348.98 | I136: 9305.47 | J136: 9488.47 | K136: 9531.98 | L136: 9579.97 | M136: 9484 | N136: 9392.5 | O136: 2208200 | P136: -4.53%
A137: 127 | B137: FMCG | C137: MCDOWELL-N | D137: 2023-06-29 | E137: 910.50 | F137: 908.02 | G137: 899.28 | H137: 888.07 | I137: 879.33 | J137: 919.23 | K137: 927.97 | L137: 939.18 | M137: 916.75 | N137: 896.8 | O137: 10260700 | P137: 1.09%
A138: 128 | B138: Others | C138: MCX | D138: 2023-06-29 | E138: 1624.80 | F138: 1617.45 | G138: 1600.95 | H138: 1577.10 | I138: 1560.60 | J138: 1641.30 | K138: 1657.80 | L138: 1681.65 | M138: 1633.95 | N138: 1593.6 | O138: 1520000 | P138: -5.64%
A139: 129 | B139: Pharma | C139: METROPOLIS | D139: 2023-06-29 | E139: 1502.25 | F139: 1488.72 | G139: 1463.43 | H139: 1424.62 | I139: 1399.33 | J139: 1527.53 | K139: 1552.82 | L139: 1591.63 | M139: 1514 | N139: 1449.9 | O139: 1730800 | P139: -1.14%
A140: 130 | B140: Finance | C140: MFSL | D140: 2023-06-29 | E140: 777.80 | F140: 774.33 | G140: 747.62 | H140: 717.43 | I140: 690.72 | J140: 804.52 | K140: 831.23 | L140: 861.42 | M140: 801.05 | N140: 744.15 | O140: 6522350 | P140: 13.94%
A141: 131 | B141: Oil_Gas | C141: MGL | D141: 2023-06-29 | E141: 1046.85 | F141: 1046.50 | G141: 1032.10 | H141: 1017.35 | I141: 1002.95 | J141: 1061.25 | K141: 1075.65 | L141: 1090.40 | M141: 1060.9 | N141: 1031.75 | O141: 2112000 | P141: -12.52%
A142: 132 | B142: Automobile | C142: MOTHERSON | D142: 2023-06-29 | E142: 84.65 | F142: 84.75 | G142: 84.00 | H142: 83.35 | I142: 82.60 | J142: 85.40 | K142: 86.15 | L142: 86.80 | M142: 85.5 | N142: 84.1 | O142: 77102900 | P142: 2.95%
A143: 133 | B143: Technology | C143: MPHASIS | D143: 2023-06-29 | E143: 1839.35 | F143: 1831.78 | G143: 1821.57 | H143: 1803.78 | I143: 1793.57 | J143: 1849.57 | K143: 1859.78 | L143: 1877.57 | M143: 1842 | N143: 1814 | O143: 3564000 | P143: 3.70%
A144: 134 | B144: Automobile | C144: MRF | D144: 2023-06-29 | E144: 99665.40 | F144: 99829.75 | G144: 99319.65 | H144: 98973.90 | I144: 98463.80 | J144: 100175.50 | K144: 100685.60 | L144: 101031.35 | M144: 100339.85 | N144: 99484 | O144: 51500 | P144: -3.07%
A145: 135 | B145: Finance | C145: MUTHOOTFIN | D145: 2023-06-29 | E145: 1238.90 | F145: 1235.15 | G145: 1227.35 | H145: 1215.80 | I145: 1208.00 | J145: 1246.70 | K145: 1254.50 | L145: 1266.05 | M145: 1242.95 | N145: 1223.6 | O145: 6138000 | P145: 5.74%
A146: 136 | B146: Metals | C146: NATIONALUM | D146: 2023-06-29 | E146: 82.30 | F146: 82.42 | G146: 81.63 | H146: 80.97 | I146: 80.18 | J146: 83.08 | K146: 83.87 | L146: 84.53 | M146: 83.2 | N146: 81.75 | O146: 52590000 | P146: -8.04%
A147: 137 | B147: Others | C147: NAUKRI | D147: 2023-06-29 | E147: 4392.25 | F147: 4414.13 | G147: 4345.17 | H147: 4298.08 | I147: 4229.12 | J147: 4461.22 | K147: 4530.18 | L147: 4577.27 | M147: 4483.1 | N147: 4367.05 | O147: 1349400 | P147: -6.11%
A148: 138 | B148: Chemical | C148: NAVINFLUOR | D148: 2023-06-29 | E148: 4428.95 | F148: 4452.90 | G148: 4391.80 | H148: 4354.65 | I148: 4293.55 | J148: 4490.05 | K148: 4551.15 | L148: 4588.30 | M148: 4514 | N148: 4415.75 | O148: 738900 | P148: -5.76%
A149: 139 | B149: FMCG | C149: NESTLEIND | D149: 2023-06-29 | E149: 22609.10 | F149: 22663.37 | G149: 22476.73 | H149: 22344.37 | I149: 22157.73 | J149: 22795.73 | K149: 22982.37 | L149: 23114.73 | M149: 22850 | N149: 22531 | O149: 372240 | P149: -2.65%
A150: 140 | B150: Metals | C150: NMDC | D150: 2023-06-29 | E150: 104.70 | F150: 105.02 | G150: 104.13 | H150: 103.57 | I150: 102.68 | J150: 105.58 | K150: 106.47 | L150: 107.03 | M150: 105.9 | N150: 104.45 | O150: 74182500 | P150: 0.28%
A151: 141 | B151: Power | C151: NTPC | D151: 2023-06-29 | E151: 185.45 | F151: 185.73 | G151: 184.82 | H151: 184.18 | I151: 183.27 | J151: 186.37 | K151: 187.28 | L151: 187.92 | M151: 186.65 | N151: 185.1 | O151: 72832500 | P151: -0.53%
A152: 142 | B152: Realty | C152: OBEROIRLTY | D152: 2023-06-29 | E152: 982.65 | F152: 983.53 | G152: 975.07 | H152: 967.48 | I152: 959.02 | J152: 991.12 | K152: 999.58 | L152: 1007.17 | M152: 992 | N152: 975.95 | O152: 4156600 | P152: -2.05%
A153: 143 | B153: Technology | C153: OFSS | D153: 2023-06-29 | E153: 3809.70 | F153: 3823.28 | G153: 3789.22 | H153: 3768.73 | I153: 3734.67 | J153: 3843.77 | K153: 3877.83 | L153: 3898.32 | M153: 3857.35 | N153: 3802.8 | O153: 281800 | P153: -7.00%
A154: 144 | B154: Oil_Gas | C154: ONGC | D154: 2023-06-29 | E154: 157.65 | F154: 157.75 | G154: 157.10 | H154: 156.55 | I154: 155.90 | J154: 158.30 | K154: 158.95 | L154: 159.50 | M154: 158.4 | N154: 157.2 | O154: 48190450 | P154: 1.74%
A155: 145 | B155: Textile | C155: PAGEIND | D155: 2023-06-29 | E155: 37913.95 | F155: 37943.12 | G155: 37736.23 | H155: 37558.52 | I155: 37351.63 | J155: 38120.83 | K155: 38327.72 | L155: 38505.43 | M155: 38150 | N155: 37765.4 | O155: 167145 | P155: -3.11%
A156: 146 | B156: Pharma | C156: PEL | D156: 2023-06-29 | E156: 909.40 | F156: 903.30 | G156: 886.60 | H156: 863.80 | I156: 847.10 | J156: 926.10 | K156: 942.80 | L156: 965.60 | M156: 920 | N156: 880.5 | O156: 12426050 | P156: 6.46%
A157: 147 | B157: Technology | C157: PERSISTENT | D157: 2023-06-29 | E157: 4896.05 | F157: 4903.07 | G157: 4864.98 | H157: 4833.92 | I157: 4795.83 | J157: 4934.13 | K157: 4972.22 | L157: 5003.28 | M157: 4941.15 | N157: 4872 | O157: 1385825 | P157: -2.60%
A158: 148 | B158: Oil_Gas | C158: PETRONET | D158: 2023-06-29 | E158: 219.85 | F158: 220.23 | G158: 218.92 | H158: 217.98 | I158: 216.67 | J158: 221.17 | K158: 222.48 | L158: 223.42 | M158: 221.55 | N158: 219.3 | O158: 16404000 | P158: -7.20%
A159: 149 | B159: Finance | C159: PFC | D159: 2023-06-29 | E159: 207.30 | F159: 205.70 | G159: 202.70 | H159: 198.10 | I159: 195.10 | J159: 210.30 | K159: 213.30 | L159: 217.90 | M159: 208.7 | N159: 201.1 | O159: 74331800 | P159: 11.45%
A160: 150 | B160: FMCG | C160: PIDILITIND | D160: 2023-06-29 | E160: 2626.30 | F160: 2634.37 | G160: 2612.73 | H160: 2599.17 | I160: 2577.53 | J160: 2647.93 | K160: 2669.57 | L160: 2683.13 | M160: 2656 | N160: 2620.8 | O160: 2246500 | P160: -1.30%
A161: 151 | B161: Chemical | C161: PIIND | D161: 2023-06-29 | E161: 3840.10 | F161: 3832.37 | G161: 3804.03 | H161: 3767.97 | I161: 3739.63 | J161: 3868.43 | K161: 3896.77 | L161: 3932.83 | M161: 3860.7 | N161: 3796.3 | O161: 1711500 | P161: -5.44%
A162: 152 | B162: Banking | C162: PNB | D162: 2023-06-29 | E162: 50.90 | F162: 50.73 | G162: 50.52 | H162: 50.13 | I162: 49.92 | J162: 51.12 | K162: 51.33 | L162: 51.72 | M162: 50.95 | N162: 50.35 | O162: 268496000 | P162: -4.83%
A163: 153 | B163: Others | C163: POLYCAB | D163: 2023-06-29 | E163: 3477.70 | F163: 3497.33 | G163: 3442.82 | H163: 3407.93 | I163: 3353.42 | J163: 3532.22 | K163: 3586.73 | L163: 3621.62 | M163: 3551.85 | N163: 3462.45 | O163: 1793100 | P163: -8.19%
A164: 154 | B164: Power | C164: POWERGRID | D164: 2023-06-29 | E164: 249.95 | F164: 249.45 | G164: 248.55 | H164: 247.15 | I164: 246.25 | J164: 250.85 | K164: 251.75 | L164: 253.15 | M164: 250.35 | N164: 248.05 | O164: 29006100 | P164: 1.40%
A165: 155 | B165: Media | C165: PVRINOX | D165: 2023-06-29 | E165: 1378.70 | F165: 1381.10 | G165: 1371.70 | H165: 1364.70 | I165: 1355.30 | J165: 1388.10 | K165: 1397.50 | L165: 1404.50 | M165: 1390.5 | N165: 1374.1 | O165: 3676838 | P165: 0.12%
A166: 156 | B166: Others | C166: RAIN | D166: 2023-06-29 | E166: 167.75 | F166: 168.88 | G166: 165.02 | H166: 162.28 | I166: 158.42 | J166: 171.62 | K166: 175.48 | L166: 178.22 | M166: 172.75 | N166: 166.15 | O166: 5439000 | P166: -24.16%
A167: 157 | B167: Cement | C167: RAMCOCEM | D167: 2023-06-29 | E167: 930.95 | F167: 935.02 | G167: 924.53 | H167: 918.12 | I167: 907.63 | J167: 941.43 | K167: 951.92 | L167: 958.33 | M167: 945.5 | N167: 928.6 | O167: 2709800 | P167: -7.30%
A168: 158 | B168: Banking | C168: RBLBANK | D168: 2023-06-29 | E168: 174.15 | F168: 171.82 | G168: 169.03 | H168: 163.92 | I168: 161.13 | J168: 176.93 | K168: 179.72 | L168: 184.83 | M168: 174.6 | N168: 166.7 | O168: 53690000 | P168: -11.29%
A169: 159 | B169: Power | C169: RECLTD | D169: 2023-06-29 | E169: 160.70 | F169: 159.62 | G169: 157.73 | H169: 154.77 | I169: 152.88 | J169: 162.58 | K169: 164.47 | L169: 167.43 | M169: 161.5 | N169: 156.65 | O169: 67848000 | P169: -2.45%
A170: 160 | B170: Oil_Gas | C170: RELIANCE | D170: 2023-06-29 | E170: 2498.15 | F170: 2499.15 | G170: 2488.30 | H170: 2478.45 | I170: 2467.60 | J170: 2509.00 | K170: 2519.85 | L170: 2529.70 | M170: 2510 | N170: 2489.3 | O170: 36844000 | P170: 2.09%
A171: 161 | B171: Metals | C171: SAIL | D171: 2023-06-29 | E171: 84.95 | F171: 84.93 | G171: 84.27 | H171: 83.58 | I171: 82.92 | J171: 85.62 | K171: 86.28 | L171: 86.97 | M171: 85.6 | N171: 84.25 | O171: 105536000 | P171: -2.90%
A172: 162 | B172: Banking | C172: SBICARD | D172: 2023-06-29 | E172: 861.75 | F172: 857.38 | G172: 850.82 | H172: 839.88 | I172: 833.32 | J172: 868.32 | K172: 874.88 | L172: 885.82 | M172: 863.95 | N172: 846.45 | O172: 9420800 | P172: 4.70%
A173: 163 | B173: Finance | C173: SBILIFE | D173: 2023-06-29 | E173: 1286.80 | F173: 1279.30 | G173: 1268.60 | H173: 1250.40 | I173: 1239.70 | J173: 1297.50 | K173: 1308.20 | L173: 1326.40 | M173: 1290 | N173: 1261.1 | O173: 9285750 | P173: -4.62%
A174: 164 | B174: Banking | C174: SBIN | D174: 2023-06-29 | E174: 566.20 | F174: 563.38 | G174: 559.12 | H174: 552.03 | I174: 547.77 | J174: 570.47 | K174: 574.73 | L174: 581.82 | M174: 567.65 | N174: 556.3 | O174: 83278500 | P174: -1.93%
A175: 165 | B175: Cement | C175: SHREECEM | D175: 2023-06-29 | E175: 24056.20 | F175: 24025.98 | G175: 23719.67 | H175: 23383.13 | I175: 23076.82 | J175: 24362.52 | K175: 24668.83 | L175: 25005.37 | M175: 24332.3 | N175: 23689.45 | O175: 281725 | P175: -5.86%
A176: 166 | B176: Capital_Goods | C176: SIEMENS | D176: 2023-06-29 | E176: 3698.10 | F176: 3702.12 | G176: 3679.38 | H176: 3660.67 | I176: 3637.93 | J176: 3720.83 | K176: 3743.57 | L176: 3762.28 | M176: 3724.85 | N176: 3683.4 | O176: 1672000 | P176: -4.76%
A177: 167 | B177: Textile | C177: SRF | D177: 2023-06-29 | E177: 2309.65 | F177: 2321.70 | G177: 2293.55 | H177: 2277.45 | I177: 2249.30 | J177: 2337.80 | K177: 2365.95 | L177: 2382.05 | M177: 2349.85 | N177: 2305.6 | O177: 3795000 | P177: 3.68%
A178: 168 | B178: Finance | C178: SHRIRAMFIN | D178: 2023-06-29 | E178: 1689.15 | F178: 1692.67 | G178: 1655.13 | H178: 1621.12 | I178: 1583.58 | J178: 1726.68 | K178: 1764.22 | L178: 1798.23 | M178: 1730.2 | N178: 1658.65 | O178: 8001000 | P178: 0.07%
A179: 169 | B179: Pharma | C179: SUNPHARMA | D179: 2023-06-29 | E179: 1000.70 | F179: 996.92 | G179: 990.78 | H179: 980.87 | I179: 974.73 | J179: 1006.83 | K179: 1012.97 | L179: 1022.88 | M179: 1003.05 | N179: 987 | O179: 27132000 | P179: -6.42%
A180: 170 | B180: Media | C180: SUNTV | D180: 2023-06-29 | E180: 437.45 | F180: 436.30 | G180: 432.00 | H180: 426.55 | I180: 422.25 | J180: 441.75 | K180: 446.05 | L180: 451.50 | M180: 440.6 | N180: 430.85 | O180: 8458500 | P180: -4.89%
A181: 171 | B181: Pharma | C181: SYNGENE | D181: 2023-06-29 | E181: 730.10 | F181: 730.45 | G181: 724.95 | H181: 719.80 | I181: 714.30 | J181: 735.60 | K181: 741.10 | L181: 746.25 | M181: 735.95 | N181: 725.3 | O181: 3111000 | P181: -3.80%
A182: 172 | B182: Chemical | C182: TATACHEM | D182: 2023-06-29 | E182: 1009.90 | F182: 1008.43 | G182: 993.37 | H182: 976.83 | I182: 961.77 | J182: 1024.97 | K182: 1040.03 | L182: 1056.57 | M182: 1023.5 | N182: 991.9 | O182: 8174500 | P182: -0.86%
A183: 173 | B183: Telecom | C183: TATACOMM | D183: 2023-06-29 | E183: 1566.25 | F183: 1565.62 | G183: 1551.23 | H183: 1536.22 | I183: 1521.83 | J183: 1580.63 | K183: 1595.02 | L183: 1610.03 | M183: 1580 | N183: 1550.6 | O183: 3885000 | P183: -4.24%
A184: 174 | B184: FMCG | C184: TATACONSUM | D184: 2023-06-29 | E184: 853.55 | F184: 857.67 | G184: 847.88 | H184: 842.22 | I184: 832.43 | J184: 863.33 | K184: 873.12 | L184: 878.78 | M184: 867.45 | N184: 852 | O184: 10363500 | P184: -3.30%
A185: 175 | B185: Automobile | C185: TATAMOTORS | D185: 2023-06-29 | E185: 571.80 | F185: 571.78 | G185: 567.72 | H185: 563.63 | I185: 559.57 | J185: 575.87 | K185: 579.93 | L185: 584.02 | M185: 575.85 | N185: 567.7 | O185: 50936625 | P185: 3.92%
A186: 176 | B186: Power | C186: TATAPOWER | D186: 2023-06-29 | E186: 219.20 | F186: 218.82 | G186: 217.13 | H186: 215.07 | I186: 213.38 | J186: 220.88 | K186: 222.57 | L186: 224.63 | M186: 220.5 | N186: 216.75 | O186: 87284250 | P186: 0.05%
A187: 177 | B187: Metals | C187: TATASTEEL | D187: 2023-06-29 | E187: 110.85 | F187: 110.87 | G187: 110.23 | H187: 109.62 | I187: 108.98 | J187: 111.48 | K187: 112.12 | L187: 112.73 | M187: 111.5 | N187: 110.25 | O187: 248176500 | P187: -0.99%
A188: 178 | B188: Technology | C188: TCS | D188: 2023-06-29 | E188: 3198.35 | F188: 3199.17 | G188: 3188.33 | H188: 3178.32 | I188: 3167.48 | J188: 3209.18 | K188: 3220.02 | L188: 3230.03 | M188: 3210 | N188: 3189.15 | O188: 12936350 | P188: 0.56%
A189: 179 | B189: Technology | C189: TECHM | D189: 2023-06-29 | E189: 1117.40 | F189: 1114.28 | G189: 1110.07 | H189: 1102.73 | I189: 1098.52 | J189: 1121.62 | K189: 1125.83 | L189: 1133.17 | M189: 1118.5 | N189: 1106.95 | O189: 13168200 | P189: -3.71%
A190: 180 | B190: FMCG | C190: TITAN | D190: 2023-06-29 | E190: 2975.40 | F190: 2966.63 | G190: 2951.17 | H190: 2926.93 | I190: 2911.47 | J190: 2990.87 | K190: 3006.33 | L190: 3030.57 | M190: 2982.1 | N190: 2942.4 | O190: 5833125 | P190: -0.47%
A191: 181 | B191: Pharma | C191: TORNTPHARM | D191: 2023-06-29 | E191: 1878.85 | F191: 1882.03 | G191: 1870.17 | H191: 1861.48 | I191: 1849.62 | J191: 1890.72 | K191: 1902.58 | L191: 1911.27 | M191: 1893.9 | N191: 1873.35 | O191: 1837500 | P191: -5.87%
A192: 182 | B192: Others | C192: TRENT | D192: 2023-06-29 | E192: 1744.85 | F192: 1749.08 | G192: 1735.02 | H192: 1725.18 | I192: 1711.12 | J192: 1758.92 | K192: 1772.98 | L192: 1782.82 | M192: 1763.15 | N192: 1739.25 | O192: 3804400 | P192: -3.46%
A193: 183 | B193: Automobile | C193: TVSMOTOR | D193: 2023-06-29 | E193: 1304.00 | F193: 1300.65 | G193: 1293.85 | H193: 1283.70 | I193: 1276.90 | J193: 1310.80 | K193: 1317.60 | L193: 1327.75 | M193: 1307.45 | N193: 1290.5 | O193: 8317400 | P193: -1.98%
A194: 184 | B194: FMCG | C194: UBL | D194: 2023-06-29 | E194: 1496.25 | F194: 1497.42 | G194: 1485.83 | H194: 1475.42 | I194: 1463.83 | J194: 1507.83 | K194: 1519.42 | L194: 1529.83 | M194: 1509 | N194: 1487 | O194: 2397600 | P194: -8.07%
A195: 185 | B195: Cement | C195: ULTRACEMCO | D195: 2023-06-29 | E195: 8192.95 | F195: 8188.08 | G195: 8166.17 | H195: 8139.38 | I195: 8117.47 | J195: 8214.87 | K195: 8236.78 | L195: 8263.57 | M195: 8210 | N195: 8161.3 | O195: 1674400 | P195: -1.05%
A196: 186 | B196: Chemical | C196: UPL | D196: 2023-06-29 | E196: 675.90 | F196: 677.02 | G196: 672.68 | H196: 669.47 | I196: 665.13 | J196: 680.23 | K196: 684.57 | L196: 687.78 | M196: 681.35 | N196: 673.8 | O196: 23073700 | P196: 0.28%
A197: 187 | B197: Metals | C197: VEDL | D197: 2023-06-29 | E197: 280.05 | F197: 279.75 | G197: 278.95 | H197: 277.85 | I197: 277.05 | J197: 280.85 | K197: 281.65 | L197: 282.75 | M197: 280.55 | N197: 278.65 | O197: 53808000 | P197: -1.04%
A198: 188 | B198: Capital_Goods | C198: VOLTAS | D198: 2023-06-29 | E198: 763.30 | F198: 763.03 | G198: 755.52 | H198: 747.73 | I198: 740.22 | J198: 770.82 | K198: 778.33 | L198: 786.12 | M198: 770.55 | N198: 755.25 | O198: 11511600 | P198: 7.18%
A199: 189 | B199: Technology | C199: WIPRO | D199: 2023-06-29 | E199: 383.35 | F199: 383.38 | G199: 382.17 | H199: 380.98 | I199: 379.77 | J199: 384.57 | K199: 385.78 | L199: 386.97 | M199: 384.6 | N199: 382.2 | O199: 48312000 | P199: 1.87%
A200: 190 | B200: Media | C200: ZEEL | D200: 2023-06-29 | E200: 179.05 | F200: 179.60 | G200: 177.00 | H200: 174.95 | I200: 172.35 | J200: 181.65 | K200: 184.25 | L200: 186.30 | M200: 182.2 | N200: 177.55 | O200: 96066000 | P200: 1.74%
A201: 191 | B201: Pharma | C201: ZYDUSLIFE | D201: 2023-06-29 | E201: 570.20 | F201: 568.47 | G201: 563.43 | H201: 556.67 | I201: 551.63 | J201: 575.23 | K201: 580.27 | L201: 587.03 | M201: 573.5 | N201: 561.7 | O201: 7698600 | P201: -1.93%
A202: 192
A203: 193
A204: 194
A221: Pivot Point: This is trigger point for intra day buy/sell based on the price range of the previous day
A222: As per the tool,the trader should take BUY position just above Pivot and keep the stop loss of pivot point and the first target would be Resistance 1(R1)
... 13 more rows

Sheet Cash Intra
M5: Back to Main Page
A6: FOR INTRA DAY TRADING | K6: =Main!B10 -> 2023-06-28
A8: Sr.no | C8: CLOSE RATE | D8: Pivot Point | E8: Supports | H8: Resistances
E9: S1 | F9: S2 | G9: S3 | H9: R1 | I9: R2 | J9: R3 | K9: HIGH | L9: LOW | M9: Total Trade Quanity in Lakhs
A10: 1 | B10: Nifty 50 | C10: 18817.40 | D10: 18786.97 | E10: 18744.68 | F10: 18671.97 | G10: 18629.68 | H10: 18859.68 | I10: 18901.97 | J10: 18974.68 | K10: 18829.25 | L10: 18714.25
A11: 2 | B11: Nifty Bank | C11: 44121.50 | D11: 44003.10 | E11: 43811.55 | F11: 43501.60 | G11: 43310.05 | H11: 44313.05 | I11: 44504.60 | J11: 44814.55 | K11: 44194.65 | L11: 43693.15
A12: 3 | B12: Nifty CPSE | C12: 3181.50 | D12: 3185.90 | E12: 3171.70 | F12: 3161.90 | G12: 3147.70 | H12: 3195.70 | I12: 3209.90 | J12: 3219.70 | K12: 3200.10 | L12: 3176.10
A13: 4 | B13: Nifty Infra | C13: 5634.85 | D13: 5632.40 | E13: 5623.20 | F13: 5611.55 | G13: 5602.35 | H13: 5644.05 | I13: 5653.25 | J13: 5664.90 | K13: 5641.60 | L13: 5620.75
A14: 5 | B14: Nifty IT | C14: 28800.15 | D14: 28750.82 | E14: 28679.78 | F14: 28559.42 | G14: 28488.38 | H14: 28871.18 | I14: 28942.22 | J14: 29062.58 | K14: 28821.85 | L14: 28630.45
A15: 6 | B15: Nifty PSE | C15: 4970.10 | D15: 4973.15 | E15: 4959.25 | F15: 4948.40 | G15: 4934.50 | H15: 4984.00 | I15: 4997.90 | J15: 5008.75 | K15: 4987.05 | L15: 4962.30
A16: 7 | B16: Nifty Midcap 50 | C16: 9945.10 | D16: 9934.48 | E16: 9911.42 | F16: 9877.73 | G16: 9854.67 | H16: 9968.17 | I16: 9991.23 | J16: 10024.92 | K16: 9957.55 | L16: 9900.80
A17: 8 | B17: ABB | C17: 4294.5 | D17: 4303.83 | E17: 4260.67 | F17: 4226.83 | G17: 4183.67 | H17: 4337.67 | I17: 4380.83 | J17: 4414.67 | K17: 4347 | L17: 4270 | M17: 2.17841
A18: 9 | B18: ABBOTINDIA | C18: 22707.8 | D18: 22785.68 | E18: 22554.17 | F18: 22400.53 | G18: 22169.02 | H18: 22939.32 | I18: 23170.83 | J18: 23324.47 | K18: 23017.2 | L18: 22632.05 | M18: 0.18854
A19: 10 | B19: ABCAPITAL | C19: 192.3 | D19: 188.47 | E19: 183.63 | F19: 174.97 | G19: 170.13 | H19: 197.13 | I19: 201.97 | J19: 210.63 | K19: 193.3 | L19: 179.8 | M19: 290.42894
A20: 11 | B20: ABFRL | C20: 210.9 | D20: 210.57 | E20: 207.83 | F20: 204.77 | G20: 202.03 | H20: 213.63 | I20: 216.37 | J20: 219.43 | K20: 213.3 | L20: 207.5 | M20: 40.6287
A21: 12 | B21: ACC | C21: 1788.6 | D21: 1788.70 | E21: 1775.40 | F21: 1762.20 | G21: 1748.90 | H21: 1801.90 | I21: 1815.20 | J21: 1828.40 | K21: 1802 | L21: 1775.5 | M21: 6.98909
A22: 13 | B22: ADANIENT | C22: 2284.45 | D22: 2299.77 | E22: 2255.68 | F22: 2226.92 | G22: 2182.83 | H22: 2328.53 | I22: 2372.62 | J22: 2401.38 | K22: 2343.85 | L22: 2271 | M22: 33.61053
A23: 14 | B23: ADANIGREEN | C23: 959.55 | D23: 964.50 | E23: 951.15 | F23: 942.75 | G23: 929.40 | H23: 972.90 | I23: 986.25 | J23: 994.65 | K23: 977.85 | L23: 956.1 | M23: 4.1594
A24: 15 | B24: ADANIPORTS | C24: 720.25 | D24: 722.23 | E24: 714.02 | F24: 707.78 | G24: 699.57 | H24: 728.47 | I24: 736.68 | J24: 742.92 | K24: 730.45 | L24: 716 | M24: 69.35089
A25: 16 | B25: ADANIPOWER | C25: 253.1 | D25: 254.37 | E25: 250.78 | F25: 248.47 | G25: 244.88 | H25: 256.68 | I25: 260.27 | J25: 262.58 | K25: 257.95 | L25: 252.05 | M25: 27.74315
A26: 17 | B26: ADANITRANS | C26: 773.2 | D26: 776.37 | E26: 767.83 | F26: 762.47 | G26: 753.93 | H26: 781.73 | I26: 790.27 | J26: 795.63 | K26: 784.9 | L26: 771 | M26: 5.14889
A27: 18 | B27: ALKEM | C27: 3395.45 | D27: 3403.47 | E27: 3378.98 | F27: 3362.52 | G27: 3338.03 | H27: 3419.93 | I27: 3444.42 | J27: 3460.88 | K27: 3427.95 | L27: 3387 | M27: 1.49706
A28: 19 | B28: AMBUJACEM | C28: 433.85 | D28: 435.88 | E28: 431.12 | F28: 428.38 | G28: 423.62 | H28: 438.62 | I28: 443.38 | J28: 446.12 | K28: 440.65 | L28: 433.15 | M28: 30.22273
A29: 20 | B29: APOLLOHOSP | C29: 5142.8 | D29: 5109.92 | E29: 5069.83 | F29: 4996.87 | G29: 4956.78 | H29: 5182.88 | I29: 5222.97 | J29: 5295.93 | K29: 5150 | L29: 5036.95 | M29: 5.56456
A30: 21 | B30: APOLLOTYRE | C30: 399.15 | D30: 402.30 | E30: 394.65 | F30: 390.15 | G30: 382.50 | H30: 406.80 | I30: 414.45 | J30: 418.95 | K30: 409.95 | L30: 397.8 | M30: 32.27313
A31: 22 | B31: ASHOKLEY | C31: 163.6 | D31: 164.12 | E31: 162.43 | F31: 161.27 | G31: 159.58 | H31: 165.28 | I31: 166.97 | J31: 168.13 | K31: 165.8 | L31: 162.95 | M31: 71.15446
A32: 23 | B32: ASIANPAINT | C32: 3326 | D32: 3314.62 | E32: 3284.73 | F32: 3243.47 | G32: 3213.58 | H32: 3355.88 | I32: 3385.77 | J32: 3427.03 | K32: 3344.5 | L32: 3273.35 | M32: 9.14141
A33: 24 | B33: ASTRAL | C33: 1954.6 | D33: 1959.10 | E33: 1938.20 | F33: 1921.80 | G33: 1900.90 | H33: 1975.50 | I33: 1996.40 | J33: 2012.80 | K33: 1980 | L33: 1942.7 | M33: 5.42165
A34: 25 | B34: ATGL | C34: 641.5 | D34: 644.17 | E34: 636.33 | F34: 631.17 | G34: 623.33 | H34: 649.33 | I34: 657.17 | J34: 662.33 | K34: 652 | L34: 639 | M34: 5.9169
A35: 26 | B35: AUBANK | C35: 749.8 | D35: 749.83 | E35: 744.32 | F35: 738.83 | G35: 733.32 | H35: 755.32 | I35: 760.83 | J35: 766.32 | K35: 755.35 | L35: 744.35 | M35: 9.07052
A36: 27 | B36: AUROPHARMA | C36: 718.2 | D36: 719.48 | E36: 713.72 | F36: 709.23 | G36: 703.47 | H36: 723.97 | I36: 729.73 | J36: 734.22 | K36: 725.25 | L36: 715 | M36: 14.29322
A37: 28 | B37: AWL | C37: 406.55 | D37: 407.95 | E37: 404.60 | F37: 402.65 | G37: 399.30 | H37: 409.90 | I37: 413.25 | J37: 415.20 | K37: 411.3 | L37: 406 | M37: 6.09697
A38: 29 | B38: AXISBANK | C38: 973.25 | D38: 970.02 | E38: 964.03 | F38: 954.82 | G38: 948.83 | H38: 979.23 | I38: 985.22 | J38: 994.43 | K38: 976 | L38: 960.8 | M38: 69.21886
A39: 30 | B39: BAJAJ-AUTO | C39: 4618.05 | D39: 4635.57 | E39: 4592.48 | F39: 4566.92 | G39: 4523.83 | H39: 4661.13 | I39: 4704.22 | J39: 4729.78 | K39: 4678.65 | L39: 4610 | M39: 4.44793
A40: 31 | B40: BAJAJFINSV | C40: 1522.95 | D40: 1517.77 | E40: 1508.18 | F40: 1493.42 | G40: 1483.83 | H40: 1532.53 | I40: 1542.12 | J40: 1556.88 | K40: 1527.35 | L40: 1503 | M40: 7.63062
A41: 32 | B41: BAJAJHLDNG | C41: 6960.15 | D41: 6962.40 | E41: 6922.80 | F41: 6885.45 | G41: 6845.85 | H41: 6999.75 | I41: 7039.35 | J41: 7076.70 | K41: 7002 | L41: 6925.05 | M41: 0.06752
A42: 33 | B42: BAJFINANCE | C42: 7019.25 | D42: 7001.08 | E42: 6972.17 | F42: 6925.08 | G42: 6896.17 | H42: 7048.17 | I42: 7077.08 | J42: 7124.17 | K42: 7030 | L42: 6954 | M42: 7.09789
A43: 34 | B43: BALKRISIND | C43: 2359.65 | D43: 2374.17 | E43: 2335.43 | F43: 2311.22 | G43: 2272.48 | H43: 2398.38 | I43: 2437.12 | J43: 2461.33 | K43: 2412.9 | L43: 2349.95 | M43: 1.5359
A44: 35 | B44: BANDHANBNK | C44: 238 | D44: 238.48 | E44: 236.12 | F44: 234.23 | G44: 231.87 | H44: 240.37 | I44: 242.73 | J44: 244.62 | K44: 240.85 | L44: 236.6 | M44: 51.07464
A45: 36 | B45: BANKBARODA | C45: 190.95 | D45: 191.20 | E45: 190.30 | F45: 189.65 | G45: 188.75 | H45: 191.85 | I45: 192.75 | J45: 193.40 | K45: 192.1 | L45: 190.55 | M45: 119.63762
A46: 37 | B46: BANKINDIA | C46: 72.35 | D46: 71.82 | E46: 71.03 | F46: 69.72 | G46: 68.93 | H46: 73.13 | I46: 73.92 | J46: 75.23 | K46: 72.6 | L46: 70.5 | M46: 62.69307
A47: 38 | B47: BATAINDIA | C47: 1662.85 | D47: 1659.15 | E47: 1645.35 | F47: 1627.85 | G47: 1614.05 | H47: 1676.65 | I47: 1690.45 | J47: 1707.95 | K47: 1672.95 | L47: 1641.65 | M47: 5.37172
A48: 39 | B48: BEL | C48: 118.4 | D48: 119.63 | E48: 116.67 | F48: 114.93 | G48: 111.97 | H48: 121.37 | I48: 124.33 | J48: 126.07 | K48: 122.6 | L48: 117.9 | M48: 190.93714
A49: 40 | B49: BERGEPAINT | C49: 678.55 | D49: 678.32 | E49: 672.88 | F49: 667.22 | G49: 661.78 | H49: 683.98 | I49: 689.42 | J49: 695.08 | K49: 683.75 | L49: 672.65 | M49: 5.00458
A50: 41 | B50: BHARATFORG | C50: 819.75 | D50: 818.17 | E50: 812.58 | F50: 805.42 | G50: 799.83 | H50: 825.33 | I50: 830.92 | J50: 838.08 | K50: 823.75 | L50: 811 | M50: 5.78957
A51: 42 | B51: BHARTIARTL | C51: 864.9 | D51: 863.28 | E51: 855.22 | F51: 845.53 | G51: 837.47 | H51: 872.97 | I51: 881.03 | J51: 890.72 | K51: 871.35 | L51: 853.6 | M51: 55.33649
A52: 43 | B52: BHEL | C52: 84.35 | D52: 84.60 | E52: 83.85 | F52: 83.35 | G52: 82.60 | H52: 85.10 | I52: 85.85 | J52: 86.35 | K52: 85.35 | L52: 84.1 | M52: 88.59692
A53: 44 | B53: BIOCON | C53: 243.65 | D53: 243.07 | E53: 240.73 | F53: 237.82 | G53: 235.48 | H53: 245.98 | I53: 248.32 | J53: 251.23 | K53: 245.4 | L53: 240.15 | M53: 27.72073
A54: 45 | B54: BOSCHLTD | C54: 18572.6 | D54: 18594.00 | E54: 18463.60 | F54: 18354.60 | G54: 18224.20 | H54: 18703.00 | I54: 18833.40 | J54: 18942.40 | K54: 18724.4 | L54: 18485 | M54: 0.1036
A55: 46 | B55: BPCL | C55: 360.35 | D55: 360.68 | E55: 357.67 | F55: 354.98 | G55: 351.97 | H55: 363.37 | I55: 366.38 | J55: 369.07 | K55: 363.7 | L55: 358 | M55: 33.92266
A56: 47 | B56: BRITANNIA | C56: 4954.25 | D56: 4980.40 | E56: 4923.00 | F56: 4891.75 | G56: 4834.35 | H56: 5011.65 | I56: 5069.05 | J56: 5100.30 | K56: 5037.8 | L56: 4949.15 | M56: 1.75475
A57: 48 | B57: CANBK | C57: 296.05 | D57: 295.73 | E57: 294.47 | F57: 292.88 | G57: 291.62 | H57: 297.32 | I57: 298.58 | J57: 300.17 | K57: 297 | L57: 294.15 | M57: 41.82838
A58: 49 | B58: CGPOWER | C58: 373.3 | D58: 374.35 | E58: 369.95 | F58: 366.60 | G58: 362.20 | H58: 377.70 | I58: 382.10 | J58: 385.45 | K58: 378.75 | L58: 371 | M58: 6.29123
A59: 50 | B59: CHOLAFIN | C59: 1093.85 | D59: 1087.77 | E59: 1077.53 | F59: 1061.22 | G59: 1050.98 | H59: 1104.08 | I59: 1114.32 | J59: 1130.63 | K59: 1098 | L59: 1071.45 | M59: 22.66411
A60: 51 | B60: CIPLA | C60: 1009.25 | D60: 1013.45 | E60: 1000.80 | F60: 992.35 | G60: 979.70 | H60: 1021.90 | I60: 1034.55 | J60: 1043.00 | K60: 1026.1 | L60: 1005 | M60: 16.51238
A61: 52 | B61: COALINDIA | C61: 225.15 | D61: 225.28 | E61: 223.77 | F61: 222.38 | G61: 220.87 | H61: 226.67 | I61: 228.18 | J61: 229.57 | K61: 226.8 | L61: 223.9 | M61: 62.82912
A62: 53 | B62: COFORGE | C62: 4695.45 | D62: 4675.28 | E62: 4636.17 | F62: 4576.88 | G62: 4537.77 | H62: 4734.57 | I62: 4773.68 | J62: 4832.97 | K62: 4714.4 | L62: 4616 | M62: 3.53159
A63: 54 | B63: COLPAL | C63: 1692.5 | D63: 1685.48 | E63: 1675.47 | F63: 1658.43 | G63: 1648.42 | H63: 1702.52 | I63: 1712.53 | J63: 1729.57 | K63: 1695.5 | L63: 1668.45 | M63: 6.08262
A64: 55 | B64: CONCOR | C64: 648.75 | D64: 647.92 | E64: 642.28 | F64: 635.82 | G64: 630.18 | H64: 654.38 | I64: 660.02 | J64: 666.48 | K64: 653.55 | L64: 641.45 | M64: 10.23867
A65: 56 | B65: COROMANDEL | C65: 939.4 | D65: 940.97 | E65: 930.93 | F65: 922.47 | G65: 912.43 | H65: 949.43 | I65: 959.47 | J65: 967.93 | K65: 951 | L65: 932.5 | M65: 3.90876
A66: 57 | B66: CROMPTON | C66: 289.95 | D66: 289.08 | E66: 287.17 | F66: 284.38 | G66: 282.47 | H66: 291.87 | I66: 293.78 | J66: 296.57 | K66: 291 | L66: 286.3 | M66: 15.76018
A67: 58 | B67: CUMMINSIND | C67: 1882.8 | D67: 1876.38 | E67: 1862.77 | F67: 1842.73 | G67: 1829.12 | H67: 1896.42 | I67: 1910.03 | J67: 1930.07 | K67: 1890 | L67: 1856.35 | M67: 4.7078
A68: 59 | B68: DABUR | C68: 570.6 | D68: 568.78 | E68: 565.87 | F68: 561.13 | G68: 558.22 | H68: 573.52 | I68: 576.43 | J68: 581.17 | K68: 571.7 | L68: 564.05 | M68: 19.00084
A69: 60 | B69: DALBHARAT | C69: 2166.05 | D69: 2186.32 | E69: 2142.63 | F69: 2119.22 | G69: 2075.53 | H69: 2209.73 | I69: 2253.42 | J69: 2276.83 | K69: 2230 | L69: 2162.9 | M69: 2.37552
A70: 61 | B70: DEEPAKNTR | C70: 2199.35 | D70: 2211.75 | E70: 2177.60 | F70: 2155.85 | G70: 2121.70 | H70: 2233.50 | I70: 2267.65 | J70: 2289.40 | K70: 2245.9 | L70: 2190 | M70: 3.04339
A71: 62 | B71: DELHIVERY | C71: 381.7 | D71: 382.08 | E71: 378.17 | F71: 374.63 | G71: 370.72 | H71: 385.62 | I71: 389.53 | J71: 393.07 | K71: 386 | L71: 378.55 | M71: 15.34859
A72: 63 | B72: DEVYANI | C72: 189.85 | D72: 191.22 | E72: 186.63 | F72: 183.42 | G72: 178.83 | H72: 194.43 | I72: 199.02 | J72: 202.23 | K72: 195.8 | L72: 188 | M72: 22.93421
A73: 64 | B73: DIVISLAB | C73: 3583.3 | D73: 3570.75 | E73: 3547.50 | F73: 3511.70 | G73: 3488.45 | H73: 3606.55 | I73: 3629.80 | J73: 3665.60 | K73: 3594 | L73: 3534.95 | M73: 3.61257
A74: 65 | B74: DIXON | C74: 4390.9 | D74: 4420.27 | E74: 4332.43 | F74: 4273.97 | G74: 4186.13 | H74: 4478.73 | I74: 4566.57 | J74: 4625.03 | K74: 4508.1 | L74: 4361.8 | M74: 5.25573
A75: 66 | B75: DLF | C75: 483.85 | D75: 483.17 | E75: 479.38 | F75: 474.92 | G75: 471.13 | H75: 487.63 | I75: 491.42 | J75: 495.88 | K75: 486.95 | L75: 478.7 | M75: 27.49294
A76: 67 | B76: DMART | C76: 3872.1 | D76: 3877.68 | E76: 3835.42 | F76: 3798.73 | G76: 3756.47 | H76: 3914.37 | I76: 3956.63 | J76: 3993.32 | K76: 3919.95 | L76: 3841 | M76: 4.99702
A77: 68 | B77: DRREDDY | C77: 5025.6 | D77: 5042.72 | E77: 4998.88 | F77: 4972.17 | G77: 4928.33 | H77: 5069.43 | I77: 5113.27 | J77: 5139.98 | K77: 5086.55 | L77: 5016 | M77: 6.66063
A78: 69 | B78: EICHERMOT | C78: 3535.75 | D78: 3545.65 | E78: 3509.10 | F78: 3482.45 | G78: 3445.90 | H78: 3572.30 | I78: 3608.85 | J78: 3635.50 | K78: 3582.2 | L78: 3519 | M78: 3.36518
A79: 70 | B79: ESCORTS | C79: 2200.35 | D79: 2211.70 | E79: 2183.65 | F79: 2166.95 | G79: 2138.90 | H79: 2228.40 | I79: 2256.45 | J79: 2273.15 | K79: 2239.75 | L79: 2195 | M79: 3.94445
A80: 71 | B80: FEDERALBNK | C80: 123.05 | D80: 122.70 | E80: 121.80 | F80: 120.55 | G80: 119.65 | H80: 123.95 | I80: 124.85 | J80: 126.10 | K80: 123.6 | L80: 121.45 | M80: 97.68441
A81: 72 | B81: FLUOROCHEM | C81: 3009.05 | D81: 3023.02 | E81: 2991.03 | F81: 2973.02 | G81: 2941.03 | H81: 3041.03 | I81: 3073.02 | J81: 3091.03 | K81: 3055 | L81: 3005 | M81: 0.51709
A82: 73 | B82: FORTIS | C82: 304 | D82: 305.70 | E82: 301.70 | F82: 299.40 | G82: 295.40 | H82: 308.00 | I82: 312.00 | J82: 314.30 | K82: 309.7 | L82: 303.4 | M82: 12.88772
A83: 74 | B83: GAIL | C83: 104.3 | D83: 104.48 | E83: 103.92 | F83: 103.53 | G83: 102.97 | H83: 104.87 | I83: 105.43 | J83: 105.82 | K83: 105.05 | L83: 104.1 | M83: 99.09567
A84: 75 | B84: GLAND | C84: 1014.95 | D84: 1016.87 | E84: 1008.08 | F84: 1001.22 | G84: 992.43 | H84: 1023.73 | I84: 1032.52 | J84: 1039.38 | K84: 1025.65 | L84: 1010 | M84: 3.87094
A85: 76 | B85: GODREJCP | C85: 1037.35 | D85: 1039.97 | E85: 1029.93 | F85: 1022.52 | G85: 1012.48 | H85: 1047.38 | I85: 1057.42 | J85: 1064.83 | K85: 1050 | L85: 1032.55 | M85: 6.64187
A86: 77 | B86: GODREJPROP | C86: 1563.3 | D86: 1554.62 | E86: 1543.23 | F86: 1523.17 | G86: 1511.78 | H86: 1574.68 | I86: 1586.07 | J86: 1606.13 | K86: 1566 | L86: 1534.55 | M86: 7.29872
A87: 78 | B87: GRASIM | C87: 1733.15 | D87: 1727.68 | E87: 1718.87 | F87: 1704.58 | G87: 1695.77 | H87: 1741.97 | I87: 1750.78 | J87: 1765.07 | K87: 1736.5 | L87: 1713.4 | M87: 3.37457
A88: 79 | B88: GUJGASLTD | C88: 468.15 | D88: 467.93 | E88: 465.97 | F88: 463.78 | G88: 461.82 | H88: 470.12 | I88: 472.08 | J88: 474.27 | K88: 469.9 | L88: 465.75 | M88: 4.87725
A89: 80 | B89: HAL | C89: 3661.1 | D89: 3694.77 | E89: 3619.53 | F89: 3577.97 | G89: 3502.73 | H89: 3736.33 | I89: 3811.57 | J89: 3853.13 | K89: 3770 | L89: 3653.2 | M89: 21.9527
A90: 81 | B90: HAVELLS | C90: 1285.9 | D90: 1291.42 | E90: 1277.88 | F90: 1269.87 | G90: 1256.33 | H90: 1299.43 | I90: 1312.97 | J90: 1320.98 | K90: 1304.95 | L90: 1283.4 | M90: 9.53208
A91: 82 | B91: HCLTECH | C91: 1170 | D91: 1168.22 | E91: 1161.98 | F91: 1153.97 | G91: 1147.73 | H91: 1176.23 | I91: 1182.47 | J91: 1190.48 | K91: 1174.45 | L91: 1160.2 | M91: 15.04039
A92: 83 | B92: HDFC | C92: 2761.85 | D92: 2755.08 | E92: 2728.62 | F92: 2695.38 | G92: 2668.92 | H92: 2788.32 | I92: 2814.78 | J92: 2848.02 | K92: 2781.55 | L92: 2721.85 | M92: 82.46786
A93: 84 | B93: HDFCAMC | C93: 2052.9 | D93: 2036.80 | E93: 2015.10 | F93: 1977.30 | G93: 1955.60 | H93: 2074.60 | I93: 2096.30 | J93: 2134.10 | K93: 2058.5 | L93: 1999 | M93: 10.52054
A94: 85 | B94: HDFCBANK | C94: 1658.6 | D94: 1656.68 | E94: 1640.47 | F94: 1622.33 | G94: 1606.12 | H94: 1674.82 | I94: 1691.03 | J94: 1709.17 | K94: 1672.9 | L94: 1638.55 | M94: 169.15932
A95: 86 | B95: HDFCLIFE | C95: 667.2 | D95: 659.43 | E95: 644.87 | F95: 622.53 | G95: 607.97 | H95: 681.77 | I95: 696.33 | J95: 718.67 | K95: 674 | L95: 637.1 | M95: 300.50877
A96: 87 | B96: HEROMOTOCO | C96: 2844.1 | D96: 2846.15 | E96: 2825.40 | F96: 2806.70 | G96: 2785.95 | H96: 2864.85 | I96: 2885.60 | J96: 2904.30 | K96: 2866.9 | L96: 2827.45 | M96: 4.15101
A97: 88 | B97: HINDALCO | C97: 417.75 | D97: 417.02 | E97: 414.73 | F97: 411.72 | G97: 409.43 | H97: 420.03 | I97: 422.32 | J97: 425.33 | K97: 419.3 | L97: 414 | M97: 30.47635
A98: 89 | B98: HINDPETRO | C98: 267 | D98: 269.17 | E98: 263.68 | F98: 260.37 | G98: 254.88 | H98: 272.48 | I98: 277.97 | J98: 281.28 | K98: 274.65 | L98: 265.85 | M98: 29.79345
A99: 90 | B99: HINDUNILVR | C99: 2651.35 | D99: 2649.65 | E99: 2637.70 | F99: 2624.05 | G99: 2612.10 | H99: 2663.30 | I99: 2675.25 | J99: 2688.90 | K99: 2661.6 | L99: 2636 | M99: 6.87747
A100: 91 | B100: HINDZINC | C100: 305.25 | D100: 305.92 | E100: 304.33 | F100: 303.42 | G100: 301.83 | H100: 306.83 | I100: 308.42 | J100: 309.33 | K100: 307.5 | L100: 305 | M100: 3.62332
A101: 92 | B101: HONAUT | C101: 41536.2 | D101: 41546.10 | E101: 41292.20 | F101: 41048.20 | G101: 40794.30 | H101: 41790.10 | I101: 42044.00 | J101: 42288.00 | K101: 41800 | L101: 41302.1 | M101: 0.01564
A102: 93 | B102: ICICIBANK | C102: 936.1 | D102: 932.75 | E102: 925.55 | F102: 915.00 | G102: 907.80 | H102: 943.30 | I102: 950.50 | J102: 961.05 | K102: 939.95 | L102: 922.2 | M102: 134.22726
A103: 94 | B103: ICICIGI | C103: 1328.35 | D103: 1311.80 | E103: 1290.60 | F103: 1252.85 | G103: 1231.65 | H103: 1349.55 | I103: 1370.75 | J103: 1408.50 | K103: 1333 | L103: 1274.05 | M103: 16.34789
A104: 95 | B104: ICICIPRULI | C104: 580.1 | D104: 573.37 | E104: 564.73 | F104: 549.37 | G104: 540.73 | H104: 588.73 | I104: 597.37 | J104: 612.73 | K104: 582 | L104: 558 | M104: 24.61049
A105: 96 | B105: IDEA | C105: 7.5 | D105: 7.57 | E105: 7.33 | F105: 7.17 | G105: 6.93 | H105: 7.73 | I105: 7.97 | J105: 8.13 | K105: 7.8 | L105: 7.4 | M105: 1460.99646
A106: 97 | B106: IDFCFIRSTB | C106: 78.25 | D106: 78.60 | E106: 77.60 | F106: 76.95 | G106: 75.95 | H106: 79.25 | I106: 80.25 | J106: 80.90 | K106: 79.6 | L106: 77.95 | M106: 372.26897
A107: 98 | B107: IGL | C107: 475 | D107: 479.02 | E107: 470.03 | F107: 465.07 | G107: 456.08 | H107: 483.98 | I107: 492.97 | J107: 497.93 | K107: 488 | L107: 474.05 | M107: 14.29852
A108: 99 | B108: INDHOTEL | C108: 383.55 | D108: 382.97 | E108: 379.43 | F108: 375.32 | G108: 371.78 | H108: 387.08 | I108: 390.62 | J108: 394.73 | K108: 386.5 | L108: 378.85 | M108: 35.55619
A109: 100 | B109: INDIANB | C109: 278.5 | D109: 279.53 | E109: 275.57 | F109: 272.63 | G109: 268.67 | H109: 282.47 | I109: 286.43 | J109: 289.37 | K109: 283.5 | L109: 276.6 | M109: 8.06786
A110: 101 | B110: INDIGO | C110: 2529.75 | D110: 2514.40 | E110: 2484.35 | F110: 2438.95 | G110: 2408.90 | H110: 2559.80 | I110: 2589.85 | J110: 2635.25 | K110: 2544.45 | L110: 2469 | M110: 19.85055
A111: 102 | B111: INDUSINDBK | C111: 1315.95 | D111: 1311.42 | E111: 1301.88 | F111: 1287.82 | G111: 1278.28 | H111: 1325.48 | I111: 1335.02 | J111: 1349.08 | K111: 1320.95 | L111: 1297.35 | M111: 26.38788
A112: 103 | B112: INDUSTOWER | C112: 162.65 | D112: 163.88 | E112: 160.42 | F112: 158.18 | G112: 154.72 | H112: 166.12 | I112: 169.58 | J112: 171.82 | K112: 167.35 | L112: 161.65 | M112: 95.71105
A113: 104 | B113: INFY | C113: 1279.15 | D113: 1278.45 | E113: 1274.90 | F113: 1270.65 | G113: 1267.10 | H113: 1282.70 | I113: 1286.25 | J113: 1290.50 | K113: 1282 | L113: 1274.2 | M113: 32.40024
A114: 105 | B114: IOC | C114: 89.35 | D114: 89.58 | E114: 88.67 | F114: 87.98 | G114: 87.07 | H114: 90.27 | I114: 91.18 | J114: 91.87 | K114: 90.5 | L114: 88.9 | M114: 106.68117
A115: 106 | B115: IPCALAB | C115: 735.95 | D115: 735.32 | E115: 729.63 | F115: 723.32 | G115: 717.63 | H115: 741.63 | I115: 747.32 | J115: 753.63 | K115: 741 | L115: 729 | M115: 7.25414
A116: 107 | B116: IRCTC | C116: 630.6 | D116: 632.08 | E116: 627.67 | F116: 624.73 | G116: 620.32 | H116: 635.02 | I116: 639.43 | J116: 642.37 | K116: 636.5 | L116: 629.15 | M116: 8.71962
A117: 108 | B117: IRFC | C117: 32.7 | D117: 32.60 | E117: 32.20 | F117: 31.70 | G117: 31.30 | H117: 33.10 | I117: 33.50 | J117: 34.00 | K117: 33 | L117: 32.1 | M117: 236.52368
A118: 109 | B118: ITC | C118: 445.1 | D118: 445.15 | E118: 443.10 | F118: 441.10 | G118: 439.05 | H118: 447.15 | I118: 449.20 | J118: 451.20 | K118: 447.2 | L118: 443.15 | M118: 48.65596
A119: 110 | B119: JINDALSTEL | C119: 581.95 | D119: 579.02 | E119: 574.93 | F119: 567.92 | G119: 563.83 | H119: 586.03 | I119: 590.12 | J119: 597.13 | K119: 583.1 | L119: 572 | M119: 27.88196
A120: 111 | B120: JSWENERGY | C120: 270.85 | D120: 271.88 | E120: 268.07 | F120: 265.28 | G120: 261.47 | H120: 274.67 | I120: 278.48 | J120: 281.27 | K120: 275.7 | L120: 269.1 | M120: 20.05672
A121: 112 | B121: JSWSTEEL | C121: 762.5 | D121: 758.85 | E121: 752.70 | F121: 742.90 | G121: 736.75 | H121: 768.65 | I121: 774.80 | J121: 784.60 | K121: 765 | L121: 749.05 | M121: 27.83577
A122: 113 | B122: JUBLFOOD | C122: 494.2 | D122: 490.27 | E122: 484.28 | F122: 474.37 | G122: 468.38 | H122: 500.18 | I122: 506.17 | J122: 516.08 | K122: 496.25 | L122: 480.35 | M122: 21.35903
A123: 114 | B123: KOTAKBANK | C123: 1844.7 | D123: 1837.45 | E123: 1827.90 | F123: 1811.10 | G123: 1801.55 | H123: 1854.25 | I123: 1863.80 | J123: 1880.60 | K123: 1847 | L123: 1820.65 | M123: 21.38665
A124: 115 | B124: L&TFH | C124: 123.1 | D124: 121.10 | E124: 118.05 | F124: 113.00 | G124: 109.95 | H124: 126.15 | I124: 129.20 | J124: 134.25 | K124: 124.15 | L124: 116.05 | M124: 289.41272
A125: 116 | B125: LALPATHLAB | C125: 2220.05 | D125: 2204.83 | E125: 2180.22 | F125: 2140.38 | G125: 2115.77 | H125: 2244.67 | I125: 2269.28 | J125: 2309.12 | K125: 2229.45 | L125: 2165 | M125: 4.57887
A126: 117 | B126: LAURUSLABS | C126: 366.7 | D126: 366.70 | E126: 362.20 | F126: 357.70 | G126: 353.20 | H126: 371.20 | I126: 375.70 | J126: 380.20 | K126: 371.2 | L126: 362.2 | M126: 22.67261
A127: 118 | B127: LICHSGFIN | C127: 394.9 | D127: 393.40 | E127: 391.10 | F127: 387.30 | G127: 385.00 | H127: 397.20 | I127: 399.50 | J127: 403.30 | K127: 395.7 | L127: 389.6 | M127: 17.03586
A128: 119 | B128: LICI | C128: 616.8 | D128: 616.35 | E128: 612.20 | F128: 607.60 | G128: 603.45 | H128: 620.95 | I128: 625.10 | J128: 629.70 | K128: 620.5 | L128: 611.75 | M128: 9.75533
A129: 120 | B129: LT | C129: 2388.05 | D129: 2385.52 | E129: 2374.08 | F129: 2360.12 | G129: 2348.68 | H129: 2399.48 | I129: 2410.92 | J129: 2424.88 | K129: 2396.95 | L129: 2371.55 | M129: 10.12317
A130: 121 | B130: LTIM | C130: 5163.05 | D130: 5112.30 | E130: 5030.20 | F130: 4897.35 | G130: 4815.25 | H130: 5245.15 | I130: 5327.25 | J130: 5460.10 | K130: 5194.4 | L130: 4979.45 | M130: 7.71183
A131: 122 | B131: LTTS | C131: 3849.3 | D131: 3841.83 | E131: 3813.62 | F131: 3777.93 | G131: 3749.72 | H131: 3877.52 | I131: 3905.73 | J131: 3941.42 | K131: 3870.05 | L131: 3806.15 | M131: 2.13813
A132: 123 | B132: LUPIN | C132: 881.7 | D132: 882.20 | E132: 874.50 | F132: 867.30 | G132: 859.60 | H132: 889.40 | I132: 897.10 | J132: 904.30 | K132: 889.9 | L132: 875 | M132: 13.65308
A133: 124 | B133: M&M | C133: 1402.4 | D133: 1404.33 | E133: 1391.67 | F133: 1380.93 | G133: 1368.27 | H133: 1415.07 | I133: 1427.73 | J133: 1438.47 | K133: 1417 | L133: 1393.6 | M133: 27.37379
A134: 125 | B134: M&MFIN | C134: 317.35 | D134: 314.70 | E134: 311.55 | F134: 305.75 | G134: 302.60 | H134: 320.50 | I134: 323.65 | J134: 329.45 | K134: 317.85 | L134: 308.9 | M134: 27.31047
A135: 126 | B135: MARICO | C135: 528.85 | D135: 528.60 | E135: 525.50 | F135: 522.15 | G135: 519.05 | H135: 531.95 | I135: 535.05 | J135: 538.40 | K135: 531.7 | L135: 525.25 | M135: 14.12587
A136: 127 | B136: MARUTI | C136: 9461 | D136: 9452.02 | E136: 9404.03 | F136: 9347.07 | G136: 9299.08 | H136: 9508.98 | I136: 9556.97 | J136: 9613.93 | K136: 9500 | L136: 9395.05 | M136: 3.39375
A137: 128 | B137: MAXHEALTH | C137: 609.65 | D137: 610.78 | E137: 604.72 | F137: 599.78 | G137: 593.72 | H137: 615.72 | I137: 621.78 | J137: 626.72 | K137: 616.85 | L137: 605.85 | M137: 18.76097
A138: 129 | B138: MCDOWELL-N | C138: 910 | D138: 907.68 | E138: 899.57 | F138: 889.13 | G138: 881.02 | H138: 918.12 | I138: 926.23 | J138: 936.67 | K138: 915.8 | L138: 897.25 | M138: 7.84408
A139: 130 | B139: MFSL | C139: 776.4 | D139: 774.72 | E139: 750.43 | F139: 724.47 | G139: 700.18 | H139: 800.68 | I139: 824.97 | J139: 850.93 | K139: 799 | L139: 748.75 | M139: 11.90273
A140: 131 | B140: MOTHERSON | C140: 85.05 | D140: 85.07 | E140: 84.43 | F140: 83.82 | G140: 83.18 | H140: 85.68 | I140: 86.32 | J140: 86.93 | K140: 85.7 | L140: 84.45 | M140: 131.98896
A141: 132 | B141: MPHASIS | C141: 1839.25 | D141: 1831.55 | E141: 1821.10 | F141: 1802.95 | G141: 1792.50 | H141: 1849.70 | I141: 1860.15 | J141: 1878.30 | K141: 1842 | L141: 1813.4 | M141: 4.4334
A142: 133 | B142: MRF | C142: 99591.25 | D142: 99797.40 | E142: 99093.85 | F142: 98596.45 | G142: 97892.90 | H142: 100294.80 | I142: 100998.35 | J142: 101495.75 | K142: 100500.95 | L142: 99300 | M142: 0.07862
A143: 134 | B143: MSUMI | C143: 56.55 | D143: 56.52 | E143: 56.08 | F143: 55.62 | G143: 55.18 | H143: 56.98 | I143: 57.42 | J143: 57.88 | K143: 56.95 | L143: 56.05 | M143: 38.72933
A144: 135 | B144: MUTHOOTFIN | C144: 1238.1 | D144: 1234.78 | E144: 1226.82 | F144: 1215.53 | G144: 1207.57 | H144: 1246.07 | I144: 1254.03 | J144: 1265.32 | K144: 1242.75 | L144: 1223.5 | M144: 3.19748
A145: 136 | B145: NAUKRI | C145: 4391.8 | D145: 4406.93 | E145: 4359.87 | F145: 4327.93 | G145: 4280.87 | H145: 4438.87 | I145: 4485.93 | J145: 4517.87 | K145: 4454 | L145: 4375 | M145: 2.25231
A146: 137 | B146: NAVINFLUOR | C146: 4422.9 | D146: 4445.15 | E146: 4392.30 | F146: 4361.70 | G146: 4308.85 | H146: 4475.75 | I146: 4528.60 | J146: 4559.20 | K146: 4498 | L146: 4414.55 | M146: 0.76029
A147: 138 | B147: NESTLEIND | C147: 22637.25 | D147: 22670.78 | E147: 22471.57 | F147: 22305.88 | G147: 22106.67 | H147: 22836.47 | I147: 23035.68 | J147: 23201.37 | K147: 22870 | L147: 22505.1 | M147: 0.44133
A148: 139 | B148: NHPC | C148: 45.9 | D148: 46.03 | E148: 45.42 | F148: 44.93 | G148: 44.32 | H148: 46.52 | I148: 47.13 | J148: 47.62 | K148: 46.65 | L148: 45.55 | M148: 240.12386
A149: 140 | B149: NMDC | C149: 104.5 | D149: 104.88 | E149: 103.87 | F149: 103.23 | G149: 102.22 | H149: 105.52 | I149: 106.53 | J149: 107.17 | K149: 105.9 | L149: 104.25 | M149: 83.39738
A150: 141 | B150: NTPC | C150: 186.05 | D150: 185.93 | E150: 184.92 | F150: 183.78 | G150: 182.77 | H150: 187.07 | I150: 188.08 | J150: 189.22 | K150: 186.95 | L150: 184.8 | M150: 67.87438
A151: 142 | B151: NYKAA | C151: 148.1 | D151: 148.38 | E151: 146.57 | F151: 145.03 | G151: 143.22 | H151: 149.92 | I151: 151.73 | J151: 153.27 | K151: 150.2 | L151: 146.85 | M151: 50.27239
A152: 143 | B152: OBEROIRLTY | C152: 984.15 | D152: 984.35 | E152: 976.05 | F152: 967.95 | G152: 959.65 | H152: 992.45 | I152: 1000.75 | J152: 1008.85 | K152: 992.65 | L152: 976.25 | M152: 5.11927
A153: 144 | B153: OFSS | C153: 3805 | D153: 3815.00 | E153: 3785.40 | F153: 3765.80 | G153: 3736.20 | H153: 3834.60 | I153: 3864.20 | J153: 3883.80 | K153: 3844.6 | L153: 3795.4 | M153: 0.5475
A154: 145 | B154: OIL | C154: 244.55 | D154: 243.75 | E154: 241.90 | F154: 239.25 | G154: 237.40 | H154: 246.40 | I154: 248.25 | J154: 250.90 | K154: 245.6 | L154: 241.1 | M154: 14.1499
A155: 146 | B155: ONGC | C155: 157.85 | D155: 158.02 | E155: 157.18 | F155: 156.52 | G155: 155.68 | H155: 158.68 | I155: 159.52 | J155: 160.18 | K155: 158.85 | L155: 157.35 | M155: 97.30174
A156: 147 | B156: PAGEIND | C156: 37916.45 | D156: 37951.13 | E156: 37768.92 | F156: 37621.38 | G156: 37439.17 | H156: 38098.67 | I156: 38280.88 | J156: 38428.42 | K156: 38133.35 | L156: 37803.6 | M156: 0.13877
A157: 148 | B157: PATANJALI | C157: 1188.45 | D157: 1184.23 | E157: 1169.47 | F157: 1150.48 | G157: 1135.72 | H157: 1203.22 | I157: 1217.98 | J157: 1236.97 | K157: 1199 | L157: 1165.25 | M157: 1.56102
A158: 149 | B158: PAYTM | C158: 852.5 | D158: 849.65 | E158: 841.40 | F158: 830.30 | G158: 822.05 | H158: 860.75 | I158: 869.00 | J158: 880.10 | K158: 857.9 | L158: 838.55 | M158: 22.32821
A159: 150 | B159: PEL | C159: 907.7 | D159: 903.90 | E159: 883.80 | F159: 859.90 | G159: 839.80 | H159: 927.80 | I159: 947.90 | J159: 971.80 | K159: 924 | L159: 880 | M159: 42.80556
A160: 151 | B160: PERSISTENT | C160: 4891.9 | D160: 4893.02 | E160: 4854.13 | F160: 4816.37 | G160: 4777.48 | H160: 4930.78 | I160: 4969.67 | J160: 5007.43 | K160: 4931.9 | L160: 4855.25 | M160: 1.80714
A161: 152 | B161: PETRONET | C161: 220.1 | D161: 220.10 | E161: 219.10 | F161: 218.10 | G161: 217.10 | H161: 221.10 | I161: 222.10 | J161: 223.10 | K161: 221.1 | L161: 219.1 | M161: 10.43449
A162: 153 | B162: PFC | C162: 207.85 | D162: 205.90 | E162: 202.85 | F162: 197.85 | G162: 194.80 | H162: 210.90 | I162: 213.95 | J162: 218.95 | K162: 208.95 | L162: 200.9 | M162: 152.37777
A163: 154 | B163: PGHH | C163: 14386.1 | D163: 14350.37 | E163: 14175.73 | F163: 13965.37 | G163: 13790.73 | H163: 14560.73 | I163: 14735.37 | J163: 14945.73 | K163: 14525 | L163: 14140 | M163: 0.05212
A164: 155 | B164: PIDILITIND | C164: 2621.35 | D164: 2631.50 | E164: 2606.80 | F164: 2592.25 | G164: 2567.55 | H164: 2646.05 | I164: 2670.75 | J164: 2685.30 | K164: 2656.2 | L164: 2616.95 | M164: 3.62724
A165: 156 | B165: PIIND | C165: 3838.05 | D165: 3838.02 | E165: 3805.03 | F165: 3772.02 | G165: 3739.03 | H165: 3871.03 | I165: 3904.02 | J165: 3937.03 | K165: 3871 | L165: 3805 | M165: 1.59228
A166: 157 | B166: PNB | C166: 50.85 | D166: 50.75 | E166: 50.50 | F166: 50.15 | G166: 49.90 | H166: 51.10 | I166: 51.35 | J166: 51.70 | K166: 51 | L166: 50.4 | M166: 195.97683
A167: 158 | B167: POLICYBZR | C167: 716.65 | D167: 715.18 | E167: 698.47 | F167: 680.28 | G167: 663.57 | H167: 733.37 | I167: 750.08 | J167: 768.27 | K167: 731.9 | L167: 697 | M167: 51.50226
A168: 159 | B168: POLYCAB | C168: 3475.1 | D168: 3497.35 | E168: 3439.75 | F168: 3404.40 | G168: 3346.80 | H168: 3532.70 | I168: 3590.30 | J168: 3625.65 | K168: 3554.95 | L168: 3462 | M168: 3.46501
A169: 160 | B169: POONAWALLA | C169: 341.3 | D169: 340.83 | E169: 338.37 | F169: 335.43 | G169: 332.97 | H169: 343.77 | I169: 346.23 | J169: 349.17 | K169: 343.3 | L169: 337.9 | M169: 8.88094
A170: 161 | B170: POWERGRID | C170: 249.55 | D170: 249.08 | E170: 248.12 | F170: 246.68 | G170: 245.72 | H170: 250.52 | I170: 251.48 | J170: 252.92 | K170: 250.05 | L170: 247.65 | M170: 83.57181
A171: 162 | B171: PRESTIGE | C171: 585.55 | D171: 582.72 | E171: 576.03 | F171: 566.52 | G171: 559.83 | H171: 592.23 | I171: 598.92 | J171: 608.43 | K171: 589.4 | L171: 573.2 | M171: 3.66224
A172: 163 | B172: RAMCOCEM | C172: 929.45 | D172: 934.13 | E172: 919.82 | F172: 910.18 | G172: 895.87 | H172: 943.77 | I172: 958.08 | J172: 967.72 | K172: 948.45 | L172: 924.5 | M172: 6.79072
A173: 164 | B173: RECLTD | C173: 161 | D173: 159.73 | E173: 157.87 | F173: 154.73 | G173: 152.87 | H173: 162.87 | I173: 164.73 | J173: 167.87 | K173: 161.6 | L173: 156.6 | M173: 138.63522
A174: 165 | B174: RELIANCE | C174: 2496.45 | D174: 2497.53 | E174: 2485.57 | F174: 2474.68 | G174: 2462.72 | H174: 2508.42 | I174: 2520.38 | J174: 2531.27 | K174: 2509.5 | L174: 2486.65 | M174: 44.71687
A175: 166 | B175: SAIL | C175: 85 | D175: 84.95 | E175: 84.30 | F175: 83.60 | G175: 82.95 | H175: 85.65 | I175: 86.30 | J175: 87.00 | K175: 85.6 | L175: 84.25 | M175: 103.20705
A176: 167 | B176: SBICARD | C176: 860.9 | D176: 857.45 | E176: 851.50 | F176: 842.10 | G176: 836.15 | H176: 866.85 | I176: 872.80 | J176: 882.20 | K176: 863.4 | L176: 848.05 | M176: 14.44296
A177: 168 | B177: SBILIFE | C177: 1286.4 | D177: 1278.18 | E177: 1266.37 | F177: 1246.33 | G177: 1234.52 | H177: 1298.22 | I177: 1310.03 | J177: 1330.07 | K177: 1290 | L177: 1258.15 | M177: 16.50539
A178: 169 | B178: SBIN | C178: 566.1 | D178: 563.23 | E178: 558.52 | F178: 550.93 | G178: 546.22 | H178: 570.82 | I178: 575.53 | J178: 583.12 | K178: 567.95 | L178: 555.65 | M178: 106.94768
A179: 170 | B179: SHREECEM | C179: 24018.15 | D179: 23978.32 | E179: 23680.13 | F179: 23342.12 | G179: 23043.93 | H179: 24316.33 | I179: 24614.52 | J179: 24952.53 | K179: 24276.5 | L179: 23640.3 | M179: 1.54928
A180: 171 | B180: SHRIRAMFIN | C180: 1696.15 | D180: 1694.90 | E180: 1661.25 | F180: 1626.35 | G180: 1592.70 | H180: 1729.80 | I180: 1763.45 | J180: 1798.35 | K180: 1728.55 | L180: 1660 | M180: 18.50182
A181: 172 | B181: SIEMENS | C181: 3706.2 | D181: 3705.75 | E181: 3688.95 | F181: 3671.70 | G181: 3654.90 | H181: 3723.00 | I181: 3739.80 | J181: 3757.05 | K181: 3722.55 | L181: 3688.5 | M181: 2.05417
A182: 173 | B182: SONACOMS | C182: 519.85 | D182: 519.60 | E182: 516.80 | F182: 513.75 | G182: 510.95 | H182: 522.65 | I182: 525.45 | J182: 528.50 | K182: 522.4 | L182: 516.55 | M182: 8.02623
A183: 174 | B183: SRF | C183: 2308.35 | D183: 2321.73 | E183: 2290.27 | F183: 2272.18 | G183: 2240.72 | H183: 2339.82 | I183: 2371.28 | J183: 2389.37 | K183: 2353.2 | L183: 2303.65 | M183: 4.82877
A184: 175 | B184: SUNPHARMA | C184: 1001.8 | D184: 997.05 | E184: 990.75 | F184: 979.70 | G184: 973.40 | H184: 1008.10 | I184: 1014.40 | J184: 1025.45 | K184: 1003.35 | L184: 986 | M184: 46.47465
A185: 176 | B185: SUNTV | C185: 437.9 | D185: 435.72 | E185: 431.18 | F185: 424.47 | G185: 419.93 | H185: 442.43 | I185: 446.97 | J185: 453.68 | K185: 440.25 | L185: 429 | M185: 7.39644
A186: 177 | B186: SYNGENE | C186: 729 | D186: 729.40 | E186: 723.60 | F186: 718.20 | G186: 712.40 | H186: 734.80 | I186: 740.60 | J186: 746.00 | K186: 735.2 | L186: 724 | M186: 3.75425
A187: 178 | B187: TATACHEM | C187: 1006.25 | D187: 1006.73 | E187: 993.47 | F187: 980.68 | G187: 967.42 | H187: 1019.52 | I187: 1032.78 | J187: 1045.57 | K187: 1020 | L187: 993.95 | M187: 20.34613
A188: 179 | B188: TATACOMM | C188: 1565.8 | D188: 1565.90 | E188: 1549.90 | F188: 1534.00 | G188: 1518.00 | H188: 1581.80 | I188: 1597.80 | J188: 1613.70 | K188: 1581.9 | L188: 1550 | M188: 3.38264
A189: 180 | B189: TATACONSUM | C189: 854.2 | D189: 858.30 | E189: 848.50 | F189: 842.80 | G189: 833.00 | H189: 864.00 | I189: 873.80 | J189: 879.50 | K189: 868.1 | L189: 852.6 | M189: 11.3145
A190: 181 | B190: TATAELXSI | C190: 7546.2 | D190: 7580.85 | E190: 7495.70 | F190: 7445.20 | G190: 7360.05 | H190: 7631.35 | I190: 7716.50 | J190: 7767.00 | K190: 7666 | L190: 7530.35 | M190: 1.43885
A191: 182 | B191: TATAMOTORS | C191: 573.1 | D191: 572.82 | E191: 568.73 | F191: 564.37 | G191: 560.28 | H191: 577.18 | I191: 581.27 | J191: 585.63 | K191: 576.9 | L191: 568.45 | M191: 94.0445
A192: 183 | B192: TATAPOWER | C192: 219.25 | D192: 219.45 | E192: 218.40 | F192: 217.55 | G192: 216.50 | H192: 220.30 | I192: 221.35 | J192: 222.20 | K192: 220.5 | L192: 218.6 | M192: 46.94432
A193: 184 | B193: TATASTEEL | C193: 110.75 | D193: 110.80 | E193: 110.10 | F193: 109.45 | G193: 108.75 | H193: 111.45 | I193: 112.15 | J193: 112.80 | K193: 111.5 | L193: 110.15 | M193: 241.29403
A194: 185 | B194: TCS | C194: 3197.35 | D194: 3196.43 | E194: 3183.22 | F194: 3169.08 | G194: 3155.87 | H194: 3210.57 | I194: 3223.78 | J194: 3237.92 | K194: 3209.65 | L194: 3182.3 | M194: 8.63542
A195: 186 | B195: TECHM | C195: 1119.7 | D195: 1115.80 | E195: 1110.60 | F195: 1101.50 | G195: 1096.30 | H195: 1124.90 | I195: 1130.10 | J195: 1139.20 | K195: 1121 | L195: 1106.7 | M195: 12.27245
A196: 187 | B196: TIINDIA | C196: 3134.2 | D196: 3155.65 | E196: 3077.65 | F196: 3021.10 | G196: 2943.10 | H196: 3212.20 | I196: 3290.20 | J196: 3346.75 | K196: 3233.65 | L196: 3099.1 | M196: 2.49865
A197: 188 | B197: TITAN | C197: 2975.7 | D197: 2968.53 | E197: 2947.87 | F197: 2920.03 | G197: 2899.37 | H197: 2996.37 | I197: 3017.03 | J197: 3044.87 | K197: 2989.2 | L197: 2940.7 | M197: 9.1373
A198: 189 | B198: TORNTPHARM | C198: 1879.05 | D198: 1879.75 | E198: 1866.50 | F198: 1853.95 | G198: 1840.70 | H198: 1892.30 | I198: 1905.55 | J198: 1918.10 | K198: 1893 | L198: 1867.2 | M198: 1.66248
A199: 190 | B199: TORNTPOWER | C199: 627.6 | D199: 631.17 | E199: 622.33 | F199: 617.07 | G199: 608.23 | H199: 636.43 | I199: 645.27 | J199: 650.53 | K199: 640 | L199: 625.9 | M199: 2.41524
A200: 191 | B200: TRENT | C200: 1742.85 | D200: 1748.80 | E200: 1731.60 | F200: 1720.35 | G200: 1703.15 | H200: 1760.05 | I200: 1777.25 | J200: 1788.50 | K200: 1766 | L200: 1737.55 | M200: 3.20512
A201: 192 | B201: TRIDENT | C201: 33.8 | D201: 34.02 | E201: 33.48 | F201: 33.17 | G201: 32.63 | H201: 34.33 | I201: 34.87 | J201: 35.18 | K201: 34.55 | L201: 33.7 | M201: 60.22145
A202: 193 | B202: TTML | C202: 72.1 | D202: 72.73 | E202: 71.27 | F202: 70.43 | G202: 68.97 | H202: 73.57 | I202: 75.03 | J202: 75.87 | K202: 74.2 | L202: 71.9 | M202: 28.99473
A203: 194 | B203: TVSMOTOR | C203: 1304.2 | D203: 1300.92 | E203: 1292.28 | F203: 1280.37 | G203: 1271.73 | H203: 1312.83 | I203: 1321.47 | J203: 1333.38 | K203: 1309.55 | L203: 1289 | M203: 8.82785
A204: 195 | B204: UBL | C204: 1498.75 | D204: 1497.75 | E204: 1487.80 | F204: 1476.85 | G204: 1466.90 | H204: 1508.70 | I204: 1518.65 | J204: 1529.60 | K204: 1507.7 | L204: 1486.8 | M204: 1.31504
A205: 196 | B205: ULTRACEMCO | C205: 8208.5 | D205: 8202.08 | E205: 8175.07 | F205: 8141.63 | G205: 8114.62 | H205: 8235.52 | I205: 8262.53 | J205: 8295.97 | K205: 8229.1 | L205: 8168.65 | M205: 2.36562
... 29 more rows

Sheet MidCap Intra
L5: Back To Main Page
A6: FOR INTRA DAY TRADING | K6: =Main!B10 -> 2023-06-28
A9: Sr.no | B9: Scrip | C9: CLOSE RATE | D9: Pivot Point | E9: Supports | H9: Resistances
E10: S1 | F10: S2 | G10: S3 | H10: R1 | I10: R2 | J10: R3 | K10: HIGH | L10: LOW | M10: Total Trade Quanity in Lakhs
A11: 1 | B11: 360ONE | C11: 456.7 | D11: 455.25 | E11: 451.55 | F11: 446.40 | G11: 442.70 | H11: 460.40 | I11: 464.10 | J11: 469.25 | K11: 458.95 | L11: 450.1 | M11: 3.57643
A12: 2 | B12: 3MINDIA | C12: 27680.85 | D12: 27616.93 | E12: 27483.92 | F12: 27286.98 | G12: 27153.97 | H12: 27813.87 | I12: 27946.88 | J12: 28143.82 | K12: 27749.95 | L12: 27420 | M12: 0.01761
A13: 3 | B13: AARTIDRUGS | C13: 445.6 | D13: 447.62 | E13: 441.93 | F13: 438.27 | G13: 432.58 | H13: 451.28 | I13: 456.97 | J13: 460.63 | K13: 453.3 | L13: 443.95 | M13: 1.88295
A14: 4 | B14: AARTIIND | C14: 507.45 | D14: 509.72 | E14: 503.73 | F14: 500.02 | G14: 494.03 | H14: 513.43 | I14: 519.42 | J14: 523.13 | K14: 515.7 | L14: 506 | M14: 13.07198
A15: 5 | B15: AAVAS | C15: 1508.75 | D15: 1498.77 | E15: 1460.53 | F15: 1412.32 | G15: 1374.08 | H15: 1546.98 | I15: 1585.22 | J15: 1633.43 | K15: 1537 | L15: 1450.55 | M15: 11.23978
A16: 6 | B16: ABB | C16: 4294.5 | D16: 4303.83 | E16: 4260.67 | F16: 4226.83 | G16: 4183.67 | H16: 4337.67 | I16: 4380.83 | J16: 4414.67 | K16: 4347 | L16: 4270 | M16: 2.17841
A17: 7 | B17: ABBOTINDIA | C17: 22707.8 | D17: 22785.68 | E17: 22554.17 | F17: 22400.53 | G17: 22169.02 | H17: 22939.32 | I17: 23170.83 | J17: 23324.47 | K17: 23017.2 | L17: 22632.05 | M17: 0.18854
A18: 8 | B18: ABCAPITAL | C18: 192.3 | D18: 188.47 | E18: 183.63 | F18: 174.97 | G18: 170.13 | H18: 197.13 | I18: 201.97 | J18: 210.63 | K18: 193.3 | L18: 179.8 | M18: 290.42894
A19: 9 | B19: ABFRL | C19: 210.9 | D19: 210.57 | E19: 207.83 | F19: 204.77 | G19: 202.03 | H19: 213.63 | I19: 216.37 | J19: 219.43 | K19: 213.3 | L19: 207.5 | M19: 40.6287
A20: 10 | B20: ACC | C20: 1788.6 | D20: 1788.70 | E20: 1775.40 | F20: 1762.20 | G20: 1748.90 | H20: 1801.90 | I20: 1815.20 | J20: 1828.40 | K20: 1802 | L20: 1775.5 | M20: 6.98909
A21: 11 | B21: ACI | C21: 540.1 | D21: 537.03 | E21: 532.12 | F21: 524.13 | G21: 519.22 | H21: 545.02 | I21: 549.93 | J21: 557.92 | K21: 541.95 | L21: 529.05 | M21: 2.49526
A22: 12 | B22: ADANIENT | C22: 2284.45 | D22: 2299.77 | E22: 2255.68 | F22: 2226.92 | G22: 2182.83 | H22: 2328.53 | I22: 2372.62 | J22: 2401.38 | K22: 2343.85 | L22: 2271 | M22: 33.61053
A23: 13 | B23: ADANIGREEN | C23: 959.55 | D23: 964.50 | E23: 951.15 | F23: 942.75 | G23: 929.40 | H23: 972.90 | I23: 986.25 | J23: 994.65 | K23: 977.85 | L23: 956.1 | M23: 4.1594
A24: 14 | B24: ADANIPORTS | C24: 720.25 | D24: 722.23 | E24: 714.02 | F24: 707.78 | G24: 699.57 | H24: 728.47 | I24: 736.68 | J24: 742.92 | K24: 730.45 | L24: 716 | M24: 69.35089
A25: 15 | B25: ADANIPOWER | C25: 253.1 | D25: 254.37 | E25: 250.78 | F25: 248.47 | G25: 244.88 | H25: 256.68 | I25: 260.27 | J25: 262.58 | K25: 257.95 | L25: 252.05 | M25: 27.74315
A26: 16 | B26: ADANITRANS | C26: 773.2 | D26: 776.37 | E26: 767.83 | F26: 762.47 | G26: 753.93 | H26: 781.73 | I26: 790.27 | J26: 795.63 | K26: 784.9 | L26: 771 | M26: 5.14889
A27: 17 | B27: AEGISCHEM | C27: 323.7 | D27: 325.07 | E27: 320.63 | F27: 317.57 | G27: 313.13 | H27: 328.13 | I27: 332.57 | J27: 335.63 | K27: 329.5 | L27: 322 | M27: 3.95259
A28: 18 | B28: AETHER | C28: 1072.95 | D28: 1084.82 | E28: 1058.68 | F28: 1044.42 | G28: 1018.28 | H28: 1099.08 | I28: 1125.22 | J28: 1139.48 | K28: 1110.95 | L28: 1070.55 | M28: 1.3447
A29: 19 | B29: AFFLE | C29: 1105.9 | D29: 1101.27 | E29: 1092.13 | F29: 1078.37 | G29: 1069.23 | H29: 1115.03 | I29: 1124.17 | J29: 1137.93 | K29: 1110.4 | L29: 1087.5 | M29: 1.84442
A30: 20 | B30: AIAENG | C30: 3299.15 | D30: 3287.85 | E30: 3248.30 | F30: 3197.45 | G30: 3157.90 | H30: 3338.70 | I30: 3378.25 | J30: 3429.10 | K30: 3327.4 | L30: 3237 | M30: 0.47074
A31: 21 | B31: AJANTPHARM | C31: 1501.15 | D31: 1494.37 | E31: 1478.78 | F31: 1456.42 | G31: 1440.83 | H31: 1516.73 | I31: 1532.32 | J31: 1554.68 | K31: 1509.95 | L31: 1472 | M31: 0.62294
A32: 22 | B32: ALKEM | C32: 3395.45 | D32: 3403.47 | E32: 3378.98 | F32: 3362.52 | G32: 3338.03 | H32: 3419.93 | I32: 3444.42 | J32: 3460.88 | K32: 3427.95 | L32: 3387 | M32: 1.49706
A33: 23 | B33: ALKYLAMINE | C33: 2636.15 | D33: 2641.78 | E33: 2604.57 | F33: 2572.98 | G33: 2535.77 | H33: 2673.37 | I33: 2710.58 | J33: 2742.17 | K33: 2679 | L33: 2610.2 | M33: 0.17833
A34: 24 | B34: AMARAJABAT | C34: 652.6 | D34: 650.75 | E34: 637.65 | F34: 622.70 | G34: 609.60 | H34: 665.70 | I34: 678.80 | J34: 693.75 | K34: 663.85 | L34: 635.8 | M34: 11.28141
A35: 25 | B35: AMBER | C35: 2257.8 | D35: 2282.98 | E35: 2181.02 | F35: 2104.23 | G35: 2002.27 | H35: 2359.77 | I35: 2461.73 | J35: 2538.52 | K35: 2384.95 | L35: 2206.2 | M35: 11.4674
A36: 26 | B36: AMBUJACEM | C36: 433.85 | D36: 435.88 | E36: 431.12 | F36: 428.38 | G36: 423.62 | H36: 438.62 | I36: 443.38 | J36: 446.12 | K36: 440.65 | L36: 433.15 | M36: 30.22273
A37: 27 | B37: ANGELONE | C37: 1722.95 | D37: 1712.37 | E37: 1697.73 | F37: 1672.52 | G37: 1657.88 | H37: 1737.58 | I37: 1752.22 | J37: 1777.43 | K37: 1727 | L37: 1687.15 | M37: 8.51711
A38: 28 | B38: ANURAS | C38: 1039.2 | D38: 1041.28 | E38: 1030.42 | F38: 1021.63 | G38: 1010.77 | H38: 1050.07 | I38: 1060.93 | J38: 1069.72 | K38: 1052.15 | L38: 1032.5 | M38: 0.3062
A39: 29 | B39: APARINDS | C39: 3398.1 | D39: 3389.67 | E39: 3359.33 | F39: 3320.57 | G39: 3290.23 | H39: 3428.43 | I39: 3458.77 | J39: 3497.53 | K39: 3420 | L39: 3350.9 | M39: 0.72438
A40: 30 | B40: APLAPOLLO | C40: 1337.8 | D40: 1335.60 | E40: 1317.20 | F40: 1296.60 | G40: 1278.20 | H40: 1356.20 | I40: 1374.60 | J40: 1395.20 | K40: 1354 | L40: 1315 | M40: 3.30736
A41: 31 | B41: APLLTD | C41: 656.9 | D41: 650.27 | E41: 636.68 | F41: 616.47 | G41: 602.88 | H41: 670.48 | I41: 684.07 | J41: 704.28 | K41: 663.85 | L41: 630.05 | M41: 7.93079
A42: 32 | B42: APOLLOHOSP | C42: 5142.8 | D42: 5109.92 | E42: 5069.83 | F42: 4996.87 | G42: 4956.78 | H42: 5182.88 | I42: 5222.97 | J42: 5295.93 | K42: 5150 | L42: 5036.95 | M42: 5.56456
A43: 33 | B43: APOLLOTYRE | C43: 399.15 | D43: 402.30 | E43: 394.65 | F43: 390.15 | G43: 382.50 | H43: 406.80 | I43: 414.45 | J43: 418.95 | K43: 409.95 | L43: 397.8 | M43: 32.27313
A44: 34 | B44: APTUS | C44: 248.15 | D44: 248.30 | E44: 245.15 | F44: 242.15 | G44: 239.00 | H44: 251.30 | I44: 254.45 | J44: 257.45 | K44: 251.45 | L44: 245.3 | M44: 13.05615
A45: 35 | B45: ASAHIINDIA | C45: 482.4 | D45: 483.62 | E45: 477.73 | F45: 473.07 | G45: 467.18 | H45: 488.28 | I45: 494.17 | J45: 498.83 | K45: 489.5 | L45: 478.95 | M45: 1.09392
A46: 36 | B46: ASHOKLEY | C46: 163.6 | D46: 164.12 | E46: 162.43 | F46: 161.27 | G46: 159.58 | H46: 165.28 | I46: 166.97 | J46: 168.13 | K46: 165.8 | L46: 162.95 | M46: 71.15446
A47: 37 | B47: ASIANPAINT | C47: 3326 | D47: 3314.62 | E47: 3284.73 | F47: 3243.47 | G47: 3213.58 | H47: 3355.88 | I47: 3385.77 | J47: 3427.03 | K47: 3344.5 | L47: 3273.35 | M47: 9.14141
A48: 38 | B48: ASTERDM | C48: 281 | D48: 283.17 | E48: 277.38 | F48: 273.77 | G48: 267.98 | H48: 286.78 | I48: 292.57 | J48: 296.18 | K48: 288.95 | L48: 279.55 | M48: 3.06775
A49: 39 | B49: ASTRAL | C49: 1954.6 | D49: 1959.10 | E49: 1938.20 | F49: 1921.80 | G49: 1900.90 | H49: 1975.50 | I49: 1996.40 | J49: 2012.80 | K49: 1980 | L49: 1942.7 | M49: 5.42165
A50: 40 | B50: ATGL | C50: 641.5 | D50: 644.17 | E50: 636.33 | F50: 631.17 | G50: 623.33 | H50: 649.33 | I50: 657.17 | J50: 662.33 | K50: 652 | L50: 639 | M50: 5.9169
A51: 41 | B51: ATUL | C51: 6994.05 | D51: 7020.02 | E51: 6950.58 | F51: 6907.12 | G51: 6837.68 | H51: 7063.48 | I51: 7132.92 | J51: 7176.38 | K51: 7089.45 | L51: 6976.55 | M51: 0.5144
A52: 42 | B52: AUBANK | C52: 749.8 | D52: 749.83 | E52: 744.32 | F52: 738.83 | G52: 733.32 | H52: 755.32 | I52: 760.83 | J52: 766.32 | K52: 755.35 | L52: 744.35 | M52: 9.07052
A53: 43 | B53: AUROPHARMA | C53: 718.2 | D53: 719.48 | E53: 713.72 | F53: 709.23 | G53: 703.47 | H53: 723.97 | I53: 729.73 | J53: 734.22 | K53: 725.25 | L53: 715 | M53: 14.29322
A54: 44 | B54: AVANTIFEED | C54: 388.3 | D54: 389.87 | E54: 385.93 | F54: 383.57 | G54: 379.63 | H54: 392.23 | I54: 396.17 | J54: 398.53 | K54: 393.8 | L54: 387.5 | M54: 1.21263
A55: 45 | B55: AWL | C55: 406.55 | D55: 407.95 | E55: 404.60 | F55: 402.65 | G55: 399.30 | H55: 409.90 | I55: 413.25 | J55: 415.20 | K55: 411.3 | L55: 406 | M55: 6.09697
A56: 46 | B56: AXISBANK | C56: 973.25 | D56: 970.02 | E56: 964.03 | F56: 954.82 | G56: 948.83 | H56: 979.23 | I56: 985.22 | J56: 994.43 | K56: 976 | L56: 960.8 | M56: 69.21886
A57: 47 | B57: BAJAJ-AUTO | C57: 4618.05 | D57: 4635.57 | E57: 4592.48 | F57: 4566.92 | G57: 4523.83 | H57: 4661.13 | I57: 4704.22 | J57: 4729.78 | K57: 4678.65 | L57: 4610 | M57: 4.44793
A58: 48 | B58: BAJAJFINSV | C58: 1522.95 | D58: 1517.77 | E58: 1508.18 | F58: 1493.42 | G58: 1483.83 | H58: 1532.53 | I58: 1542.12 | J58: 1556.88 | K58: 1527.35 | L58: 1503 | M58: 7.63062
A59: 49 | B59: BAJAJHLDNG | C59: 6960.15 | D59: 6962.40 | E59: 6922.80 | F59: 6885.45 | G59: 6845.85 | H59: 6999.75 | I59: 7039.35 | J59: 7076.70 | K59: 7002 | L59: 6925.05 | M59: 0.06752
A60: 50 | B60: BAJFINANCE | C60: 7019.25 | D60: 7001.08 | E60: 6972.17 | F60: 6925.08 | G60: 6896.17 | H60: 7048.17 | I60: 7077.08 | J60: 7124.17 | K60: 7030 | L60: 6954 | M60: 7.09789
A61: 51 | B61: BALAMINES | C61: 2321 | D61: 2303.12 | E61: 2277.23 | F61: 2233.47 | G61: 2207.58 | H61: 2346.88 | I61: 2372.77 | J61: 2416.53 | K61: 2329 | L61: 2259.35 | M61: 0.74235
A62: 52 | B62: BALKRISIND | C62: 2359.65 | D62: 2374.17 | E62: 2335.43 | F62: 2311.22 | G62: 2272.48 | H62: 2398.38 | I62: 2437.12 | J62: 2461.33 | K62: 2412.9 | L62: 2349.95 | M62: 1.5359
A63: 53 | B63: BALRAMCHIN | C63: 382 | D63: 383.88 | E63: 379.27 | F63: 376.53 | G63: 371.92 | H63: 386.62 | I63: 391.23 | J63: 393.97 | K63: 388.5 | L63: 381.15 | M63: 19.16396
A64: 54 | B64: BANDHANBNK | C64: 238 | D64: 238.48 | E64: 236.12 | F64: 234.23 | G64: 231.87 | H64: 240.37 | I64: 242.73 | J64: 244.62 | K64: 240.85 | L64: 236.6 | M64: 51.07464
A65: 55 | B65: BANKBARODA | C65: 190.95 | D65: 191.20 | E65: 190.30 | F65: 189.65 | G65: 188.75 | H65: 191.85 | I65: 192.75 | J65: 193.40 | K65: 192.1 | L65: 190.55 | M65: 119.63762
A66: 56 | B66: BANKINDIA | C66: 72.35 | D66: 71.82 | E66: 71.03 | F66: 69.72 | G66: 68.93 | H66: 73.13 | I66: 73.92 | J66: 75.23 | K66: 72.6 | L66: 70.5 | M66: 62.69307
A67: 57 | B67: BASF | C67: 2595.65 | D67: 2587.58 | E67: 2565.22 | F67: 2534.78 | G67: 2512.42 | H67: 2618.02 | I67: 2640.38 | J67: 2670.82 | K67: 2609.95 | L67: 2557.15 | M67: 0.11732
A68: 58 | B68: BATAINDIA | C68: 1662.85 | D68: 1659.15 | E68: 1645.35 | F68: 1627.85 | G68: 1614.05 | H68: 1676.65 | I68: 1690.45 | J68: 1707.95 | K68: 1672.95 | L68: 1641.65 | M68: 5.37172
A69: 59 | B69: BAYERCROP | C69: 4325.75 | D69: 4329.80 | E69: 4309.70 | F69: 4293.65 | G69: 4273.55 | H69: 4345.85 | I69: 4365.95 | J69: 4382.00 | K69: 4349.9 | L69: 4313.75 | M69: 0.20391
A70: 60 | B70: BBTC | C70: 1021.75 | D70: 1025.23 | E70: 1017.02 | F70: 1012.28 | G70: 1004.07 | H70: 1029.97 | I70: 1038.18 | J70: 1042.92 | K70: 1033.45 | L70: 1020.5 | M70: 0.25734
A71: 61 | B71: BCG | C71: 28.35 | D71: 28.35 | E71: 28.35 | F71: 28.35 | G71: 28.35 | H71: 28.35 | I71: 28.35 | J71: 28.35 | K71: 28.35 | L71: 28.35 | M71: 27.74417
A72: 62 | B72: BDL | C72: 1085 | D72: 1091.67 | E72: 1069.33 | F72: 1053.67 | G72: 1031.33 | H72: 1107.33 | I72: 1129.67 | J72: 1145.33 | K72: 1114 | L72: 1076 | M72: 6.72288
A73: 63 | B73: BEL | C73: 118.4 | D73: 119.63 | E73: 116.67 | F73: 114.93 | G73: 111.97 | H73: 121.37 | I73: 124.33 | J73: 126.07 | K73: 122.6 | L73: 117.9 | M73: 190.93714
A74: 64 | B74: BEML | C74: 1573.7 | D74: 1577.55 | E74: 1562.15 | F74: 1550.60 | G74: 1535.20 | H74: 1589.10 | I74: 1604.50 | J74: 1616.05 | K74: 1592.95 | L74: 1566 | M74: 1.22594
A75: 65 | B75: BERGEPAINT | C75: 678.55 | D75: 678.32 | E75: 672.88 | F75: 667.22 | G75: 661.78 | H75: 683.98 | I75: 689.42 | J75: 695.08 | K75: 683.75 | L75: 672.65 | M75: 5.00458
A76: 66 | B76: BHARATFORG | C76: 819.75 | D76: 818.17 | E76: 812.58 | F76: 805.42 | G76: 799.83 | H76: 825.33 | I76: 830.92 | J76: 838.08 | K76: 823.75 | L76: 811 | M76: 5.78957
A77: 67 | B77: BHARTIARTL | C77: 864.9 | D77: 863.28 | E77: 855.22 | F77: 845.53 | G77: 837.47 | H77: 872.97 | I77: 881.03 | J77: 890.72 | K77: 871.35 | L77: 853.6 | M77: 55.33649
A78: 68 | B78: BHEL | C78: 84.35 | D78: 84.60 | E78: 83.85 | F78: 83.35 | G78: 82.60 | H78: 85.10 | I78: 85.85 | J78: 86.35 | K78: 85.35 | L78: 84.1 | M78: 88.59692
A79: 69 | B79: BIKAJI | C79: 429.1 | D79: 427.70 | E79: 415.40 | F79: 401.70 | G79: 389.40 | H79: 441.40 | I79: 453.70 | J79: 467.40 | K79: 440 | L79: 414 | M79: 5.05952
A80: 70 | B80: BIOCON | C80: 243.65 | D80: 243.07 | E80: 240.73 | F80: 237.82 | G80: 235.48 | H80: 245.98 | I80: 248.32 | J80: 251.23 | K80: 245.4 | L80: 240.15 | M80: 27.72073
A81: 71 | B81: BIRLACORPN | C81: 1248.75 | D81: 1240.97 | E81: 1228.78 | F81: 1208.82 | G81: 1196.63 | H81: 1260.93 | I81: 1273.12 | J81: 1293.08 | K81: 1253.15 | L81: 1221 | M81: 1.28965
A82: 72 | B82: BLS | C82: 197.15 | D82: 198.80 | E82: 194.60 | F82: 192.05 | G82: 187.85 | H82: 201.35 | I82: 205.55 | J82: 208.10 | K82: 203 | L82: 196.25 | M82: 40.52167
A83: 73 | B83: BLUEDART | C83: 7201.8 | D83: 7166.27 | E83: 7125.53 | F83: 7049.27 | G83: 7008.53 | H83: 7242.53 | I83: 7283.27 | J83: 7359.53 | K83: 7207 | L83: 7090 | M83: 0.19901
A84: 74 | B84: BLUESTARCO | C84: 779.45 | D84: 783.48 | E84: 769.27 | F84: 759.08 | G84: 744.87 | H84: 793.67 | I84: 807.88 | J84: 818.07 | K84: 797.7 | L84: 773.3 | M84: 2.41129
A85: 75 | B85: BORORENEW | C85: 507.8 | D85: 513.87 | E85: 497.73 | F85: 487.67 | G85: 471.53 | H85: 523.93 | I85: 540.07 | J85: 550.13 | K85: 530 | L85: 503.8 | M85: 3.98168
A86: 76 | B86: BOSCHLTD | C86: 18572.6 | D86: 18594.00 | E86: 18463.60 | F86: 18354.60 | G86: 18224.20 | H86: 18703.00 | I86: 18833.40 | J86: 18942.40 | K86: 18724.4 | L86: 18485 | M86: 0.1036
A87: 77 | B87: BPCL | C87: 360.35 | D87: 360.68 | E87: 357.67 | F87: 354.98 | G87: 351.97 | H87: 363.37 | I87: 366.38 | J87: 369.07 | K87: 363.7 | L87: 358 | M87: 33.92266
A88: 78 | B88: BRIGADE | C88: 584.9 | D88: 580.90 | E88: 572.90 | F88: 560.90 | G88: 552.90 | H88: 592.90 | I88: 600.90 | J88: 612.90 | K88: 588.9 | L88: 568.9 | M88: 2.00632
A89: 79 | B89: BRITANNIA | C89: 4954.25 | D89: 4980.40 | E89: 4923.00 | F89: 4891.75 | G89: 4834.35 | H89: 5011.65 | I89: 5069.05 | J89: 5100.30 | K89: 5037.8 | L89: 4949.15 | M89: 1.75475
A90: 80 | B90: BSE | C90: 600.4 | D90: 599.63 | E90: 594.37 | F90: 588.33 | G90: 583.07 | H90: 605.67 | I90: 610.93 | J90: 616.97 | K90: 604.9 | L90: 593.6 | M90: 8.9619
A91: 81 | B91: BSOFT | C91: 352.85 | D91: 349.75 | E91: 343.10 | F91: 333.35 | G91: 326.70 | H91: 359.50 | I91: 366.15 | J91: 375.90 | K91: 356.4 | L91: 340 | M91: 67.98031
A92: 82 | B92: CAMPUS | C92: 315.2 | D92: 315.88 | E92: 313.42 | F92: 311.63 | G92: 309.17 | H92: 317.67 | I92: 320.13 | J92: 321.92 | K92: 318.35 | L92: 314.1 | M92: 2.48011
A93: 83 | B93: CAMS | C93: 2135.4 | D93: 2143.32 | E93: 2124.08 | F93: 2112.77 | G93: 2093.53 | H93: 2154.63 | I93: 2173.87 | J93: 2185.18 | K93: 2162.55 | L93: 2132 | M93: 0.57618
A94: 84 | B94: CANBK | C94: 296.05 | D94: 295.73 | E94: 294.47 | F94: 292.88 | G94: 291.62 | H94: 297.32 | I94: 298.58 | J94: 300.17 | K94: 297 | L94: 294.15 | M94: 41.82838
A95: 85 | B95: CANFINHOME | C95: 780.1 | D95: 769.90 | E95: 753.20 | F95: 726.30 | G95: 709.60 | H95: 796.80 | I95: 813.50 | J95: 840.40 | K95: 786.6 | L95: 743 | M95: 19.37866
A96: 86 | B96: CARBORUNIV | C96: 1168.95 | D96: 1175.05 | E96: 1157.45 | F96: 1145.95 | G96: 1128.35 | H96: 1186.55 | I96: 1204.15 | J96: 1215.65 | K96: 1192.65 | L96: 1163.55 | M96: 1.11294
A97: 87 | B97: CASTROLIND | C97: 121.6 | D97: 121.57 | E97: 120.88 | F97: 120.17 | G97: 119.48 | H97: 122.28 | I97: 122.97 | J97: 123.68 | K97: 122.25 | L97: 120.85 | M97: 3.96888
A98: 88 | B98: CCL | C98: 650.25 | D98: 649.12 | E98: 642.38 | F98: 634.52 | G98: 627.78 | H98: 656.98 | I98: 663.72 | J98: 671.58 | K98: 655.85 | L98: 641.25 | M98: 0.70748
A99: 89 | B99: CDSL | C99: 1070.8 | D99: 1064.42 | E99: 1054.43 | F99: 1038.07 | G99: 1028.08 | H99: 1080.78 | I99: 1090.77 | J99: 1107.13 | K99: 1074.4 | L99: 1048.05 | M99: 9.87388
A100: 90 | B100: CEATLTD | C100: 2081.75 | D100: 2078.33 | E100: 2057.77 | F100: 2033.78 | G100: 2013.22 | H100: 2102.32 | I100: 2122.88 | J100: 2146.87 | K100: 2098.9 | L100: 2054.35 | M100: 3.91213
A101: 91 | B101: CENTRALBK | C101: 28.65 | D101: 28.38 | E101: 27.97 | F101: 27.28 | G101: 26.87 | H101: 29.07 | I101: 29.48 | J101: 30.17 | K101: 28.8 | L101: 27.7 | M101: 117.73147
A102: 92 | B102: CENTURYPLY | C102: 626.25 | D102: 629.33 | E102: 617.07 | F102: 607.88 | G102: 595.62 | H102: 638.52 | I102: 650.78 | J102: 659.97 | K102: 641.6 | L102: 620.15 | M102: 1.22771
A103: 93 | B103: CENTURYTEX | C103: 792.15 | D103: 795.03 | E103: 787.12 | F103: 782.08 | G103: 774.17 | H103: 800.07 | I103: 807.98 | J103: 813.02 | K103: 802.95 | L103: 790 | M103: 1.85541
A104: 94 | B104: CERA | C104: 7611.2 | D104: 7670.87 | E104: 7532.73 | F104: 7454.27 | G104: 7316.13 | H104: 7749.33 | I104: 7887.47 | J104: 7965.93 | K104: 7809 | L104: 7592.4 | M104: 0.1974
A105: 95 | B105: CESC | C105: 72.05 | D105: 72.32 | E105: 71.53 | F105: 71.02 | G105: 70.23 | H105: 72.83 | I105: 73.62 | J105: 74.13 | K105: 73.1 | L105: 71.8 | M105: 12.79215
A106: 96 | B106: CGCL | C106: 761.75 | D106: 761.97 | E106: 749.98 | F106: 738.22 | G106: 726.23 | H106: 773.73 | I106: 785.72 | J106: 797.48 | K106: 773.95 | L106: 750.2 | M106: 2.34928
A107: 97 | B107: CGPOWER | C107: 373.3 | D107: 374.35 | E107: 369.95 | F107: 366.60 | G107: 362.20 | H107: 377.70 | I107: 382.10 | J107: 385.45 | K107: 378.75 | L107: 371 | M107: 6.29123
A108: 98 | B108: CHALET | C108: 420 | D108: 420.47 | E108: 415.13 | F108: 410.27 | G108: 404.93 | H108: 425.33 | I108: 430.67 | J108: 435.53 | K108: 425.8 | L108: 415.6 | M108: 1.50875
A109: 99 | B109: CHAMBLFERT | C109: 273.15 | D109: 274.70 | E109: 271.05 | F109: 268.95 | G109: 265.30 | H109: 276.80 | I109: 280.45 | J109: 282.55 | K109: 278.35 | L109: 272.6 | M109: 19.88212
A110: 100 | B110: CHEMPLASTS | C110: 444 | D110: 443.12 | E110: 439.88 | F110: 435.77 | G110: 432.53 | H110: 447.23 | I110: 450.47 | J110: 454.58 | K110: 446.35 | L110: 439 | M110: 0.72381
A111: 101 | B111: CHOLAFIN | C111: 1093.85 | D111: 1087.77 | E111: 1077.53 | F111: 1061.22 | G111: 1050.98 | H111: 1104.08 | I111: 1114.32 | J111: 1130.63 | K111: 1098 | L111: 1071.45 | M111: 22.66411
A112: 102 | B112: CHOLAHLDNG | C112: 919.95 | D112: 909.63 | E112: 890.32 | F112: 860.68 | G112: 841.37 | H112: 939.27 | I112: 958.58 | J112: 988.22 | K112: 928.95 | L112: 880 | M112: 1.0562
A113: 103 | B113: CIEINDIA | C113: 518.05 | D113: 520.68 | E113: 511.37 | F113: 504.68 | G113: 495.37 | H113: 527.37 | I113: 536.68 | J113: 543.37 | K113: 530 | L113: 514 | M113: 3.80345
A114: 104 | B114: CIPLA | C114: 1009.25 | D114: 1013.45 | E114: 1000.80 | F114: 992.35 | G114: 979.70 | H114: 1021.90 | I114: 1034.55 | J114: 1043.00 | K114: 1026.1 | L114: 1005 | M114: 16.51238
A115: 105 | B115: CLEAN | C115: 1386.85 | D115: 1383.55 | E115: 1374.60 | F115: 1362.35 | G115: 1353.40 | H115: 1395.80 | I115: 1404.75 | J115: 1417.00 | K115: 1392.5 | L115: 1371.3 | M115: 0.97759
A116: 106 | B116: COALINDIA | C116: 225.15 | D116: 225.28 | E116: 223.77 | F116: 222.38 | G116: 220.87 | H116: 226.67 | I116: 228.18 | J116: 229.57 | K116: 226.8 | L116: 223.9 | M116: 62.82912
A117: 107 | B117: COCHINSHIP | C117: 579.8 | D117: 583.10 | E117: 574.80 | F117: 569.80 | G117: 561.50 | H117: 588.10 | I117: 596.40 | J117: 601.40 | K117: 591.4 | L117: 578.1 | M117: 5.09459
A118: 108 | B118: COFORGE | C118: 4695.45 | D118: 4675.28 | E118: 4636.17 | F118: 4576.88 | G118: 4537.77 | H118: 4734.57 | I118: 4773.68 | J118: 4832.97 | K118: 4714.4 | L118: 4616 | M118: 3.53159
A119: 109 | B119: COLPAL | C119: 1692.5 | D119: 1685.48 | E119: 1675.47 | F119: 1658.43 | G119: 1648.42 | H119: 1702.52 | I119: 1712.53 | J119: 1729.57 | K119: 1695.5 | L119: 1668.45 | M119: 6.08262
A120: 110 | B120: CONCOR | C120: 648.75 | D120: 647.92 | E120: 642.28 | F120: 635.82 | G120: 630.18 | H120: 654.38 | I120: 660.02 | J120: 666.48 | K120: 653.55 | L120: 641.45 | M120: 10.23867
A121: 111 | B121: COROMANDEL | C121: 939.4 | D121: 940.97 | E121: 930.93 | F121: 922.47 | G121: 912.43 | H121: 949.43 | I121: 959.47 | J121: 967.93 | K121: 951 | L121: 932.5 | M121: 3.90876
A122: 112 | B122: CRAFTSMAN | C122: 4091.05 | D122: 4050.30 | E122: 4000.60 | F122: 3910.15 | G122: 3860.45 | H122: 4140.75 | I122: 4190.45 | J122: 4280.90 | K122: 4100 | L122: 3959.85 | M122: 0.37338
A123: 113 | B123: CREDITACC | C123: 1353.9 | D123: 1353.80 | E123: 1329.25 | F123: 1304.60 | G123: 1280.05 | H123: 1378.45 | I123: 1403.00 | J123: 1427.65 | K123: 1378.35 | L123: 1329.15 | M123: 3.00307
A124: 114 | B124: CRISIL | C124: 3870.1 | D124: 3878.43 | E124: 3842.87 | F124: 3815.63 | G124: 3780.07 | H124: 3905.67 | I124: 3941.23 | J124: 3968.47 | K124: 3914 | L124: 3851.2 | M124: 0.08038
A125: 115 | B125: CROMPTON | C125: 289.95 | D125: 289.08 | E125: 287.17 | F125: 284.38 | G125: 282.47 | H125: 291.87 | I125: 293.78 | J125: 296.57 | K125: 291 | L125: 286.3 | M125: 15.76018
A126: 116 | B126: CSBBANK | C126: 280.15 | D126: 280.18 | E126: 276.97 | F126: 273.78 | G126: 270.57 | H126: 283.37 | I126: 286.58 | J126: 289.77 | K126: 283.4 | L126: 277 | M126: 3.20172
A127: 117 | B127: CUB | C127: 124.7 | D127: 123.97 | E127: 122.98 | F127: 121.27 | G127: 120.28 | H127: 125.68 | I127: 126.67 | J127: 128.38 | K127: 124.95 | L127: 122.25 | M127: 33.51532
A128: 118 | B128: CUMMINSIND | C128: 1882.8 | D128: 1876.38 | E128: 1862.77 | F128: 1842.73 | G128: 1829.12 | H128: 1896.42 | I128: 1910.03 | J128: 1930.07 | K128: 1890 | L128: 1856.35 | M128: 4.7078
A129: 119 | B129: CYIENT | C129: 1467.3 | D129: 1471.08 | E129: 1456.27 | F129: 1445.23 | G129: 1430.42 | H129: 1482.12 | I129: 1496.93 | J129: 1507.97 | K129: 1485.9 | L129: 1460.05 | M129: 2.21584
A130: 120 | B130: DABUR | C130: 570.6 | D130: 568.78 | E130: 565.87 | F130: 561.13 | G130: 558.22 | H130: 573.52 | I130: 576.43 | J130: 581.17 | K130: 571.7 | L130: 564.05 | M130: 19.00084
A131: 121 | B131: DALBHARAT | C131: 2166.05 | D131: 2186.32 | E131: 2142.63 | F131: 2119.22 | G131: 2075.53 | H131: 2209.73 | I131: 2253.42 | J131: 2276.83 | K131: 2230 | L131: 2162.9 | M131: 2.37552
A132: 122 | B132: DATAPATTNS | C132: 1878.05 | D132: 1860.03 | E132: 1828.12 | F132: 1778.18 | G132: 1746.27 | H132: 1909.97 | I132: 1941.88 | J132: 1991.82 | K132: 1891.95 | L132: 1810.1 | M132: 1.66518
A133: 123 | B133: DCMSHRIRAM | C133: 911 | D133: 917.02 | E133: 902.03 | F133: 893.07 | G133: 878.08 | H133: 925.98 | I133: 940.97 | J133: 949.93 | K133: 932 | L133: 908.05 | M133: 1.0989
A134: 124 | B134: DEEPAKFERT | C134: 568.35 | D134: 569.62 | E134: 565.73 | F134: 563.12 | G134: 559.23 | H134: 572.23 | I134: 576.12 | J134: 578.73 | K134: 573.5 | L134: 567 | M134: 4.14593
A135: 125 | B135: DEEPAKNTR | C135: 2199.35 | D135: 2211.75 | E135: 2177.60 | F135: 2155.85 | G135: 2121.70 | H135: 2233.50 | I135: 2267.65 | J135: 2289.40 | K135: 2245.9 | L135: 2190 | M135: 3.04339
A136: 126 | B136: DELHIVERY | C136: 381.7 | D136: 382.08 | E136: 378.17 | F136: 374.63 | G136: 370.72 | H136: 385.62 | I136: 389.53 | J136: 393.07 | K136: 386 | L136: 378.55 | M136: 15.34859
A137: 127 | B137: DELTACORP | C137: 249.85 | D137: 247.95 | E137: 243.90 | F137: 237.95 | G137: 233.90 | H137: 253.90 | I137: 257.95 | J137: 263.90 | K137: 252 | L137: 242 | M137: 59.69583
A138: 128 | B138: DEVYANI | C138: 189.85 | D138: 191.22 | E138: 186.63 | F138: 183.42 | G138: 178.83 | H138: 194.43 | I138: 199.02 | J138: 202.23 | K138: 195.8 | L138: 188 | M138: 22.93421
A139: 129 | B139: DIVISLAB | C139: 3583.3 | D139: 3570.75 | E139: 3547.50 | F139: 3511.70 | G139: 3488.45 | H139: 3606.55 | I139: 3629.80 | J139: 3665.60 | K139: 3594 | L139: 3534.95 | M139: 3.61257
A140: 130 | B140: DIXON | C140: 4390.9 | D140: 4420.27 | E140: 4332.43 | F140: 4273.97 | G140: 4186.13 | H140: 4478.73 | I140: 4566.57 | J140: 4625.03 | K140: 4508.1 | L140: 4361.8 | M140: 5.25573
A141: 131 | B141: DLF | C141: 483.85 | D141: 483.17 | E141: 479.38 | F141: 474.92 | G141: 471.13 | H141: 487.63 | I141: 491.42 | J141: 495.88 | K141: 486.95 | L141: 478.7 | M141: 27.49294
A142: 132 | B142: DMART | C142: 3872.1 | D142: 3877.68 | E142: 3835.42 | F142: 3798.73 | G142: 3756.47 | H142: 3914.37 | I142: 3956.63 | J142: 3993.32 | K142: 3919.95 | L142: 3841 | M142: 4.99702
A143: 133 | B143: DRREDDY | C143: 5025.6 | D143: 5042.72 | E143: 4998.88 | F143: 4972.17 | G143: 4928.33 | H143: 5069.43 | I143: 5113.27 | J143: 5139.98 | K143: 5086.55 | L143: 5016 | M143: 6.66063
A144: 134 | B144: EASEMYTRIP | C144: 41.95 | D144: 41.90 | E144: 41.35 | F144: 40.75 | G144: 40.20 | H144: 42.50 | I144: 43.05 | J144: 43.65 | K144: 42.45 | L144: 41.3 | M144: 50.445
A145: 135 | B145: ECLERX | C145: 1693.1 | D145: 1706.83 | E145: 1667.87 | F145: 1642.63 | G145: 1603.67 | H145: 1732.07 | I145: 1771.03 | J145: 1796.27 | K145: 1745.8 | L145: 1681.6 | M145: 1.19067
A146: 136 | B146: EICHERMOT | C146: 3535.75 | D146: 3545.65 | E146: 3509.10 | F146: 3482.45 | G146: 3445.90 | H146: 3572.30 | I146: 3608.85 | J146: 3635.50 | K146: 3582.2 | L146: 3519 | M146: 3.36518
A147: 137 | B147: EIDPARRY | C147: 469.85 | D147: 471.77 | E147: 466.33 | F147: 462.82 | G147: 457.38 | H147: 475.28 | I147: 480.72 | J147: 484.23 | K147: 477.2 | L147: 468.25 | M147: 1.81101
A148: 138 | B148: EIHOTEL | C148: 207.95 | D148: 209.42 | E148: 205.63 | F148: 203.32 | G148: 199.53 | H148: 211.73 | I148: 215.52 | J148: 217.83 | K148: 213.2 | L148: 207.1 | M148: 3.84465
A149: 139 | B149: ELGIEQUIP | C149: 540.5 | D149: 548.15 | E149: 529.35 | F149: 518.20 | G149: 499.40 | H149: 559.30 | I149: 578.10 | J149: 589.25 | K149: 566.95 | L149: 537 | M149: 10.31563
A150: 140 | B150: EMAMILTD | C150: 417.55 | D150: 419.23 | E150: 413.52 | F150: 409.48 | G150: 403.77 | H150: 423.27 | I150: 428.98 | J150: 433.02 | K150: 424.95 | L150: 415.2 | M150: 3.06965
A151: 141 | B151: ENDURANCE | C151: 1549.95 | D151: 1554.67 | E151: 1537.28 | F151: 1524.62 | G151: 1507.23 | H151: 1567.33 | I151: 1584.72 | J151: 1597.38 | K151: 1572.05 | L151: 1542 | M151: 1.66967
A152: 142 | B152: ENGINERSIN | C152: 116.6 | D152: 116.48 | E152: 115.27 | F152: 113.93 | G152: 112.72 | H152: 117.82 | I152: 119.03 | J152: 120.37 | K152: 117.7 | L152: 115.15 | M152: 24.5322
A153: 143 | B153: EPL | C153: 205.9 | D153: 206.20 | E153: 203.70 | F153: 201.50 | G153: 199.00 | H153: 208.40 | I153: 210.90 | J153: 213.10 | K153: 208.7 | L153: 204 | M153: 4.40837
A154: 144 | B154: EQUITASBNK | C154: 86.25 | D154: 86.98 | E154: 84.52 | F154: 82.78 | G154: 80.32 | H154: 88.72 | I154: 91.18 | J154: 92.92 | K154: 89.45 | L154: 85.25 | M154: 172.62738
A155: 145 | B155: ERIS | C155: 679.3 | D155: 676.10 | E155: 668.95 | F155: 658.60 | G155: 651.45 | H155: 686.45 | I155: 693.60 | J155: 703.95 | K155: 683.25 | L155: 665.75 | M155: 0.32922
A156: 146 | B156: ESCORTS | C156: 2200.35 | D156: 2211.70 | E156: 2183.65 | F156: 2166.95 | G156: 2138.90 | H156: 2228.40 | I156: 2256.45 | J156: 2273.15 | K156: 2239.75 | L156: 2195 | M156: 3.94445
A157: 147 | B157: EXIDEIND | C157: 232.75 | D157: 232.08 | E157: 229.67 | F157: 226.58 | G157: 224.17 | H157: 235.17 | I157: 237.58 | J157: 240.67 | K157: 234.5 | L157: 229 | M157: 23.22043
A158: 148 | B158: FACT | C158: 462.35 | D158: 451.12 | E158: 430.38 | F158: 398.42 | G158: 377.68 | H158: 483.08 | I158: 503.82 | J158: 535.78 | K158: 471.85 | L158: 419.15 | M158: 130.66819
A159: 149 | B159: FDC | C159: 320.1 | D159: 322.00 | E159: 317.10 | F159: 314.10 | G159: 309.20 | H159: 325.00 | I159: 329.90 | J159: 332.90 | K159: 326.9 | L159: 319 | M159: 3.44619
A160: 150 | B160: FEDERALBNK | C160: 123.05 | D160: 122.70 | E160: 121.80 | F160: 120.55 | G160: 119.65 | H160: 123.95 | I160: 124.85 | J160: 126.10 | K160: 123.6 | L160: 121.45 | M160: 97.68441
A161: 151 | B161: FINCABLES | C161: 783.6 | D161: 789.70 | E161: 774.40 | F161: 765.20 | G161: 749.90 | H161: 798.90 | I161: 814.20 | J161: 823.40 | K161: 805 | L161: 780.5 | M161: 2.80148
A162: 152 | B162: FINEORG | C162: 4865.85 | D162: 4873.28 | E162: 4842.57 | F162: 4819.28 | G162: 4788.57 | H162: 4896.57 | I162: 4927.28 | J162: 4950.57 | K162: 4904 | L162: 4850 | M162: 0.14859
A163: 153 | B163: FINPIPE | C163: 175.75 | D163: 176.77 | E163: 174.43 | F163: 173.12 | G163: 170.78 | H163: 178.08 | I163: 180.42 | J163: 181.73 | K163: 179.1 | L163: 175.45 | M163: 3.61867
A164: 154 | B164: FIVESTAR | C164: 645.3 | D164: 651.72 | E164: 634.98 | F164: 624.67 | G164: 607.93 | H164: 662.03 | I164: 678.77 | J164: 689.08 | K164: 668.45 | L164: 641.4 | M164: 1.95932
A165: 155 | B165: FLUOROCHEM | C165: 3009.05 | D165: 3023.02 | E165: 2991.03 | F165: 2973.02 | G165: 2941.03 | H165: 3041.03 | I165: 3073.02 | J165: 3091.03 | K165: 3055 | L165: 3005 | M165: 0.51709
A166: 156 | B166: FORTIS | C166: 304 | D166: 305.70 | E166: 301.70 | F166: 299.40 | G166: 295.40 | H166: 308.00 | I166: 312.00 | J166: 314.30 | K166: 309.7 | L166: 303.4 | M166: 12.88772
A167: 157 | B167: FSL | C167: 129.55 | D167: 130.27 | E167: 128.33 | F167: 127.12 | G167: 125.18 | H167: 131.48 | I167: 133.42 | J167: 134.63 | K167: 132.2 | L167: 129.05 | M167: 12.29289
A168: 158 | B168: GAEL | C168: 242.15 | D168: 242.72 | E168: 240.93 | F168: 239.72 | G168: 237.93 | H168: 243.93 | I168: 245.72 | J168: 246.93 | K168: 244.5 | L168: 241.5 | M168: 1.42849
A169: 159 | B169: GAIL | C169: 104.3 | D169: 104.48 | E169: 103.92 | F169: 103.53 | G169: 102.97 | H169: 104.87 | I169: 105.43 | J169: 105.82 | K169: 105.05 | L169: 104.1 | M169: 99.09567
A170: 160 | B170: GALAXYSURF | C170: 2656.55 | D170: 2673.50 | E170: 2620.05 | F170: 2583.55 | G170: 2530.10 | H170: 2710.00 | I170: 2763.45 | J170: 2799.95 | K170: 2726.95 | L170: 2637 | M170: 0.28012
A171: 161 | B171: GARFIBRES | C171: 3081.65 | D171: 3094.65 | E171: 3049.60 | F171: 3017.55 | G171: 2972.50 | H171: 3126.70 | I171: 3171.75 | J171: 3203.80 | K171: 3139.7 | L171: 3062.6 | M171: 0.27678
A172: 162 | B172: GESHIP | C172: 749.3 | D172: 742.80 | E172: 733.60 | F172: 717.90 | G172: 708.70 | H172: 758.50 | I172: 767.70 | J172: 783.40 | K172: 752 | L172: 727.1 | M172: 3.57095
A173: 163 | B173: GICRE | C173: 182.45 | D173: 182.62 | E173: 180.58 | F173: 178.72 | G173: 176.68 | H173: 184.48 | I173: 186.52 | J173: 188.38 | K173: 184.65 | L173: 180.75 | M173: 3.82517
A174: 164 | B174: GLAND | C174: 1014.95 | D174: 1016.87 | E174: 1008.08 | F174: 1001.22 | G174: 992.43 | H174: 1023.73 | I174: 1032.52 | J174: 1039.38 | K174: 1025.65 | L174: 1010 | M174: 3.87094
A175: 165 | B175: GLAXO | C175: 1431.3 | D175: 1432.80 | E175: 1418.60 | F175: 1405.90 | G175: 1391.70 | H175: 1445.50 | I175: 1459.70 | J175: 1472.40 | K175: 1447 | L175: 1420.1 | M175: 0.35994
A176: 166 | B176: GLENMARK | C176: 655.7 | D176: 657.43 | E176: 643.22 | F176: 630.73 | G176: 616.52 | H176: 669.92 | I176: 684.13 | J176: 696.62 | K176: 671.65 | L176: 644.95 | M176: 18.16232
A177: 167 | B177: GMMPFAUDLR | C177: 1503.1 | D177: 1501.13 | E177: 1487.27 | F177: 1471.43 | G177: 1457.57 | H177: 1516.97 | I177: 1530.83 | J177: 1546.67 | K177: 1515 | L177: 1485.3 | M177: 0.44235
A178: 168 | B178: GMRINFRA | C178: 42.8 | D178: 42.72 | E178: 42.38 | F178: 41.97 | G178: 41.63 | H178: 43.13 | I178: 43.47 | J178: 43.88 | K178: 43.05 | L178: 42.3 | M178: 105.0042
A179: 169 | B179: GNFC | C179: 585.1 | D179: 586.17 | E179: 577.93 | F179: 570.77 | G179: 562.53 | H179: 593.33 | I179: 601.57 | J179: 608.73 | K179: 594.4 | L179: 579 | M179: 8.6729
A180: 170 | B180: GOCOLORS | C180: 1131.95 | D180: 1130.82 | E180: 1113.73 | F180: 1095.52 | G180: 1078.43 | H180: 1149.03 | I180: 1166.12 | J180: 1184.33 | K180: 1147.9 | L180: 1112.6 | M180: 0.64415
A181: 171 | B181: GODFRYPHLP | C181: 1643.95 | D181: 1647.53 | E181: 1628.82 | F181: 1613.68 | G181: 1594.97 | H181: 1662.67 | I181: 1681.38 | J181: 1696.52 | K181: 1666.25 | L181: 1632.4 | M181: 0.66556
A182: 172 | B182: GODREJAGRO | C182: 452.15 | D182: 454.05 | E182: 448.10 | F182: 444.05 | G182: 438.10 | H182: 458.10 | I182: 464.05 | J182: 468.10 | K182: 460 | L182: 450 | M182: 0.46987
A183: 173 | B183: GODREJCP | C183: 1037.35 | D183: 1039.97 | E183: 1029.93 | F183: 1022.52 | G183: 1012.48 | H183: 1047.38 | I183: 1057.42 | J183: 1064.83 | K183: 1050 | L183: 1032.55 | M183: 6.64187
A184: 174 | B184: GODREJIND | C184: 501.55 | D184: 496.10 | E184: 486.75 | F184: 471.95 | G184: 462.60 | H184: 510.90 | I184: 520.25 | J184: 535.05 | K184: 505.45 | L184: 481.3 | M184: 15.24086
A185: 175 | B185: GODREJPROP | C185: 1563.3 | D185: 1554.62 | E185: 1543.23 | F185: 1523.17 | G185: 1511.78 | H185: 1574.68 | I185: 1586.07 | J185: 1606.13 | K185: 1566 | L185: 1534.55 | M185: 7.29872
A186: 176 | B186: GPPL | C186: 121.75 | D186: 122.07 | E186: 116.28 | F186: 110.82 | G186: 105.03 | H186: 127.53 | I186: 133.32 | J186: 138.78 | K186: 127.85 | L186: 116.6 | M186: 162.86776
A187: 177 | B187: GRANULES | C187: 297.2 | D187: 296.53 | E187: 292.37 | F187: 287.53 | G187: 283.37 | H187: 301.37 | I187: 305.53 | J187: 310.37 | K187: 300.7 | L187: 291.7 | M187: 32.20796
A188: 178 | B188: GRAPHITE | C188: 402.7 | D188: 404.67 | E188: 398.28 | F188: 393.87 | G188: 387.48 | H188: 409.08 | I188: 415.47 | J188: 419.88 | K188: 411.05 | L188: 400.25 | M188: 10.89947
A189: 179 | B189: GRASIM | C189: 1733.15 | D189: 1727.68 | E189: 1718.87 | F189: 1704.58 | G189: 1695.77 | H189: 1741.97 | I189: 1750.78 | J189: 1765.07 | K189: 1736.5 | L189: 1713.4 | M189: 3.37457
A190: 180 | B190: GREENPANEL | C190: 338.25 | D190: 333.92 | E190: 321.33 | F190: 304.42 | G190: 291.83 | H190: 350.83 | I190: 363.42 | J190: 380.33 | K190: 346.5 | L190: 317 | M190: 44.68209
A191: 181 | B191: GRINDWELL | C191: 2286.6 | D191: 2269.52 | E191: 2240.23 | F191: 2193.87 | G191: 2164.58 | H191: 2315.88 | I191: 2345.17 | J191: 2391.53 | K191: 2298.8 | L191: 2223.15 | M191: 0.7221
A192: 182 | B192: GRINFRA | C192: 1262.5 | D192: 1264.25 | E192: 1253.25 | F192: 1244.00 | G192: 1233.00 | H192: 1273.50 | I192: 1284.50 | J192: 1293.75 | K192: 1275.25 | L192: 1255 | M192: 0.10219
A193: 183 | B193: GSFC | C193: 162.4 | D193: 163.08 | E193: 161.32 | F193: 160.23 | G193: 158.47 | H193: 164.17 | I193: 165.93 | J193: 167.02 | K193: 164.85 | L193: 162 | M193: 14.7579
A194: 184 | B194: GSPL | C194: 295.4 | D194: 296.97 | E194: 292.93 | F194: 290.47 | G194: 286.43 | H194: 299.43 | I194: 303.47 | J194: 305.93 | K194: 301 | L194: 294.5 | M194: 3.93734
A195: 185 | B195: GUJALKALI | C195: 673.55 | D195: 674.17 | E195: 669.98 | F195: 666.42 | G195: 662.23 | H195: 677.73 | I195: 681.92 | J195: 685.48 | K195: 678.35 | L195: 670.6 | M195: 0.42477
A196: 186 | B196: GUJGASLTD | C196: 468.15 | D196: 467.93 | E196: 465.97 | F196: 463.78 | G196: 461.82 | H196: 470.12 | I196: 472.08 | J196: 474.27 | K196: 469.9 | L196: 465.75 | M196: 4.87725
A197: 187 | B197: HAL | C197: 3661.1 | D197: 3694.77 | E197: 3619.53 | F197: 3577.97 | G197: 3502.73 | H197: 3736.33 | I197: 3811.57 | J197: 3853.13 | K197: 3770 | L197: 3653.2 | M197: 21.9527
A198: 188 | B198: HAPPSTMNDS | C198: 956.8 | D198: 957.48 | E198: 947.32 | F198: 937.83 | G198: 927.67 | H198: 966.97 | I198: 977.13 | J198: 986.62 | K198: 967.65 | L198: 948 | M198: 2.33118
A199: 189 | B199: HAVELLS | C199: 1285.9 | D199: 1291.42 | E199: 1277.88 | F199: 1269.87 | G199: 1256.33 | H199: 1299.43 | I199: 1312.97 | J199: 1320.98 | K199: 1304.95 | L199: 1283.4 | M199: 9.53208
A200: 190 | B200: HCLTECH | C200: 1170 | D200: 1168.22 | E200: 1161.98 | F200: 1153.97 | G200: 1147.73 | H200: 1176.23 | I200: 1182.47 | J200: 1190.48 | K200: 1174.45 | L200: 1160.2 | M200: 15.04039
A201: 191 | B201: HDFC | C201: 2761.85 | D201: 2755.08 | E201: 2728.62 | F201: 2695.38 | G201: 2668.92 | H201: 2788.32 | I201: 2814.78 | J201: 2848.02 | K201: 2781.55 | L201: 2721.85 | M201: 82.46786
A202: 192 | B202: HDFCAMC | C202: 2052.9 | D202: 2036.80 | E202: 2015.10 | F202: 1977.30 | G202: 1955.60 | H202: 2074.60 | I202: 2096.30 | J202: 2134.10 | K202: 2058.5 | L202: 1999 | M202: 10.52054
A203: 193 | B203: HDFCBANK | C203: 1658.6 | D203: 1656.68 | E203: 1640.47 | F203: 1622.33 | G203: 1606.12 | H203: 1674.82 | I203: 1691.03 | J203: 1709.17 | K203: 1672.9 | L203: 1638.55 | M203: 169.15932
A204: 194 | B204: HDFCLIFE | C204: 667.2 | D204: 659.43 | E204: 644.87 | F204: 622.53 | G204: 607.97 | H204: 681.77 | I204: 696.33 | J204: 718.67 | K204: 674 | L204: 637.1 | M204: 300.50877
A205: 195 | B205: HEG | C205: 1611.2 | D205: 1618.37 | E205: 1597.88 | F205: 1584.57 | G205: 1564.08 | H205: 1631.68 | I205: 1652.17 | J205: 1665.48 | K205: 1638.85 | L205: 1605.05 | M205: 1.64667
A206: 196 | B206: HEROMOTOCO | C206: 2844.1 | D206: 2846.15 | E206: 2825.40 | F206: 2806.70 | G206: 2785.95 | H206: 2864.85 | I206: 2885.60 | J206: 2904.30 | K206: 2866.9 | L206: 2827.45 | M206: 4.15101
... 320 more rows

Sheet Bulk Deals
E6: Back To Main Page
A7: Subject : | B7: BULK DEAL | D7: =Main!B10 -> 2023-06-28
A9: Date | B9: Scrip code | C9: Scrip Name | D9: Client Name | E9: Buy / Sell | F9: Quantity Traded | G9: Trade Price / Wt.Avg.trade price | H9: Exchange
A10: 2023-06-27 | B10: 538465 | C10: AMARSEC | D10: AAMIR IQBAL GAUR | E10: SELL | F10: 16,700 | G10: 28 | H10: BSE
A11: 2023-06-27 | B11: 543920 | C11: CFF | D11: ARYAMAN BROKING LIMITED | E11: SELL | F11: 104,000 | G11: 184.29 | H11: BSE
A12: 2023-06-27 | B12: 543920 | C12: CFF | D12: ARYAMAN BROKING LIMITED | E12: BUY | F12: 800 | G12: 182.45 | H12: BSE
A13: 2023-06-27 | B13: 538868 | C13: CSL | D13: SUMAN BAGRA | E13: SELL | F13: 165,000 | G13: 7.95 | H13: BSE
A14: 2023-06-27 | B14: 531380 | C14: CSURGSU | D14: VIJAY KALIDAS MAJREKAR | E14: BUY | F14: 51,326 | G14: 64.15 | H14: BSE
A15: 2023-06-27 | B15: 531380 | C15: CSURGSU | D15: VIPUL NAVINCHANDRA SHAH | E15: SELL | F15: 28,849 | G15: 64.15 | H15: BSE
A16: 2023-06-27 | B16: 516003 | C16: DUROPLY | D16: AMODINI SALES PRIVATE LIMITED | E16: BUY | F16: 82,550 | G16: 202.3 | H16: BSE
A17: 2023-06-27 | B17: 516003 | C17: DUROPLY | D17: CUCKOO FISCAL SERVICES LIMITED | E17: SELL | F17: 90,000 | G17: 202.52 | H17: BSE
A18: 2023-06-27 | B18: 542724 | C18: EARUM | D18: DIPAK MATHURBHAI SALVI | E18: BUY | F18: 28,313 | G18: 2.28 | H18: BSE
A19: 2023-06-27 | B19: 542724 | C19: EARUM | D19: DIPAK MATHURBHAI SALVI | E19: SELL | F19: 505,313 | G19: 2.21 | H19: BSE
A20: 2023-06-27 | B20: 542724 | C20: EARUM | D20: MALTI SALVI | E20: BUY | F20: 609,730 | G20: 2.37 | H20: BSE
A21: 2023-06-27 | B21: 542724 | C21: EARUM | D21: MALTI SALVI | E21: SELL | F21: 1,379,562 | G21: 2.3 | H21: BSE
A22: 2023-06-27 | B22: 516110 | C22: FAMILYCARE | D22: ODYSSEY CORPORATION LIMITED | E22: SELL | F22: 446,700 | G22: 6.91 | H22: BSE
A23: 2023-06-27 | B23: 516110 | C23: FAMILYCARE | D23: ALACRITY SECURITIES LIMITED | E23: SELL | F23: 379,667 | G23: 6.85 | H23: BSE
A24: 2023-06-27 | B24: 540267 | C24: FLORACORP | D24: NAVINSONI | E24: SELL | F24: 2,711 | G24: 14.07 | H24: BSE
A25: 2023-06-27 | B25: 540267 | C25: FLORACORP | D25: NAVINSONI | E25: BUY | F25: 46,979 | G25: 14.03 | H25: BSE
A26: 2023-06-27 | B26: 542918 | C26: GIANLIFE | D26: ARUN KUMAR GUPTA | E26: SELL | F26: 54,620 | G26: 22.1 | H26: BSE
A27: 2023-06-27 | B27: 530663 | C27: GOYALASS | D27: YOGESHKUMARSHUKLA | E27: BUY | F27: 330,880 | G27: 1.82 | H27: BSE
A28: 2023-06-27 | B28: 542924 | C28: JANUSCORP | D28: MOHIT KUMAR | E28: BUY | F28: 91,000 | G28: 5.29 | H28: BSE
A29: 2023-06-27 | B29: 542924 | C29: JANUSCORP | D29: KAMLESH NAVINCHANDRA SHAH | E29: BUY | F29: 133,000 | G29: 4.97 | H29: BSE
A30: 2023-06-27 | B30: 542924 | C30: JANUSCORP | D30: KAMLESH NAVINCHANDRA SHAH | E30: SELL | F30: 56,000 | G30: 5.02 | H30: BSE
A31: 2023-06-27 | B31: 542924 | C31: JANUSCORP | D31: MISTERKAPOORKESHRI | E31: BUY | F31: 59,500 | G31: 5.12 | H31: BSE
A32: 2023-06-27 | B32: 542924 | C32: JANUSCORP | D32: MISTERKAPOORKESHRI | E32: SELL | F32: 563,500 | G32: 5.06 | H32: BSE
A33: 2023-06-27 | B33: 503669 | C33: KKFIN | D33: SUNIL K GUPTA | E33: SELL | F33: 40,000 | G33: 19.42 | H33: BSE
A34: 2023-06-27 | B34: 503669 | C34: KKFIN | D34: HARIVARDHAN STEEL & ALLOYS PRIVATE LIMTED | E34: BUY | F34: 45,027 | G34: 19.42 | H34: BSE
A35: 2023-06-27 | B35: 543624 | C35: MAAGHADV | D35: NNM SECURITIES PVT LTD | E35: BUY | F35: 12,000 | G35: 40.39 | H35: BSE
A36: 2023-06-27 | B36: 543624 | C36: MAAGHADV | D36: NNM SECURITIES PVT LTD | E36: SELL | F36: 18,000 | G36: 40.39 | H36: BSE
A37: 2023-06-27 | B37: 543207 | C37: NATURAL | D37: SANJAYDHAKED | E37: BUY | F37: 64,500 | G37: 6.4 | H37: BSE
A38: 2023-06-27 | B38: 543207 | C38: NATURAL | D38: BIDARAKEREJAYARAMEGOWDASUNITHA | E38: SELL | F38: 67,441 | G38: 6.34 | H38: BSE
A39: 2023-06-27 | B39: 543207 | C39: NATURAL | D39: VIJAYKUMAR JAYANTILAL THAKKAR | E39: BUY | F39: 58,620 | G39: 6.34 | H39: BSE
A40: 2023-06-27 | B40: 543207 | C40: NATURAL | D40: RIPALBEN DHARMIKKUMAR PARIKH | E40: BUY | F40: 57,645 | G40: 6.39 | H40: BSE
A41: 2023-06-27 | B41: 543207 | C41: NATURAL | D41: JYOTI SINGH | E41: SELL | F41: 166,810 | G41: 6.34 | H41: BSE
A42: 2023-06-27 | B42: 543207 | C42: NATURAL | D42: RIPALBEN DHARMIKKUMAR PARIKH | E42: SELL | F42: 30,600 | G42: 6.4 | H42: BSE
A43: 2023-06-27 | B43: 543207 | C43: NATURAL | D43: AMIT PITAMSINGH VERMA | E43: BUY | F43: 120,000 | G43: 6.29 | H43: BSE
A44: 2023-06-27 | B44: 506122 | C44: PANKAJPIYUS | D44: ALPESHBHAI RASIKLAL SHAH | E44: BUY | F44: 2,677 | G44: 104.46 | H44: BSE
A45: 2023-06-27 | B45: 540703 | C45: PROCLB | D45: SANJAY DHIRUBHAI KAPADIA | E45: BUY | F45: 27,687 | G45: 6.19 | H45: BSE
A46: 2023-06-27 | B46: 542145 | C46: RONI | D46: PRAMOD JAGANNATH WARADKAR | E46: SELL | F46: 52,200 | G46: 36 | H46: BSE
A47: 2023-06-27 | B47: 542145 | C47: RONI | D47: SATISH TUKARAM PAWAR | E47: SELL | F47: 46,800 | G47: 36 | H47: BSE
A48: 2023-06-27 | B48: 542145 | C48: RONI | D48: SHAILESH SURESH BAJAJ | E48: BUY | F48: 100,800 | G48: 36 | H48: BSE
A49: 2023-06-27 | B49: 538212 | C49: SHARPINV | D49: KARVA AUTOMART LIMITED | E49: SELL | F49: 3,553,415 | G49: 0.72 | H49: BSE
A50: 2023-06-27 | B50: 530525 | C50: SHEETAL | D50: SATISH KUMAR | E50: SELL | F50: 89,360 | G50: 18.76 | H50: BSE
A51: 2023-06-27 | B51: 530525 | C51: SHEETAL | D51: SARITA AGARWAL | E51: BUY | F51: 60,001 | G51: 19.01 | H51: BSE
A52: 2023-06-27 | B52: 530525 | C52: SHEETAL | D52: RITESH KUMAR JYOTI | E52: SELL | F52: 54,000 | G52: 19.01 | H52: BSE
A53: 2023-06-27 | B53: 538923 | C53: SOFCOM | D53: SOUTH GUJARAT SHARES AND SHAREBROKERS LIMITED | E53: BUY | F53: 49,000 | G53: 53.86 | H53: BSE
A54: 2023-06-27 | B54: 543924 | C54: SONALIS | D54: YUGA STOCKS AND COMMODITIES PRIVATE LIMITED . | E54: SELL | F54: 16,000 | G54: 43.75 | H54: BSE
A55: 2023-06-27 | B55: 543924 | C55: SONALIS | D55: SPRING VENTURES | E55: SELL | F55: 12,000 | G55: 43.75 | H55: BSE
A56: 2023-06-27 | B56: 540914 | C56: SRUSTEELS | D56: GODHAR RAJENDRA GANGARAM | E56: SELL | F56: 176,669 | G56: 26.12 | H56: BSE
A57: 2023-06-27 | B57: 540914 | C57: SRUSTEELS | D57: ZEEL SANJAY SONI | E57: SELL | F57: 260,691 | G57: 26.14 | H57: BSE
A58: 2023-06-27 | B58: 540914 | C58: SRUSTEELS | D58: GODHAR RAJENDRA GANGARAM | E58: BUY | F58: 54,896 | G58: 25.98 | H58: BSE
A59: 2023-06-27 | B59: 540914 | C59: SRUSTEELS | D59: ZEEL SANJAY SONI | E59: BUY | F59: 51,513 | G59: 26.14 | H59: BSE
A60: 2023-06-27 | B60: 540914 | C60: SRUSTEELS | D60: PRABHULAL LALLUBHAI PAREKH | E60: SELL | F60: 92,365 | G60: 26.15 | H60: BSE
A61: 2023-06-27 | B61: 540914 | C61: SRUSTEELS | D61: APOORV AGARWAL | E61: SELL | F61: 106,699 | G61: 26.15 | H61: BSE
A62: 2023-06-27 | B62: 543799 | C62: SVJ | D62: SRESTHA FINVEST LIMITED | E62: BUY | F62: 33,000 | G62: 55.17 | H62: BSE
A63: 2023-06-27 | B63: 543799 | C63: SVJ | D63: SRESTHA FINVEST LIMITED | E63: SELL | F63: 15,000 | G63: 55.77 | H63: BSE
A64: 2023-06-27 | B64: 539406 | C64: SWAGTAM | D64: ASHISH JAIN | E64: SELL | F64: 50,000 | G64: 55.04 | H64: BSE
A65: 2023-06-27 | B65: 539406 | C65: SWAGTAM | D65: ATLAS EVENTS PRIVATE LIMITED | E65: BUY | F65: 50,000 | G65: 54.96 | H65: BSE
A66: 2023-06-27 | B66: 531628 | C66: TEJASSVI | D66: VINITAJAIN | E66: SELL | F66: 58,469 | G66: 15.08 | H66: BSE
A67: 2023-06-27 | B67: 531628 | C67: TEJASSVI | D67: VINITA GAUR | E67: BUY | F67: 50,000 | G67: 15.08 | H67: BSE
A68: 2023-06-27 | B68: 532159 | C68: TRESCON | D68: HEMANT JAWAHARLAL JHAVERI | E68: BUY | F68: 400,000 | G68: 12.99 | H68: BSE
A69: 2023-06-27 | B69: 532159 | C69: TRESCON | D69: DEEPA HEMANT JHAVERI | E69: BUY | F69: 369,800 | G69: 12.99 | H69: BSE
A70: 2023-06-27 | B70: 532159 | C70: TRESCON | D70: SHAH AJAY GUNVANTRAI | E70: BUY | F70: 894,394 | G70: 12.99 | H70: BSE
A71: 2023-06-27 | B71: 532159 | C71: TRESCON | D71: VILAS PRALHADRAO KHARCHE | E71: SELL | F71: 1,732,000 | G71: 12.99 | H71: BSE
A72: 2023-06-27 | B72: 503657 | C72: VEERENRGY | D72: KRUPA HARSH JAIN | E72: SELL | F72: 100,000 | G72: 11.54 | H72: BSE
A73: 2023-06-27 | B73: AKG | C73: AKG Exim Limited | D73: RAJAN GUPTA | E73: BUY | F73: 170,000 | G73: 30.84 | H73: NSE
A74: 2023-06-27 | B74: AMBER | C74: Amber Enterprises (I) Ltd | D74: BNP PARIBAS ARBITRAGE | E74: BUY | F74: 177,870 | G74: 2254.71 | H74: NSE
A75: 2023-06-27 | B75: ATALREAL | C75: Atal Realtech Limited | D75: OPTUME INVESTMENTS | E75: BUY | F75: 110,190 | G75: 120.17 | H75: NSE
A76: 2023-06-27 | B76: COFFEEDAY | C76: Coffee Day Enterprise Ltd | D76: HRTI PRIVATE LIMITED | E76: BUY | F76: 988,860 | G76: 40.7 | H76: NSE
A77: 2023-06-27 | B77: CORALFINAC | C77: Coral India Fin & Hous Lt | D77: KARANKUMAR KANUJI THAKOR | E77: BUY | F77: 257,300 | G77: 40.23 | H77: NSE
A78: 2023-06-27 | B78: DIL | C78: Debock Industries Limited | D78: ATLAS EVENTS PRIVATE LIMITED | E78: BUY | F78: 3,591,610 | G78: 17.38 | H78: NSE
A79: 2023-06-27 | B79: DIL | C79: Debock Industries Limited | D79: QE SECURITIES | E79: BUY | F79: 756,765 | G79: 17.41 | H79: NSE
A80: 2023-06-27 | B80: DIL | C80: Debock Industries Limited | D80: NIVL ADVISORS PRIVATE LIMITED | E80: BUY | F80: 1,109,392 | G80: 16.47 | H80: NSE
A81: 2023-06-27 | B81: DIL | C81: Debock Industries Limited | D81: PAULOMI KETAN DOSHI | E81: BUY | F81: 400,000 | G81: 16.5 | H81: NSE
A82: 2023-06-27 | B82: DIL | C82: Debock Industries Limited | D82: HOTI LAL | E82: BUY | F82: 747,408 | G82: 16.42 | H82: NSE
A83: 2023-06-27 | B83: EROSMEDIA | C83: Eros Intl Media Ltd | D83: CITADEL SECURITIES INDIA MARKETS PRIVATE LIMITED | E83: BUY | F83: 434,129 | G83: 20.47 | H83: NSE
A84: 2023-06-27 | B84: HDFCLIFE | C84: HDFC Life Ins Co Ltd | D84: HOUSING DEVELOPMENT FINANCE CORPORATION LIMITED | E84: BUY | F84: 14,880,000 | G84: 667.1 | H84: NSE
A85: 2023-06-27 | B85: NECLTD-RE | C85: North East Carry Corp Ltd | D85: SANDIP GUPTA | E85: BUY | F85: 100,000 | G85: 0.25 | H85: NSE
A86: 2023-06-27 | B86: PARAGMILK | C86: Parag Milk Foods Ltd. | D86: GRAVITON RESEARCH CAPITAL LLP | E86: BUY | F86: 812,235 | G86: 136.72 | H86: NSE
A87: 2023-06-27 | B87: PARTYCRUS | C87: Party Cruisers Limited | D87: IMRAN KHAN | E87: BUY | F87: 2,000 | G87: 61.65 | H87: NSE
A88: 2023-06-27 | B88: RBL | C88: Rane Brake Lining Limited | D88: GRAVITON RESEARCH CAPITAL LLP | E88: BUY | F88: 74,976 | G88: 849.4 | H88: NSE
A89: 2023-06-27 | B89: RTNPOWER | C89: RattanIndia Power Limited | D89: ACHINTYA SECURITIES PRIVATE LIMITED | E89: BUY | F89: 28,322,295 | G89: 5.81 | H89: NSE
A90: 2023-06-27 | B90: SANGINITA | C90: Sanginita Chemicals Limit | D90: RIYA RONIT SHAH | E90: BUY | F90: 100,162 | G90: 18.23 | H90: NSE
A91: 2023-06-27 | B91: SAPPHIRE | C91: Sapphire Foods India Ltd | D91: GOLDMAN SACHS (SINGAPORE) PTE.- ODI | E91: BUY | F91: 342,000 | G91: 1377.1 | H91: NSE
A92: 2023-06-27 | B92: SAPPHIRE | C92: Sapphire Foods India Ltd | D92: SOCIETE GENERALE - ODI | E92: BUY | F92: 473,000 | G92: 1377.1 | H92: NSE
A93: 2023-06-27 | B93: SAPPHIRE | C93: Sapphire Foods India Ltd | D93: THE NOMURA TRUST AND BANKING CO LTD AS THE TRUSTEE OF NOMURA INDIA STOCK MOTHER FUND | E93: BUY | F93: 438,705 | G93: 1377.1 | H93: NSE
A94: 2023-06-27 | B94: SCAPDVR | C94: Stampede Capital Limited | D94: SAROJ GUPTA | E94: BUY | F94: 650,000 | G94: 16.77 | H94: NSE
A95: 2023-06-27 | B95: SECURCRED | C95: SecUR Credentials Limited | D95: RAHUL BELWALKAR | E95: BUY | F95: 900,000 | G95: 24 | H95: NSE
A96: 2023-06-27 | B96: SHRADHA | C96: Shradha Infraprojects Ltd | D96: SGR HOLDINGS PRIVATE LIMITED . | E96: BUY | F96: 285,200 | G96: 49 | H96: NSE
A97: 2023-06-27 | B97: SOLARA | C97: Solara Active Pha Sci Ltd | D97: SPIRACCA VENTURES LLP | E97: BUY | F97: 200,000 | G97: 371.54 | H97: NSE
A98: 2023-06-27 | B98: TIMETECHNO | C98: Time Technoplast Limited | D98: CRONY VYAPAR PVT LTD | E98: BUY | F98: 2,358,931 | G98: 123.5 | H98: NSE
A99: 2023-06-27 | B99: UNIVASTU | C99: Univastu India Limited | D99: VEENA RAJESH SHAH | E99: BUY | F99: 104,727 | G99: 111.39 | H99: NSE
A100: 2023-06-27 | B100: VEEKAYEM | C100: Veekayem Fash & App Ltd | D100: SHREEJI CAPITAL AND FINANCE LIMITED | E100: BUY | F100: 40,000 | G100: 57.45 | H100: NSE
A101: 2023-06-27 | B101: VISHWARAJ | C101: Vishwaraj Sugar Ind Ltd | D101: BHAMINI KAMAL PAREKH | E101: BUY | F101: 30,000 | G101: 15.95 | H101: NSE
A102: 2023-06-27 | B102: VISHWARAJ | C102: Vishwaraj Sugar Ind Ltd | D102: ATLAS EVENTS PRIVATE LIMITED | E102: BUY | F102: 4,279,091 | G102: 16.32 | H102: NSE
A103: 2023-06-27 | B103: AMBER | C103: Amber Enterprises (I) Ltd | D103: BNP PARIBAS ARBITRAGE | E103: SELL | F103: 292 | G103: 2290.11 | H103: NSE
A104: 2023-06-27 | B104: ATALREAL | C104: Atal Realtech Limited | D104: YELLOWSTONE VENTURES LLP | E104: SELL | F104: 174,724 | G104: 120.08 | H104: NSE
A105: 2023-06-27 | B105: COFFEEDAY | C105: Coffee Day Enterprise Ltd | D105: HRTI PRIVATE LIMITED | E105: SELL | F105: 1,215,967 | G105: 40.8 | H105: NSE
A106: 2023-06-27 | B106: CORALFINAC | C106: Coral India Fin & Hous Lt | D106: KARANKUMAR KANUJI THAKOR | E106: SELL | F106: 343,320 | G106: 39.75 | H106: NSE
A107: 2023-06-27 | B107: DIL | C107: Debock Industries Limited | D107: HOTI LAL | E107: SELL | F107: 747,408 | G107: 16.42 | H107: NSE
A108: 2023-06-27 | B108: DIL | C108: Debock Industries Limited | D108: ATLAS EVENTS PRIVATE LIMITED | E108: SELL | F108: 3,591,610 | G108: 17 | H108: NSE
A109: 2023-06-27 | B109: DIL | C109: Debock Industries Limited | D109: PAULOMI KETAN DOSHI | E109: SELL | F109: 286,237 | G109: 17.25 | H109: NSE
A110: 2023-06-27 | B110: DIL | C110: Debock Industries Limited | D110: NIVL ADVISORS PRIVATE LIMITED | E110: SELL | F110: 1,109,392 | G110: 16.47 | H110: NSE
A111: 2023-06-27 | B111: DIL | C111: Debock Industries Limited | D111: QE SECURITIES | E111: SELL | F111: 756,765 | G111: 16.93 | H111: NSE
A112: 2023-06-27 | B112: EROSMEDIA | C112: Eros Intl Media Ltd | D112: CITADEL SECURITIES INDIA MARKETS PRIVATE LIMITED | E112: SELL | F112: 504,086 | G112: 20.51 | H112: NSE
A113: 2023-06-27 | B113: GISOLUTION | C113: GI Engineering Solutions | D113: MANSI SHARE AND STOCK ADVISORS PVT LTD | E113: SELL | F113: 678,319 | G113: 11.3 | H113: NSE
A114: 2023-06-27 | B114: LIBAS | C114: Libas Consu Products Ltd | D114: ADITYA RASHMIKANT DHARIA | E114: SELL | F114: 148,787 | G114: 14.53 | H114: NSE
A115: 2023-06-27 | B115: NECLTD-RE | C115: North East Carry Corp Ltd | D115: SANDIP GUPTA | E115: SELL | F115: 261,515 | G115: 0.3 | H115: NSE
A116: 2023-06-27 | B116: PARAGMILK | C116: Parag Milk Foods Ltd. | D116: GRAVITON RESEARCH CAPITAL LLP | E116: SELL | F116: 812,235 | G116: 136.83 | H116: NSE
A117: 2023-06-27 | B117: PARTYCRUS | C117: Party Cruisers Limited | D117: IMRAN KHAN | E117: SELL | F117: 92,000 | G117: 60.72 | H117: NSE
A118: 2023-06-27 | B118: PIGL | C118: Power Instrument (G) Ltd | D118: LALWANI NIRAJ | E118: SELL | F118: 96,894 | G118: 46.7 | H118: NSE
A119: 2023-06-27 | B119: RBL | C119: Rane Brake Lining Limited | D119: GRAVITON RESEARCH CAPITAL LLP | E119: SELL | F119: 74,976 | G119: 850.13 | H119: NSE
A120: 2023-06-27 | B120: RTNPOWER | C120: RattanIndia Power Limited | D120: ACHINTYA SECURITIES PRIVATE LIMITED | E120: SELL | F120: 29,255,002 | G120: 5.82 | H120: NSE
A121: 2023-06-27 | B121: SAPPHIRE | C121: Sapphire Foods India Ltd | D121: WWD RUBY LIMITED | E121: SELL | F121: 3,030,215 | G121: 1377.1 | H121: NSE
A122: 2023-06-27 | B122: SCAPDVR | C122: Stampede Capital Limited | D122: L7 HITECH PRIVATE LIMITED | E122: SELL | F122: 767,797 | G122: 16.61 | H122: NSE
A123: 2023-06-27 | B123: SHRADHA | C123: Shradha Infraprojects Ltd | D123: SHRADHA INDUSTRIES LTD | E123: SELL | F123: 285,200 | G123: 49 | H123: NSE
A124: 2023-06-27 | B124: SOLARA | C124: Solara Active Pha Sci Ltd | D124: KARUNA BUSINESS SOLUTIONS LLP | E124: SELL | F124: 200,000 | G124: 371.53 | H124: NSE
A125: 2023-06-27 | B125: TIMETECHNO | C125: Time Technoplast Limited | D125: CRONY VYAPAR PVT LTD | E125: SELL | F125: 1,727,014 | G125: 123.57 | H125: NSE
A126: 2023-06-27 | B126: UNIVASTU | C126: Univastu India Limited | D126: VEENA RAJESH SHAH | E126: SELL | F126: 104,727 | G126: 106.15 | H126: NSE
A127: 2023-06-27 | B127: URBAN | C127: Urban Enviro Waste Mgmt L | D127: MANSI SHARE AND STOCK ADVISORS PVT LTD | E127: SELL | F127: 22,800 | G127: 140.3 | H127: NSE
A128: 2023-06-27 | B128: VISHWARAJ | C128: Vishwaraj Sugar Ind Ltd | D128: BHAMINI KAMAL PAREKH | E128: SELL | F128: 993,812 | G128: 16.81 | H128: NSE
A129: 2023-06-27 | B129: VISHWARAJ | C129: Vishwaraj Sugar Ind Ltd | D129: ATLAS EVENTS PRIVATE LIMITED | E129: SELL | F129: 4,279,091 | G129: 16.29 | H129: NSE

Sheet Call Tracker (Equity & F&O)
M5: Back To Main Page
A6: Retail Research Technical Calls & Fundamental Performance Report for the month of June-2023
M7: =Main!B10 -> 2023-06-28
B8: Positional Call
A9: Sr.no | B9: Date | D9: Company | E9: Rec | F9: Rec Price | G9: Stop Loss*** | H9: Call Closed At | I9: Target | J9: Remark | K9: Profit / Loss per Share | L9: All charges | M9: Net Gain / Loss % | N9: Status | O9: Closed Date | P9: Market Closing Price
A10: 1 | B10: 2023-05-12 | D10: SBIN | E10: Accu | F10: 562-574 | G10: 538 | I10: 600-630 | J10: Open | P10: =VLOOKUP(D10,'MidCap Intra'!B39:C538,2,0) -> 566.10 | R10: H
A11: 2 | B11: 2023-05-22 | D11: JSWSTEEL | E11: Accu | F11: 691 | G11: 637 | H11: 732 | I11: 740-780 | J11: Profit of Rs.41/- | K11: =H11-F11 -> 41 | L11: =(F11*-0.7)/100 -> -4.84 | M11: =(K11+L11)/F11 -> 5.23% | N11: Successful | O11: 2023-06-07 | R11: H
A12: 3 | B12: 2023-05-31 | D12: GSFC | E12: Accu | F12: 157 | G12: 144 | H12: 166.5 | I12: 170-175 | J12: Profit of Rs.9.5/- | K12: =H12-F12 -> 9.5 | L12: =(F12*-0.7)/100 -> -1.10 | M12: =(K12+L12)/F12 -> 5.35% | N12: Successful | O12: 2023-06-21 | R12: H
A13: 4 | B13: 2023-06-05 | D13: REDINGTON | E13: Accu | F13: 180.5 | G13: 164 | H13: 193.5 | I13: 195-200 | J13: Profit of Rs.13/- | K13: =H13-F13 -> 13 | L13: =(F13*-0.7)/100 -> -1.26 | M13: =(K13+L13)/F13 -> 6.50% | N13: Successful | O13: 2023-06-14 | R13: H
A14: 5 | B14: 2023-06-07 | D14: UBL | E14: Accu | F14: 1435-1495 | G14: 1385 | I14: 1600-1650 | J14: Open | P14: =VLOOKUP(D14,'MidCap Intra'!B43:C542,2,0) -> 1498.75 | R14: H
A15: 6 | B15: 2023-06-09 | D15: KNRCON | E15: Accu | F15: 230 | G15: 200 | H15: 248 | I15: 270-290 | J15: Profit of Rs.18/- | K15: =H15-F15 -> 18 | L15: =(F15*-0.7)/100 -> -1.61 | M15: =(K15+L15)/F15 -> 7.13% | N15: Successful | O15: 2023-06-19 | R15: H
A16: 7 | B16: 2023-06-12 | D16: SUMICHEM | E16: Accu | F16: 401 | G16: 370 | H16: 423 | I16: 430-450 | J16: Profit of Rs.22/- | K16: =H16-F16 -> 22 | L16: =(F16*-0.7)/100 -> -2.81 | M16: =(K16+L16)/F16 -> 4.79% | N16: Successful | O16: 2023-06-19 | R16: H
A17: 8 | B17: 2023-06-13 | D17: BAYERCROP | E17: Accu | F17: 4015-4215 | G17: 3900 | I17: 4500-4600 | J17: Open | P17: =VLOOKUP(D17,'MidCap Intra'!B46:C545,2,0) -> 4325.75 | R17: H
A18: 9 | B18: 2023-06-15 | D18: ATUL | E18: Accu | F18: 6650-6950 | G18: 6400 | I18: 7400-7600 | J18: Open | P18: =VLOOKUP(D18,'MidCap Intra'!B47:C546,2,0) -> 6994.05 | R18: H
A19: 10 | B19: 2023-06-15 | D19: OBEROIRLTY | E19: Accu | F19: 990-1030 | G19: 930 | I19: 1150-1200 | J19: Open | P19: =VLOOKUP(D19,'MidCap Intra'!B48:C547,2,0) -> 984.15 | R19: H
A20: 11 | B20: 2023-06-16 | D20: IGL | E20: Accu | F20: 465 | G20: 434 | H20: 490.5 | I20: 500-520 | J20: Profit of Rs.25.5/- | K20: =H20-F20 -> 25.5 | L20: =(F20*-0.7)/100 -> -3.26 | M20: =(K20+L20)/F20 -> 4.78% | N20: Successful | O20: 2023-06-22 | R20: H
A21: 12 | B21: 2023-06-19 | D21: SHARDACROP | E21: Accu | F21: 515-540 | G21: 489 | I21: 580-620 | J21: Open | P21: =VLOOKUP(D21,'MidCap Intra'!B50:C549,2,0) -> 554.50 | R21: H
A22: 13 | B22: 2023-06-20 | D22: JAMNAAUTO | E22: Accu | F22: 99.5 | G22: 89 | H22: 105.5 | I22: 110-115 | J22: Profit of Rs.6/- | K22: =H22-F22 -> 6 | L22: =(F22*-0.7)/100 -> -0.70 | M22: =(K22+L22)/F22 -> 5.33% | N22: Successful | O22: 2023-06-20 | R22: H
A23: 14 | B23: 2023-06-20 | D23: PCBL | E23: Accu | F23: 152-157 | G23: 144 | I23: 175-180 | J23: Open | P23: =VLOOKUP(D23,'MidCap Intra'!B52:C551,2,0) -> 157.95 | R23: H
A24: 15 | B24: 2023-06-21 | D24: JAMNAAUTO | E24: Accu | F24: 97-102 | G24: 94 | I24: 110-115 | J24: Open | P24: =VLOOKUP(D24,'MidCap Intra'!B53:C552,2,0) -> 101.25 | R24: H
A25: 16 | B25: 2023-06-22 | D25: FLUOROCHEM | E25: Accu | F25: 3000-3100 | G25: 2840 | I25: 3400-3600 | J25: Open | P25: =VLOOKUP(D25,'MidCap Intra'!B54:C553,2,0) -> 3009.05
A26: 17 | B26: 2023-06-23 | D26: HDFCLIFE | E26: Accu | F26: 625 | G26: 567 | H26: 665.5 | I26: 680-700 | J26: Profit of Rs.40.50/- | K26: =H26-F26 -> 40.5 | L26: =(F26*-0.7)/100 -> -4.38 | M26: =(K26+L26)/F26 -> 5.78% | N26: Successful | O26: 2023-06-26 | P26: =VLOOKUP(D26,'MidCap Intra'!B55:C554,2,0) -> 667.20
A31: CLBS = Closing Basis ***
A32: Dividend adjusted <> | F32: Reinitiated $
A33: Part book {} | D33: s | F33: Revised stoploss #
B35: Momentum Call
A36: Sr.no | B36: Date | D36: Company | E36: Rec | F36: Rec Price | G36: Stop Loss | H36: Call Closed At | I36: Target | J36: Remark | K36: Profit / Loss per Share/Lot | L36: All charges | M36: Net Gain / Loss % | N36: Status | O36: Closed Date
A37: 1 | B37: 2023-05-23 | D37: ACC | E37: Buy | F37: 1811 | G37: 1750 | H37: 1855 | I37: 1900-1920 | J37: Profit of Rs.44/- | K37: =H37-F37 -> 44 | L37: =(F37*-0.7)/100 -> -12.68 | M37: =(K37+L37)/F37 -> 1.73% | N37: Successful | O37: 2023-06-06 | R37: H
A38: 2 | B38: 2023-06-01 | D38: MARICO | E38: Buy | F38: 555.5 | G38: 539 | H38: 539 | I38: 590-600 | J38: Loss of Rs.16.5/- | K38: -16.5 | L38: -3.89 | M38: -3.67% | N38: Unsuccessful | O38: 2023-06-09 | R38: H
A39: 3 | B39: 2023-06-01 | D39: COALINDIA | E39: Buy | F39: 228.5-230.5 | G39: 222 | I39: 240-244 | J39: Open | R39: H
A40: 4 | B40: 2023-06-02 | D40: MINDACORP | E40: Buy | F40: 293 | G40: 284 | H40: 284 | I40: 305-315 | J40: Loss of Rs.9/- | K40: =H40-F40 -> -9 | L40: =(F40*-0.7)/100 -> -2.05 | M40: =(K40+L40)/F40 -> -3.77% | N40: Unsuccessful | O40: 2023-06-08 | R40: H
A41: 5 | B41: 2023-06-07 | D41: ACC | E41: Buy | F41: 1843 | G41: 1785 | H41: 1850 | I41: 1920-1950 | J41: Profit of Rs.7/- | K41: =H41-F41 -> 7 | L41: =(F41*-0.7)/100 -> -12.90 | M41: =(K41+L41)/F41 -> -0.32% | N41: Neutral | O41: 2023-06-22 | R41: H
A42: 6 | B42: 2023-06-07 | D42: CHAMBLFERT | E42: Buy | F42: 280.5 | G42: 272.5 | H42: 272.5 | I42: 290-295 | J42: Loss of Rs.8/- | K42: =H42-F42 -> -8 | L42: =(F42*-0.7)/100 -> -1.96 | M42: =(K42+L42)/F42 -> -3.55% | N42: Unsuccessful | O42: 2023-06-23 | R42: N
A43: 7 | B43: 2023-06-15 | D43: PCBL | E43: Buy | F43: 158 | G43: 153 | H43: 163.25 | I43: 164-168 | J43: Profit of Rs.5.25/- | K43: =H43-F43 -> 5.25 | L43: =(F43*-0.7)/100 -> -1.11 | M43: =(K43+L43)/F43 -> 2.62% | N43: Successful | O43: 2023-06-16 | R43: H
A44: 8 | B44: 2023-06-19 | D44: IRCTC | E44: Buy | F44: 661.5 | G44: 645 | H44: 674 | I44: 690-700 | J44: Profit of Rs.12.5/- | K44: =H44-F44 -> 12.5 | L44: =(F44*-0.07)/100 -> -0.46 | M44: =(K44+L44)/F44 -> 1.82% | N44: Successful | O44: 2023-06-19 | R44: H
A45: 9 | B45: 2023-06-19 | D45: IRCTC | E45: Buy | F45: 662.5 | G45: 644 | H45: 644 | I45: 690-700 | J45: Loss of Rs.18.5/- | K45: =H45-F45 -> -18.5 | L45: =(F45*-0.7)/100 -> -4.64 | M45: =(K45+L45)/F45 -> -3.49% | N45: Unsuccessful | O45: 2023-06-23 | R45: H
A47: CLBS = Closing Basis *** | H47: *
A48: Dividend adjusted <> | F48: Reinitiated $
F49: Revised stoploss #
A51: Master Trade High Risk
A52: Sr.no | B52: Date | D52: Company | E52: Rec | F52: Rec Price | G52: Stop Loss | H52: Call Closed At | I52: Target | J52: Remark | K52: Profit / Loss per share | L52: All charges | M52: Gain / Loss per Lot | N52: Lot | O52: Status | P52: Closed Date
A53: 1 | B53: 2023-06-02 | D53: LT JUNE FUT | E53: Buy | F53: 2245 | G53: 2197 | H53: 2276 | I53: 2300-2320 | J53: Profit of Rs.31/- | K53: =H53-F53 -> 31 | L53: =(H53*N53)*0.07% -> 477.96 | M53: =(K53*N53)-L53 -> 8822.0 | N53: 300 | O53: Successful | P53: 2023-06-05 | R53: H
A54: 2 | B54: 2023-06-07 | D54: GODREJCP JUNE FUT | E54: Buy | F54: 1065 | G54: 1053 | H54: 1052 | I54: 1080-1100 | J54: Loss of Rs.13/- | K54: -13 | L54: 736.40 | M54: -13736.4 | N54: 1000 | O54: Unsuccessful | P54: 2023-06-09 | R54: N
A55: 3 | B55: 2023-06-12 | D55: INDUSTOWER JUNE FUT | E55: Sell | F55: 161 | G55: 165 | H55: 165 | I55: 152 | J55: Loss of Rs.4/- | K55: =F55-H55 -> -4 | L55: 323.40 | M55: -11523.4 | N55: 2800 | O55: Unsuccessful | P55: 2023-06-13 | R55: N
A56: 4 | B56: 2023-06-12 | D56: LICHSGFIN JUNE FUT | E56: Sell | F56: 367.5 | G56: 374 | H56: 374 | I56: 360-355 | J56: Loss of Rs.6.5/- | K56: -6.5 | L56: 523.60 | M56: -13523.6 | N56: 2000 | O56: Unsuccessful | P56: 2023-06-13 | R56: H
A57: 5 | B57: 2023-06-14 | D57: ICICIBANK JUNE FUT | E57: Sell | F57: 932 | G57: 950 | H57: 921.5 | I57: 910-900 | J57: Profit of Rs.10.5/- | K57: =F57-H57 -> 10.5 | L57: 451.54 | M57: 6898.5 | N57: 700 | O57: Successful | P57: 2023-06-20 | R57: H
A58: 6 | B58: 2023-06-19 | D58: HDFCLIFE JUNE FUT | E58: Buy | F58: 606 | G58: 595 | H58: 617 | I58: 620-630 | J58: Profit of Rs.11/- | K58: =H58-F58 -> 11 | L58: =(H58*N58)*0.07% -> 475.09 | M58: =(K58*N58)-L58 -> 11624.9 | N58: 1100 | O58: Successful | P58: 2023-06-19 | R58: H
A59: 7 | B59: 2023-06-19 | D59: TATACOMM JUNE FUT | E59: Buy | F59: 1572 | G59: 1548 | H59: 1591 | I59: 1600-1620 | J59: Profit of Rs.19/- | K59: =H59-F59 -> 19 | L59: =(H59*N59)*0.07% -> 556.85 | M59: =(K59*N59)-L59 -> 8943.2 | N59: 500 | O59: Successful | P59: 2023-06-20 | R59: H
A60: 8 | B60: 2023-06-22 | D60: HCLTECH JULY FUT | E60: Buy | F60: 1161 | G60: 1143 | H60: 1172.5 | I60: 1185-1195 | J60: Profit of Rs.11.50/- | K60: =H60-F60 -> 11.5 | L60: =(H60*N60)*0.07% -> 574.53 | M60: =(K60*N60)-L60 -> 7475.5 | N60: 700 | O60: Successful | P60: 2023-06-26
A61: 9 | B61: 2023-06-23 | D61: NIFTY JUNE FUT | E61: Sell | F61: 18745 | G61: 19020 | H61: 18735 | I61: 18500.00 | J61: Profit of Rs.10/- | K61: =F61-H61 -> 10 | L61: 655.73 | M61: -155.7 | N61: 50 | O61: Neutral | P61: 2023-06-26
A62: 10 | B62: 2023-06-26 | D62: CANBK JULY FUT | E62: Sell | F62: 298 | G62: 303 | H62: 294.5 | I62: 290-287 | J62: Profit of Rs.3.5/- | K62: =F62-H62 -> 3.5 | L62: =(H62*N62)*0.07% -> 556.61 | M62: =(K62*N62)-L62 -> 8893.4 | N62: 2700 | O62: Successful | P62: 2023-06-26
A63: 11 | B63: 2023-06-26 | D63: BHARTIARTL JULY FUT | E63: Buy | F63: 851 | G63: 837 | H63: 857.5 | I63: 870-880 | J63: Profit of Rs.6.5/- | K63: =H63-F63 -> 6.5 | L63: =(H63*N63)*0.07% -> 570.24 | M63: =(K63*N63)-L63 -> 5604.8 | N63: 950 | O63: Successful | P63: 2023-06-26
A67: Master Trade Medium Risk
A68: Sr.no | B68: Date | D68: Company | E68: Rec | F68: Rec Price | G68: Stop Loss | H68: Call Closed At | I68: Target | J68: Remark | K68: Profit/ Loss per lot | L68: All charges | M68: Gain / Loss per Lot | N68: Lot | O68: Status | P68: Closed Date
A69: 1 | B69: 2023-06-01 | D69: COALINDIA 240 CE JUN | E69: Buy | F69: 1.5 | G69: 0.4 | H69: 2.15 | I69: 3.0-4.0 | J69: Profit of Rs.0.65/- | K69: =H69-F69 -> 0.65 | L69: 100.00 | M69: =(K69*N69)-100 -> 2630.0 | N69: 4200 | O69: Successful | P69: 2023-06-02 | R69: H
A70: 2 | B70: 2023-06-01 | D70: NIFTY 18400 PE 8-JUN | E70: Buy | F70: 47.5 | G70: 18 | H70: 17 | I70: 90-110 | J70: Loss of Rs.30.5/- | K70: -30.5 | L70: 100.00 | M70: -1625.0 | N70: 50 | O70: Unsuccessful | P70: 2023-06-05 | R70: H
A71: 3 | B71: 2023-06-01 | D71: BANKNIFTY 44200 CE 8-JUN | E71: Buy | F71: 210 | G71: 115 | H71: 225 | I71: 320-380 | J71: Profit of Rs.0.15/- | K71: 15 | L71: 100.00 | M71: 275.0 | N71: 25 | O71: Neutral | P71: 2023-06-02 | R71: H
A72: 4 | B72: 2023-06-02 | D72: NIFTY 18900 CE 29-JUNE | E72: Sell | F72: 82.5 | G72: 145 | H72: 62.5 | I72: 10.0-1 | J72: Profit of Rs.20/- | K72: =F72-H72 -> 20 | L72: 100.00 | M72: 900.0 | N72: 50 | O72: Successful | P72: 2023-06-02 | R72: H
A73: 5 | B73: 2023-06-02 | D73: NIFTY 18900 CE 29-JUNE | E73: Sell | F73: 85 | G73: 145 | H73: 64 | I73: 10.0-1 | J73: Profit of Rs.21/- | K73: 21 | L73: 100.00 | M73: 950.0 | N73: 50 | O73: Successful | P73: 2023-06-02 | R73: H
A74: 6 | B74: 2023-06-02 | D74: ICICIBANK 930 PE JUN | E74: Buy | F74: 10.5 | G74: 4 | H74: 14.5 | I74: 18-22 | J74: Profit of Rs.4/- | K74: =H74-F74 -> 4 | L74: 100.00 | M74: 2700.0 | N74: 700 | O74: Successful | P74: 2023-06-15 | R74: H
A75: 7 | B75: 2023-06-05 | D75: BANKNIFTY 44000 PE 8-JUN | E75: Buy | F75: 130 | G75: 45 | H75: 152.5 | I75: 200-250 | J75: Profit of Rs.22.5/- | K75: =H75-F75 -> 22.5 | L75: 100.00 | M75: =(K75*N75)-100 -> 462.5 | N75: 25 | O75: Successful | P75: 2023-06-06 | R75: H
A76: 8 | B76: 2023-06-05 | D76: IGL 480 CE 29-JUNE | E76: Sell | F76: 7.35 | G76: 12 | H76: 5.8 | I76: 1.00 | J76: Profit of Rs.1.55/- | K76: =F76-H76 -> 1.55 | L76: 100.00 | M76: 2031.3 | N76: 1375 | O76: Successful | P76: 2023-06-06 | R76: H
A77: 9 | B77: 2023-06-06 | D77: FINNIFTY 19450 CE 6-JUN | E77: Buy | F77: 11.5 | H77: 21.5 | I77: 40-60 | J77: Profit of Rs.10/- | K77: =H77-F77 -> 10 | L77: 100.00 | M77: 300.0 | N77: 40 | O77: Successful | P77: 2023-06-06 | R77: H
A78: 10 | B78: 2023-06-06 | D78: RELIANCE 2480 CE JUNE | E78: Buy | F78: 47 | G78: 29 | H78: 53 | I78: 10.0-1 | J78: Profit of Rs.6/- | K78: 6 | L78: 100.00 | M78: 1400.0 | N78: 250 | O78: Successful | P78: 2023-06-07 | R78: H
A79: 11 | B79: 2023-06-07 | D79: NIFTY 18900 CE 29-JUNE | E79: Sell | F79: =(87.5+120)/2 -> 103.75 | G79: 145 | H79: 68.5 | I79: 10.0-1 | J79: Profit of Rs.35.25/- | K79: =F79-H79 -> 35.25 | L79: 100.00 | M79: 1662.5 | N79: 50 | O79: Successful | P79: 2023-06-09 | R79: H
A80: 12 | B80: 2023-06-07 | D80: BANKNIFTY 44200 PE 8-JUN | E80: Buy | F80: 119 | G80: 35 | H80: 35 | I80: 200-250 | J80: Loss of Rs.84/- | K80: =H80-F80 -> -84 | L80: 100.00 | M80: -2200.0 | N80: 25 | O80: Unsuccessful | P80: 2023-06-08 | R80: H
A81: 13 | B81: 2023-06-08 | D81: INFY 1300 CE JUN | E81: Buy | F81: 19.5 | G81: 8 | H81: 8 | I81: 32-40 | J81: Loss of Rs.11.5/- | K81: =H81-F81 -> -11.5 | L81: 100.00 | M81: =(K81*N81)-100 -> -4700.0 | N81: 400 | O81: Unsuccessful | P81: 2023-06-22 | R81: N
A82: 14 | B82: 2023-06-09 | D82: NIFTY 18600 PE 15-JUN | E82: Buy | F82: 52.5 | G82: 19 | H82: 73.5 | I82: 90-110 | J82: Profit of Rs.21/- | K82: =H82-F82 -> 21 | L82: 100.00 | M82: =(K82*N82)-100 -> 950.0 | N82: 50 | O82: Successful | P82: 2023-06-09 | R82: H
A83: 15 | B83: 2023-06-09 | D83: TITAN 3000 CE JUN | E83: Sell | F83: 20 | G83: 32 | H83: 14.5 | I83: 1.00 | J83: Profit of Rs.5.5/- | K83: =F83-H83 -> 5.5 | L83: 100.00 | M83: 1962.5 | N83: 375 | O83: Successful | P83: 2023-06-09 | R83: H
A84: 16 | B84: 2023-06-09 | D84: L&TFH 112 CE JUN | E84: Sell | F84: 1.15 | G84: 1.7 | H84: 1.7 | I84: 0.10 | J84: Loss of Rs.0.55/- | K84: -0.55 | L84: 100.00 | M84: -5008.2 | N84: 8924 | O84: Unsuccessful | P84: 2023-06-13 | R84: H
A85: 17 | B85: 2023-06-09 | D85: RECLTD 150 CE JUN | E85: Sell | F85: 2 | G85: 3.2 | H85: 3.1 | I85: 0.10 | J85: Loss of Rs.1.1/- | K85: -1.1 | L85: 100.00 | M85: -8900.0 | N85: 8000 | O85: Unsuccessful | P85: 2023-06-09 | R85: H
A86: 18 | B86: 2023-06-09 | D86: NIFTY 18600 PE 15-JUN | E86: Buy | F86: 52.5 | G86: 19 | H86: 72 | I86: 90-110 | J86: Profit of Rs.19.5/- | K86: =H86-F86 -> 19.5 | L86: 100.00 | M86: 875.0 | N86: 50 | O86: Successful | P86: 2023-06-09 | R86: H
A87: 19 | B87: 2023-06-09 | D87: TITAN 2820 PE JUN | E87: Buy | F87: 23.5 | G87: 8 | H87: 30.5 | I87: 40-50 | J87: Profit of Rs.7/- | K87: 7 | L87: 100.00 | M87: 2525.0 | N87: 375 | O87: Successful | P87: 2023-06-12 | R87: H
A88: 20 | B88: 2023-06-09 | D88: BANKNIFTY 45000 CE 29-JUN | E88: Sell | F88: 190 | G88: 290 | H88: 142.5 | I88: 0.10 | J88: Profit of Rs.47.5/- | K88: =F88-H88 -> 47.5 | L88: 100.00 | M88: 1087.5 | N88: 25 | O88: Successful | P88: 2023-06-09 | R88: H
A89: 21 | B89: 2023-06-09 | D89: FINNIFTY 19450 PE 13-JUN | E89: Buy | F89: 52.5 | G89: 15 | H89: 76 | I89: 100-120 | J89: Profit of Rs.23.5/- | K89: =H89-F89 -> 23.5 | L89: 100.00 | M89: 840.0 | N89: 40 | O89: Successful | P89: 2023-06-09 | R89: N
A90: 22 | B90: 2023-06-12 | D90: NIFTY 18500 PE 15-JUN | E90: Buy | F90: 36 | G90: 15 | H90: 15 | I90: 80-100 | J90: Loss of Rs.21/- | K90: -21 | L90: 100.00 | M90: -1150.0 | N90: 50 | O90: Unsuccessful | P90: 2023-06-13 | R90: H
A91: 23 | B91: 2023-06-12 | D91: NIFTY 18800 CE 29-JUN | E91: Sell | F91: 103.5 | G91: 147 | H91: 147 | I91: 40-10 | J91: Loss of Rs.43. 5/- | K91: =F91-H91 -> -43.5 | L91: 100.00 | M91: -2275.0 | N91: 50 | O91: Unsuccessful | P91: 2023-06-14 | R91: H
A92: 24 | B92: 2023-06-12 | D92: FINNIFTY 19400 PE 13-JUN | E92: Buy | F92: 33 | H92: 36 | I92: 100.00 | J92: Profit of Rs.3/- | K92: =H92-F92 -> 3 | L92: 100.00 | M92: 20.0 | N92: 40 | O92: Neutral | P92: 2023-06-12 | R92: N
A93: 25 | B93: 2023-06-12 | D93: BANKNIFTY 44000 PE 15-JUN | E93: Buy | F93: 200 | G93: 90 | H93: 250 | I93: 350-400 | J93: Profit of Rs.50/- | K93: 50 | L93: 100.00 | M93: 1150.0 | N93: 25 | O93: Successful | P93: 2023-06-12 | R93: H
A94: 26 | B94: 2023-06-12 | D94: TITAN 2820 PE JUN | E94: Buy | F94: 26 | G94: 12 | H94: 12 | I94: 40-50 | J94: Loss of Rs.14/- | K94: -14 | L94: 100.00 | M94: =(K94*N94)-100 -> -5350.0 | N94: 375 | O94: Unsuccessful | P94: 2023-06-15 | R94: H
A95: 27 | B95: 2023-06-13 | D95: BANKNIFTY 44000 PE 15-JUN | E95: Buy | F95: 120 | G95: 40 | H95: 170 | I95: 300-350 | J95: Profit of Rs.50/- | K95: =H95-F95 -> 50 | L95: 100.00 | M95: =(K95*N95)-100 -> 1150.0 | N95: 25 | O95: Successful | P95: 2023-06-14 | R95: H
A96: 28 | B96: 2023-06-13 | D96: FINNIFTY 19450 PE 13-JUN | E96: Buy | F96: 20 | G96: 0 | H96: 44 | I96: 50-60 | J96: Profit of Rs.24/- | K96: 24 | L96: 100.00 | M96: 860.0 | N96: 40 | O96: Successful | P96: 2023-06-13 | R96: N
A97: 27 | B97: 2023-06-14 | D97: BANKNIFTY 44000 PE 22-JUN | E97: Buy | F97: 230 | H97: 300 | J97: Profit of Rs.55/- | K97: 70 | L97: 100.00 | M97: 1175.0 | N97: 25 | O97: Successful | P97: 2023-06-15 | R97: H
D98: BANKNIFTY 43900 PE 15-JUN | E98: Sell | F98: 65 | H98: 80 | K98: =F98-H98 -> -15 | L98: 100.00
A99: 28 | B99: 2023-06-14 | D99: JINDALSTEEL 550 CE JUNE | E99: Buy | F99: 12.75 | G99: 8 | H99: 24 | I99: 18-22 | J99: Profit of Rs.11.25/- | K99: =H99-F99 -> 11.25 | L99: 100.00 | M99: =(K99*N99)-100 -> 13962.5 | N99: 1250 | O99: Successful | P99: 2023-06-19 | R99: N
A100: 29 | B100: 2023-06-14 | D100: BATAINDIA 1600 CE JUN | E100: Buy | F100: 40 | G100: 23 | H100: 45 | I100: 60-70 | J100: Profit of Rs.05/- | K100: =H100-F100 -> 5 | L100: 100.00 | M100: =(K100*N100)-100 -> 1775.0 | N100: 375 | O100: Successful | P100: 2023-06-16 | R100: N
A101: 30 | B101: 2023-06-15 | D101: NIFTY 18750 PE 15-JUN | E101: Buy | F101: 22 | G101: 0 | H101: 35 | I101: 50-60 | J101: Profit of Rs.13/- | K101: =H101-F101 -> 13 | L101: 100.00 | M101: =(K101*N101)-100 -> 550.0 | N101: 50 | O101: Successful | P101: 2023-06-15 | R101: H
A102: 31 | B102: 2023-06-15 | D102: BANKNIFTY 44000 PE 15-JUN | E102: Buy | F102: 102.5 | G102: 0 | H102: 147.5 | I102: 250-300 | J102: Profit of Rs.45/- | K102: =H102-F102 -> 45 | L102: 100.00 | M102: =(K102*N102)-100 -> 1025.0 | N102: 25 | O102: Successful | P102: 2023-06-15 | R102: H
A103: 32 | B103: 2023-06-15 | D103: NIFTY 18700 PE 22-JUN | E103: Buy | F103: 61.5 | G103: 30 | H103: 81.5 | I103: 100-120 | J103: Profit of Rs.20/- | K103: =H103-F103 -> 20 | L103: 100.00 | M103: =(K103*N103)-100 -> 900.0 | N103: 50 | O103: Successful | P103: 2023-06-15 | R103: H
A104: 33 | B104: 2023-06-16 | D104: BANKNIFTY 43000 PE 29-JUN | E104: Buy | F104: 160 | G104: 70 | H104: 90 | I104: 280-350 | J104: Loss of Rs.70/- | K104: -70 | L104: 100.00 | M104: -1850.0 | N104: 25 | O104: Unsuccessful | P104: 2023-06-16 | R104: H
A105: 34 | B105: 2023-06-16 | D105: SIEMENS 3800 CE 29-JUN | E105: Buy | F105: 64 | G105: 45 | H105: 69.5 | I105: 100-110 | J105: Profit of Rs.5.5/- | K105: =H105-F105 -> 5.5 | L105: 100.00 | M105: =(K105*N105)-100 -> 1412.5 | N105: 275 | O105: Successful | P105: 2023-06-16 | R105: N
A106: 35 | B106: 2023-06-16 | D106: NIFTY 18750 PE 22-JUN | E106: Buy | F106: 55 | G106: 30 | H106: 30 | I106: 90-110 | J106: Loss of Rs.25/- | K106: -25 | L106: 100.00 | M106: -1350.0 | N106: 50 | O106: Unsuccessful | P106: 2023-06-19 | R106: H
A107: 36 | B107: 2023-06-16 | D107: UPL 700 CE JUNE | E107: Buy | F107: 9.5 | G107: 5.5 | H107: 5.5 | I107: 15-18 | J107: Loss of Rs.4/- | K107: =H107-F107 -> -4 | L107: 100.00 | M107: =(K107*N107)-100 -> -5300.0 | N107: 1300 | O107: Unsuccessful | P107: 2023-06-19 | R107: N
A108: 37 | B108: 2023-06-16 | D108: BATAINDIA 1620 CE 29-JUN | E108: Buy | F108: 33 | G108: 15 | H108: 39 | I108: 60-70 | J108: Profit of Rs.06/- | K108: 6 | L108: 100.00 | M108: 2150.0 | N108: 375 | O108: Successful | P108: 2023-06-20 | R108: N
A109: 38 | B109: 2023-06-19 | D109: IRCTC 680 CE JUNE | E109: Buy | F109: 9.5 | G109: 4.5 | H109: 4.5 | I109: 15-18 | J109: Loss of Rs.5/- | K109: =H109-F109 -> -5 | L109: 100.00 | M109: =(K109*N109)-100 -> -4475.0 | N109: 875 | O109: Unsuccessful | P109: 2023-06-22 | R109: H
A110: 39 | B110: 2023-06-19 | D110: FINNIFTY 19450 CE 20-JUN | E110: Buy | F110: 33 | G110: 0 | H110: 62 | I110: 70-90 | J110: Profit of Rs.29/- | K110: =H110-F110 -> 29 | L110: 100.00 | M110: =(K110*N110)-100 -> 1060.0 | N110: 40 | O110: Successful | P110: 2023-06-19 | R110: N
A111: 40 | B111: 2023-06-19 | D111: FINNIFTY 19400 PE 20-JUN | E111: Buy | F111: 24 | G111: 0 | H111: 52.5 | I111: 50-70 | J111: Profit of Rs.28.5/- | K111: =H111-F111 -> 28.5 | L111: 100.00 | M111: =(K111*N111)-100 -> 1040.0 | N111: 40 | O111: Successful | P111: 2023-06-19 | R111: N
A112: 41 | B112: 2023-06-20 | D112: TITAN 2940 PE JUN | E112: Buy | F112: 22 | G112: 18 | H112: 29 | I112: 35-45 | J112: Profit of Rs.7/- | K112: 7 | L112: 100.00 | M112: 2525.0 | N112: 375 | O112: Successful | P112: 2023-06-20 | R112: H
A113: 42 | B113: 2023-06-20 | D113: SIEMENS 3850 CE 29-JUN | E113: Buy | F113: 45 | G113: 29 | H113: 55 | I113: 70-80 | J113: Profit of Rs.10/- | K113: 10 | L113: 100.00 | M113: 2650.0 | N113: 275 | O113: Successful | P113: 2023-06-20 | R113: N
A114: 43 | B114: 2023-06-20 | D114: FINNIFTY 19350 CE 20-JUN | E114: Buy | F114: 19 | G114: 0 | H114: 48 | I114: 50-60 | J114: Profit of Rs.29/- | K114: 29 | L114: 100.00 | M114: 1060.0 | N114: 40 | O114: Successful | P114: 2023-06-20 | R114: N
A115: 44 | B115: 2023-06-20 | D115: BANKNIFTY 43200 PE 22-JUN | E115: Buy | F115: 80 | G115: 0 | H115: 25 | I115: 180-220 | J115: Loss of Rs.55/- | K115: -55 | L115: 100.00 | M115: -1475.0 | N115: 25 | O115: Unsuccessful | P115: 2023-06-21 | R115: H
A116: 45 | B116: 2023-06-20 | D116: TITAN 2960 PE 29-JUN | E116: Buy | F116: 28 | G116: 15 | H116: 33 | I116: 40-50 | J116: Profit of Rs.5/- | K116: 5 | L116: 100.00 | M116: 1775.0 | N116: 375 | O116: Successful | P116: 2023-06-21 | R116: H
A117: 46 | B117: 2023-06-20 | D117: SIEMENS 3850 CE 29-JUN | E117: Buy | F117: 45 | G117: 29 | H117: 53 | I117: 70-80 | J117: Profit of Rs.8/- | K117: 8 | L117: 100.00 | M117: 2100.0 | N117: 275 | O117: Successful | P117: 2023-06-20 | R117: N
A118: 47 | B118: 2023-06-21 | D118: MCDOWELL-N 900 PE 29-JUN | E118: Buy | F118: 11.50 | G118: 4 | H118: 15 | I118: 20-25 | J118: Profit of Rs.3.5/- | K118: 3.5 | L118: 100.00 | M118: 2087.5 | N118: 625 | O118: Successful | P118: 2023-06-21 | R118: H
A119: 48 | B119: 2023-06-21 | D119: BATAINDIA 1660 CE 29-JUN | E119: Buy | F119: 24.50 | G119: 10 | H119: 10 | I119: 40-50 | J119: Loss of Rs.14.50/- | K119: -14.5 | L119: 100.00 | M119: -5537.5 | N119: 375 | O119: Unsuccessful | P119: 2023-06-23 | R119: N
A120: 49 | B120: 2023-06-21 | D120: NIFTY 18900 CE 29-JUN | E120: Buy | F120: 96 | G120: 40 | H120: 40 | I120: 180-220 | J120: Loss of Rs.41/- | K120: =H120-F120 -> -56 | L120: 100.00 | M120: =(K120*N120)-100 -> -2900.0 | N120: 50 | O120: Unsuccessful | P120: 2023-06-23 | R120: H
D121: NIFTY 18950 CE 22-JUN | E121: Sell | F121: 15 | H121: 0 | I121: 0 | K121: =F121-H121 -> 15 | L121: 100.00 | M121: 650.0 | N121: 50 | P121: 2023-06-23
A122: 50 | B122: 2023-06-21 | D122: SIEMENS 3850 CE 29-JUN | E122: Buy | F122: 40 | G122: 25 | H122: 25 | I122: 60-70 | J122: Loss of Rs.15/- | K122: =H122-F122 -> -15 | L122: 100.00 | M122: =(K122*N122)-100 -> -4225.0 | N122: 275 | O122: Unsuccessful | P122: 2023-06-22 | R122: N
A123: 51 | B123: 2023-06-22 | D123: TITAN 2960 PE 29-JUN | E123: Buy | F123: 25 | G123: 12 | H123: 34.5 | I123: 40-50 | J123: Profit of Rs.9.5/- | K123: 9.5 | L123: 100.00 | M123: 3462.5 | N123: 375 | O123: Successful | P123: 2023-06-23
A124: 52 | B124: 2023-06-22 | D124: IRCTC 670 CE 29-JUN | E124: Buy | F124: 7 | G124: 1.4 | H124: 1.4 | I124: 12-15 | J124: Loss of Rs.5.6/- | K124: -5.6 | L124: 100.00 | M124: -5000.0 | N124: 875 | O124: Unsuccessful | P124: 2023-06-23
A125: 53 | B125: 2023-06-22 | D125: BANKNIFTY 43900 PE 22-JUN | E125: Buy | F125: 47.5 | G125: 0 | H125: 85 | I125: 80-120 | J125: Profit of Rs.3.5/- | K125: =H125-F125 -> 37.5 | L125: 100.00 | M125: =(K125*N125)-100 -> 837.5 | N125: 25 | O125: Successful | P125: 2023-06-22
A126: 54 | B126: 2023-06-23 | D126: BANKNIFTY 43500 PE 29-JUN | E126: Buy | F126: 155 | G126: 40 | H126: 47.5 | I126: 300-350 | J126: Loss of Rs. 107.5/- | K126: -107.5 | L126: 100.00 | M126: -2787.5 | N126: 25 | O126: Unsuccessful | P126: 2023-06-26
A127: 55 | B127: 2023-06-23 | D127: FINNIFTY 19600 CE 27-JUN | E127: Buy | F127: 43.50 | G127: 0 | H127: 57.5 | I127: 90-120 | J127: Profit of Rs.14/- | K127: =H127-F127 -> 14 | L127: 100.00 | M127: =(K127*N127)-100 -> 460.0 | N127: 40 | O127: Successful | P127: 2023-06-26
A128: 26 | B128: 2023-06-26 | D128: NIFTY 18750 PE 29-JUN | E128: Buy | F128: 46-50 | G128: 0 | I128: 100-130 | J128: Open
A132: Techno -Funda (positional)
A133: Sr.no | B133: Date | D133: Company | E133: Rec | F133: Rec Price | G133: Stop Loss*** | H133: Call Closed At | I133: Target | J133: Remark | K133: Profit / Loss per Share/Lot | L133: All charges | M133: Net Gain / Loss % | N133: Status | O133: Closed Date | P133: Market Closing Price
A134: 1 | B134: 2022-10-06 | D134: AMBIKCO | E134: Buy | F134: 1420-1620 | G134: 1220 | I134: 2000-2300 | J134: Open | P134: =VLOOKUP(D134,'MidCap Intra'!B98:C597,2,0) ->  | R134: H
A135: 2 | B135: 2023-05-04 | D135: IOC | E135: Buy | F135: 84 | G135: 74.9 | H135: 91.5 | I135: 95-100 | J135: Profit of Rs.7.5/- | K135: =H135-F135 -> 7.5 | L135: =(F135*-0.7)/100 -> -0.59 | M135: =(K135+L135)/F135 -> 8.23% | N135: Successful | O135: 2023-06-09 | R135: H
A136: 3 | B136: 2023-05-25 | D136: GSPL | E136: Buy | F136: 276-296 | G136: 267 | I136: 330-350 | J136: Open | R136: H
A137: 4 | B137: 2023-05-31 | D137: ROUTE | E137: Buy | F137: 1410 | G137: 1240 | H137: 1540 | I137: 1600-1650 | J137: Profit of Rs.130/- | K137: =H137-F137 -> 130 | L137: =(F137*-0.7)/100 -> -9.87 | M137: =(K137+L137)/F137 -> 8.52% | N137: Successful | O137: 2023-06-07 | R137: H
A139: CLBS = Closing Basis *** | F139: Reinitiated $
A140: Dividend adjusted <> | F140: Revised stoploss # | H140: .................
B149: Investment Idea
A150: Sr.no | B150: Date | D150: Company | E150: Rec | F150: Rec Price | G150: Point of Review | H150: Close Rate | I150: Target | J150: Remark | K150: Profit / Loss per Share | L150: Gain / Loss % | M150: Status | N150: Closed Date
A151: 1 | B151: 2013-11-01 | D151: L&T Finance Holding | E151: Accu | F151: 82.00 | G151: - | H151: 100 | I151: 100.00 | J151: Target Achieved | K151: =H151-F151 -> 18.00 | L151: =K151/F151 -> 21.95% | M151: Successful | N151: 2016-10-14
A152: 2 | B152: 2014-06-04 | D152: Finolex Inds | E152: Buy | F152: 257.00 | G152: - | H152: 300 | I152: 300.00 | J152: Target Achieved | K152: 43.00 | L152: 16.73% | M152: Successful | N152: 2014-07-02
A153: 3 | B153: 2014-07-08 | D153: JK Cement | E153: Buy | F153: 393.00 | G153: - | H153: 468 | I153: 468.00 | J153: Target Achieved | K153: 75.00 | L153: 19.08% | M153: Successful | N153: 2014-08-12
A154: 4 | B154: 2014-08-06 | D154: Finolex Cables | E154: Buy | F154: 205.00 | G154: - | H154: 275 | I154: 250.00 | J154: Target Achieved | K154: 70.00 | L154: 34.15% | M154: Successful | N154: 2014-11-19
A155: 5 | B155: 2014-09-04 | D155: Exide Inds | E155: Buy | F155: 162.00 | G155: - | H155: 190 | I155: 190.00 | J155: Target Achieved | K155: 28.00 | L155: 17.28% | M155: Successful | N155: 2015-01-02
A156: 6 | B156: 2014-09-04 | D156: Deepak Nitrite | E156: Buy | F156: 75.00 | G156: - | H156: 91.5 | I156: 95-100 | J156: Profit of Rs.16.50/- | K156: 16.50 | L156: 22.00% | M156: Successful | N156: 2014-11-11
A157: 7 | B157: 2014-10-01 | D157: Mercks | E157: Buy | F157: 850.00 | G157: - | H157: 982.5 | I157: 1050.00 | J157: Profit of Rs.132.50/- | K157: 132.50 | L157: 15.59% | M157: Successful | N157: 2015-02-04
A158: 8 | B158: 2014-10-01 | D158: Grindwell Norton | E158: Buy | F158: 475.00 | G158: - | H158: 515 | I158: 600.00 | J158: Profit of Rs.40/- | K158: 40.00 | L158: 8.42% | M158: Successful | N158: 2014-10-27
A159: 9 | B159: 2014-10-01 | D159: Snowman Logistics | E159: Buy | F159: 86.00 | G159: - | H159: 99 | I159: 140.00 | J159: Profit of Rs.13.00/- | K159: 13.00 | L159: 15.12% | M159: Successful | N159: 2014-10-27
A160: 10 | B160: 2014-10-14 | D160: Birla Corp | E160: Buy | F160: 496.60 | G160: - | H160: 621 | I160: 580.00 | J160: Target Achieved | K160: 124.40 | L160: 25.05% | M160: Successful | N160: 2016-08-23
A161: 11 | B161: 2014-10-14 | D161: Ultratech Cem | E161: Buy | F161: 2481.90 | G161: - | H161: 2840 | I161: 2870.00 | J161: Profit of Rs.358.10/- | K161: 358.10 | L161: 14.43% | M161: Successful | N161: 2015-01-13
A162: 12 | B162: 2014-10-16 | D162: Sintex Inds | E162: Buy | F162: 84.50 | G162: - | H162: 93 | I162: 110.00 | J162: Profit of Rs.8.50/- | K162: 8.50 | L162: 10.06% | M162: Successful | N162: 2014-10-27
A163: 13 | B163: 2014-10-16 | D163: HSIL | E163: Buy | F163: 401.00 | G163: - | H163: 428 | I163: 450.00 | J163: Profit of Rs.27.00/- | K163: 27.00 | L163: 6.73% | M163: Successful | N163: 2015-01-16
A164: 14 | B164: 2014-10-16 | D164: Eveready Inds | E164: Buy | F164: 101.00 | G164: - | H164: 112 | I164: 120.00 | J164: Profit of Rs.11.00/- | K164: 11.00 | L164: 10.89% | M164: Successful | N164: 2014-10-27
A165: 15 | B165: 2014-11-11 | D165: Pennar Inds | E165: Buy | F165: 59.00 | G165: - | H165: 76 | I165: 76.00 | J165: Target Achieved | K165: 17.00 | L165: 28.81% | M165: Successful | N165: 2017-10-24
A166: 16 | B166: 2014-11-11 | D166: Snowman Logistics | E166: Buy | F166: 99.00 | G166: - | H166: 120 | I166: 120.00 | J166: Profit of Rs.21/- | K166: 21.00 | L166: 21.21% | M166: Successful | N166: 2014-11-17
A167: 17 | B167: 2014-11-13 | D167: Dharamsi Morarji Chem | E167: Buy | F167: 22.00 | G167: - | H167: 33.55 | I167: 32.00 | J167: Profit of Rs 11.55/- | K167: 11.55 | L167: 52.50% | M167: Successful | N167: 2015-07-03
A168: 18 | B168: 2014-12-03 | D168: Tatachem | E168: Buy | F168: 440.00 | G168: - | H168: 520 | I168: 520.00 | J168: Profit of Rs 80.00/- | K168: 80.00 | L168: 18.18% | M168: Successful | N168: 2015-07-23
A169: 19 | B169: 2014-12-03 | D169: Advanta | E169: Buy | F169: 360.00 | G169: - | H169: 427 | I169: 425.00 | J169: Profit of Rs.67.00/- | K169: 67.00 | L169: 18.61% | M169: Successful | N169: 2015-02-23
A170: 20 | B170: 2015-01-08 | D170: GDL | E170: Buy | F170: 360.00 | G170: - | H170: 455 | I170: 420.00 | J170: Profit of Rs.95.00/- | K170: 95.00 | L170: 26.39% | M170: Successful | N170: 2015-01-20
A171: 21 | B171: 2015-01-08 | D171: NRB Bearing | E171: Buy | F171: 130.00 | H171: 175.5 | I171: 165.00 | J171: Profit of Rs 45.50/- | K171: 45.50 | L171: 35.00% | M171: Successful | N171: 2017-12-19
A172: 22 | B172: 2015-02-05 | D172: GSFC | E172: Accu | F172: 98.00 | H172: 120 | I172: 120.00 | J172: Target Achieved | K172: 22.00 | L172: 22.45% | M172: Successful | N172: 2017-01-18
A173: 23 | B173: 2015-02-05 | D173: Sundrmfast | E173: Accu | F173: 196.00 | H173: 262 | I173: 255.00 | J173: Target Achieved | K173: 66.00 | L173: 33.67% | M173: Successful | N173: 2016-08-17
A174: 24 | B174: 2015-03-04 | D174: GPPL | E174: Accu | F174: 235 | H174: 77.00 | I174: 280-285 | J174: Loss of Rs.158/- | K174: -158.00 | L174: -67.23% | M174: Unsuccessful | N174: 2019-02-26
A175: 25 | B175: 2015-03-04 | D175: ORIENTCEM | E175: Accu | F175: 185.00 | H175: 224 | I175: 220-225 | J175: Target Achieved | K175: 39.00 | L175: 21.08% | M175: Successful | N175: 2016-10-04
A176: 26 | B176: 2015-03-27 | D176: PFS | E176: Accu | F176: 49.5 | H176: 15.85 | I176: 67.00 | J176: Loss of Rs.33.65/- | K176: -33.65 | L176: -68% | M176: Unsuccessful | N176: 2019-06-11
A177: 27 | B177: 2015-03-30 | D177: Walchandnagar Ind Ltd | E177: Accu | F177: 183.50 | H177: 219 | I177: 218.00 | J177: Profit of Rs.35.50/- | K177: 35.50 | L177: 19.35% | M177: Successful | N177: 2015-04-09
A178: 28 | B178: 2015-04-20 | D178: Kalpataru Power Transmission Ltd | E178: Accu | F178: =(227+237)/2 -> 232.00 | H178: 298 | I178: 298.00 | J178: Target Achieved | K178: 66.00 | L178: 28.45% | M178: Successful | N178: 2017-03-29
A179: 29 | B179: 2015-05-04 | D179: Mastek Ltd | E179: Buy | F179: 385.00 | H179: =212.5+331 -> 543.5 | I179: 510.00 | J179: Profit of Rs 158.50/- | K179: 158.50 | L179: 41.17% | M179: Successful | N179: 2015-08-19
A180: 30 | B180: 2015-05-04 | D180: Suprajit Eng | E180: Buy | F180: 115.50 | H180: 146 | I180: 142.00 | J180: Profit of Rs 30.50/- | K180: 30.50 | L180: 26.41% | M180: Successful | N180: 2015-07-17
A181: 31 | B181: 2015-05-27 | D181: TCI | E181: Buy | F181: 237.50 | H181: 279.5 | I181: 278.00 | J181: Target Achieved | K181: 42.00 | L181: 17.68% | M181: Successful | N181: 2015-08-06
A182: 32 | B182: 2015-06-19 | D182: HSIL | E182: Accu | F182: 340.00 | H182: 448 | I182: 448.00 | J182: Target Achieved | K182: 108.00 | L182: 31.76% | M182: Successful | N182: 2017-10-10
A183: 33 | B183: 2015-07-06 | D183: Capital First | E183: Accu | F183: 390.00 | H183: 460 | I183: 460.00 | J183: Target Achieved | K183: 70.00 | L183: 17.95% | M183: Successful | N183: 2016-04-18
A184: 34 | B184: 2015-07-10 | D184: Dolphin OffShore | E184: Accu | F184: 122.5 | H184: 61.00 | I184: 172.00 | J184: Loss of Rs.61.50/- | K184: -61.50 | L184: -50.20% | M184: Unsuccessful | N184: 2018-08-21
A185: 35 | B185: 2015-08-03 | D185: Allcargo logistics | E185: Accu | F185: 297.50 | H185: 350 | I185: 360.00 | J185: Profit of Rs 52.50/- | K185: 52.50 | L185: 17.65% | M185: Successful | N185: 2015-08-16
A186: 36 | B186: 2015-08-03 | D186: Camline Fine | E186: Accu | F186: 115.50 | H186: 149 | I186: 140.00 | J186: Profit of Rs 33.50/- | K186: 33.50 | L186: 29.00% | M186: Successful | N186: 2017-01-05
A187: 37 | B187: 2015-09-04 | D187: TCI | E187: Accu | F187: 226.00 | H187: 292 | I187: 292.00 | J187: Target Achieved | K187: 66.00 | L187: 29.20% | M187: Successful | N187: 2015-10-09
A188: 38 | B188: 2015-09-07 | D188: Kalpataru Power Transmission Ltd | E188: Accu | F188: 232.50 | H188: 312.5 | I188: 310.00 | J188: Target Achieved | K188: 80.00 | L188: 34.41% | M188: Successful | N188: 2017-03-29
A189: 39 | B189: 2015-09-21 | D189: LLOYD ELECTRIC & ENG LTD | E189: Accu | F189: 196.50 | H189: 238 | I189: 238.00 | J189: Target Achieved | K189: 41.50 | L189: 21.12% | M189: Successful | N189: 2015-10-14
A190: 40 | B190: 2015-09-24 | D190: L&T Finance Holding | E190: Accu | F190: 65.00 | H190: 82 | I190: 82.00 | J190: Target Achieved | K190: 17.00 | L190: 26.15% | M190: Successful | N190: 2016-07-27
A191: 41 | B191: 2015-10-14 | D191: KEC International ltd | E191: Accu | F191: 144.00 | H191: 182.5 | I191: 181.00 | J191: Target Achieved | K191: 38.50 | L191: 26.74% | M191: Successful | N191: 2017-03-23
A192: 42 | B192: 2015-10-14 | D192: Gruh Finance | E192: Accu | F192: 264.00 | H192: 311 | I192: 311.00 | J192: Target Achieved | K192: 47.00 | L192: 17.80% | M192: Successful | N192: 2016-08-22
A193: 43 | B193: 2015-11-10 | D193: Pidilitind | E193: Buy | F193: 549.50 | H193: 630 | I193: 630.00 | J193: Target Achieved | K193: 80.50 | L193: 14.65% | M193: Successful | N193: 2016-02-19
A194: 44 | B194: 2015-12-04 | D194: Zensar Technology | E194: Accu | F194: 1027.50 | H194: 1315 | I194: 1250.00 | J194: Target Achieved | K194: 287.50 | L194: 27.98% | M194: Successful | N194: 2018-05-24
A195: 45 | B195: 2015-12-29 | D195: Vinati Organics Ltd | E195: Accu | F195: 465.00 | H195: 540 | I195: 540.00 | J195: Target Achieved | K195: 75.00 | L195: 16.13% | M195: Successful | N195: 2016-06-09
A196: 46 | B196: 2016-01-11 | D196: GSFC | E196: Buy | F196: 81.00 | H196: 110 | I196: 110.00 | J196: Target Achieved | K196: 29.00 | L196: 35.80% | M196: Successful | N196: 2017-01-10
A197: 47 | B197: 2016-01-13 | D197: SSWL | E197: Buy | F197: 417.50 | H197: 547 | I197: 535.00 | J197: Target Achieved | K197: 129.50 | L197: 31.02% | M197: Successful | N197: 2016-07-27
A198: 48 | B198: 2016-02-08 | D198: Persistent System Ltd | E198: Accu | F198: 650.00 | H198: 800 | I198: 800.00 | J198: Target Achieved | K198: 150.00 | L198: 23.08% | M198: Successful | N198: 2018-02-23
A199: 49 | B199: 2016-03-04 | D199: UPL | E199: Accu | F199: 437.50 | H199: 504.5 | I199: 522.00 | J199: Profit of Rs.67/- | K199: 67.00 | L199: 15.31% | M199: Successful | N199: 2016-04-20
A200: 50 | B200: 2016-03-09 | D200: Ashoka Buildcon Ltd | E200: Accu | F200: 189.50 | H200: 218 | I200: 218.00 | J200: Target Achieved | K200: 28.50 | L200: 15.04% | M200: Successful | N200: 2017-10-26
A201: 51 | B201: 2016-04-11 | D201: PTC INDIA FIN SERV LTD | E201: Accu | F201: 36.5 | H201: 15.85 | I201: 60.00 | J201: Loss of Rs.20.65/- | K201: -20.65 | L201: -56.58% | M201: Unsuccessful | N201: 2019-06-11
A202: 52 | B202: 2016-04-12 | D202: CAMLINFINE $ | E202: Accu | F202: 93.00 | H202: 149 | I202: 140.00 | J202: Profit of Rs 56/- | K202: 56.00 | L202: 60.22% | M202: Successful | N202: 2017-01-05
A203: 53 | B203: 2016-04-12 | D203: Greaves Cotton Ltd. | E203: Accu | F203: 130.00 | H203: 150 | I203: 150-155 | J203: Target Achieved | K203: 20.00 | L203: 15.38% | M203: Successful | N203: 2016-07-13
A204: 54 | B204: 2016-04-13 | D204: DHFL | E204: Accu | F204: 196.00 | H204: 299 | I204: 299.00 | J204: Target Achieved | K204: 103.00 | L204: 52.55% | M204: Successful | N204: 2016-09-07
A205: 55 | B205: 2016-04-13 | D205: Magma | E205: Accu | F205: 88.00 | H205: 103 | I205: 103.00 | J205: Target Achieved | K205: 15.00 | L205: 17.05% | M205: Successful | N205: 2016-06-09
A206: 56 | B206: 2016-05-02 | D206: KEC International ltd $ | E206: Accu | F206: 127.50 | H206: 148 | I206: 148-150 | J206: Target Achieved | K206: =H206-F206 -> 20.50 | L206: =K206/F206 -> 16.08% | M206: Successful | N206: 2016-07-13
A207: 57 | B207: 2016-05-03 | D207: Mindtree | E207: Accu | F207: 675.00 | H207: 815 | I207: 790-800 | J207: Target Achieved | K207: 140.00 | L207: 20.74% | M207: Successful | N207: 2018-02-23
A208: 58 | B208: 2016-06-01 | D208: Atulauto | E208: Accu | F208: 500 | H208: 232.50 | I208: 565-570 | J208: Loss of Rs.267.50 /- | K208: -267.50 | L208: -53.50% | M208: Unsuccessful | N208: 2019-09-27
A209: 59 | B209: 2016-06-06 | D209: TRITURBINE | E209: Accu | F209: 110.00 | H209: 126.5 | I209: 125.00 | J209: Profit of Rs.16.50/- | K209: 16.50 | L209: 15.00% | M209: Successful | N209: 2016-07-01
A210: 60 | B210: 2016-06-17 | D210: Pennar Industries Ltd | E210: Accu | F210: 44.00 | H210: 69.5 | I210: 69.50 | J210: Profit of Rs.25.50/- | K210: 25.50 | L210: 57.95% | M210: Successful | N210: 2017-08-30
A211: 61 | B211: 2016-06-28 | D211: EVEREADY | E211: Accu | F211: 262.50 | H211: 340 | I211: 333.00 | J211: Profit of Rs.77.50/- | K211: 77.50 | L211: 29.52% | M211: Successful | N211: 2017-10-09
A212: 62 | B212: 2016-06-28 | D212: FIEMIND | E212: Accu | F212: 840.00 | H212: 1230 | I212: 1230.00 | J212: Target Achieved | K212: 390.00 | L212: 46.43% | M212: Successful | N212: 2016-10-06
A213: 63 | B213: 2016-07-05 | D213: Bajaj Corp Ltd | E213: Accu | F213: 395 | H213: =(468.5+342.5)/2 -> 405.50 | I213: 510.00 | J213: Profit of Rs.10.50/- | K213: =H213-F213 -> 10.50 | L213: =K213/F213 -> 3% | M213: Neutral | N213: 2019-05-21
A214: 64 | B214: 2016-08-02 | D214: GPPL $ | E214: Buy | F214: =169.5-12.8 -> 156.7 | H214: 77.00 | I214: 198-200 | J214: Loss of Rs.79.7/- | K214: -79.70 | L214: -50.86% | M214: Unsuccessful | N214: 2019-02-26
A215: 65 | B215: 2016-08-04 | D215: WONDERLA HOLIDAYS LTD | E215: Accu | F215: 400 | H215: 305.00 | I215: 475.00 | J215: Loss of Rs.95/- | K215: -95.00 | L215: -23.75% | M215: Unsuccessful | N215: 2019-05-21
A216: 66 | B216: 2016-08-11 | D216: CAMLINFINE | E216: Accu | F216: 86.50 | H216: 130 | I216: 130.00 | J216: Profit of Rs.43.50/- | K216: 43.50 | L216: 50.29% | M216: Successful | N216: 2017-12-22
A217: 67 | B217: 2016-08-18 | D217: GRANULES | E217: Accu | F217: 133.5 | H217: 126.50 | I217: 178.00 | J217: Exit | K217: -7.00 | L217: -5.24% | M217: Unsuccessful | N217: 2016-09-02
A218: 68 | B218: 2016-08-31 | D218: VA TECH WABAG | E218: Accu | F218: 560.00 | H218: 725 | I218: 725.00 | J218: Target Achieved | K218: 165.00 | L218: 29.46% | M218: Successful | N218: 2016-03-27
A219: 69 | B219: 2016-09-01 | D219: SKIPPER LIMITED | E219: Accu | F219: 160.50 | H219: 210 | I219: 210.00 | J219: Target Achieved | K219: 49.50 | L219: 30.84% | M219: Successful | N219: 2017-05-16
A220: 70 | B220: 2016-10-03 | D220: IFBIND | E220: Accu | F220: 430.00 | H220: 596 | I220: 575.00 | J220: Profit of Rs.166/- | K220: 166.00 | L220: 38.60% | M220: Successful | N220: 2017-02-03
A221: 71 | B221: 2016-10-14 | D221: ASIANTILES | E221: Accu | F221: 280.00 | H221: 345 | I221: 345.00 | J221: Target Achieved | K221: =H221-F221 -> 65.00 | L221: =K221/F221 -> 23.21% | M221: Successful | N221: 2017-03-20
A222: 72 | B222: 2016-10-14 | D222: DEEPIND | E222: Accu | F222: 245.00 | H222: 325.5 | I222: 330.00 | J222: Profit of Rs.80.5/- | K222: 80.50 | L222: 32.86% | M222: Successful | N222: 2017-02-03
A223: 73 | B223: 2016-10-17 | D223: DCBBANK | E223: Accu | F223: 125.00 | H223: 160 | I223: 160.00 | J223: Target Achieved | K223: 35.00 | L223: 28.00% | M223: Successful | N223: 2017-03-09
A224: 74 | B224: 2016-10-17 | D224: ORIENTREF | E224: Accu | F224: 114.00 | H224: 145 | I224: 145.00 | J224: Target Achieved | K224: 31.00 | L224: =K224/F224 -> 27.19% | M224: Successful | N224: 2017-05-04
A225: 75 | B225: 2016-10-17 | D225: GANECOS | E225: Accu | F225: 212.00 | H225: 280 | I225: 276.00 | J225: Profit of Rs.68/- | K225: 68.00 | L225: 32.08% | M225: Successful | N225: 2017-05-03
A226: 76 | B226: 2016-11-04 | D226: NBCC | E226: Accu | F226: 155.00 | H226: 210 | I226: 210.00 | J226: Profit of Rs.55/- | K226: 55.00 | L226: 35.48% | M226: Successful | N226: 2017-07-28
... 114 more rows
